Workbook

Sheet Main
B10: 2021-02-17
B12: Sheet No. | C12: Template Name | D12: Summary
B13: 1 | C13: Future Intra | D13: For Intraday trading in F&O segment
B14: 2 | C14: Cash Intra | D14: For Intraday trading in cash market segment
B15: 3 | C15: Mid-cap Intra | D15: For Intraday trading in Mid-cap stocks
B16: 4 | C16: Bulk Deals | D16: Reveals Bulk Deals carried on NSE & BSE
B17: 5 | C17: Call Tracker
K27: `

Sheet Future Intra
M5: Back to Main Page
A6: FOR INTRA DAY TRADING | L6: =Main!B10 -> 2021-02-17
A9: Sr.no | B9: Sector | C9: Scrip | D9: Expiry Date | E9: CLOSE RATE | F9: Pivot Point | G9: Supports | J9: Resistances
B10: Sector | E10: Point | F10: Point | G10: S1 | H10: S2 | I10: S3 | J10: R1 | K10: R2 | L10: R3 | M10: HIGH | N10: LOW | O10: OI | P10: % Change in OI
A11: 1 | B11: Index | C11: BANKNIFTY | D11: 2021-02-25 | E11: 37218.15 | F11: 37273.58 | G11: 36777.17 | H11: 36336.18 | I11: 35839.77 | J11: 37714.57 | K11: 38210.98 | L11: 38651.97 | M11: 37770 | N11: 36832.6 | O11: 1934275 | P11: -12.55%
A12: 2 | B12: Index | C12: NIFTY | D12: 2021-02-25 | E12: 15330.25 | F12: 15335.45 | G12: 15240.90 | H12: 15151.55 | I12: 15057.00 | J12: 15424.80 | K12: 15519.35 | L12: 15608.70 | M12: 15430 | N12: 15246.1 | O12: 12693375 | P12: -0.13%
A13: 3 | B13: Index | C13: FINNIFTY | D13: 2021-02-25 | E13: 17505.40 | F13: 17550.58 | G13: 17304.82 | H13: 17104.23 | I13: 16858.47 | J13: 17751.17 | K13: 17996.93 | L13: 18197.52 | M13: 17796.35 | N13: 17350 | O13: 28920 | P13: -8.60%
A14: 4 | B14: Others | C14: AARTIIND | D14: 2021-02-25 | E14: 1228.25 | F14: 1222.35 | G14: 1215.05 | H14: 1201.85 | I14: 1194.55 | J14: 1235.55 | K14: 1242.85 | L14: 1256.05 | M14: 1229.65 | N14: 1209.15 | O14: 549950 | P14: -5.62%
A15: 5 | B15: Cement | C15: ACC | D15: 2021-02-25 | E15: 1826.20 | F15: 1823.00 | G15: 1797.00 | H15: 1767.80 | I15: 1741.80 | J15: 1852.20 | K15: 1878.20 | L15: 1907.40 | M15: 1849 | N15: 1793.8 | O15: 3362000 | P15: -3.14%
A16: 6 | B16: Others | C16: ADANIENT | D16: 2021-02-25 | E16: 783.70 | F16: 781.78 | G16: 760.57 | H16: 737.43 | I16: 716.22 | J16: 804.92 | K16: 826.13 | L16: 849.27 | M16: 803 | N16: 758.65 | O16: 16560000 | P16: 1.09%
A17: 7 | B17: Others | C17: ADANIPORTS | D17: 2021-02-25 | E17: 639.85 | F17: 638.08 | G17: 631.27 | H17: 622.68 | I17: 615.87 | J17: 646.67 | K17: 653.48 | L17: 662.07 | M17: 644.9 | N17: 629.5 | O17: 53445000 | P17: 2.83%
A18: 8 | B18: Automobile | C18: AMARAJABAT | D18: 2021-02-25 | E18: 898.85 | F18: 904.47 | G18: 886.63 | H18: 874.42 | I18: 856.58 | J18: 916.68 | K18: 934.52 | L18: 946.73 | M18: 922.3 | N18: 892.25 | O18: 3426000 | P18: 9.11%
A19: 9 | B19: Cement | C19: AMBUJACEM | D19: 2021-02-25 | E19: 285.20 | F19: 284.62 | G19: 281.38 | H19: 277.57 | I19: 274.33 | J19: 288.43 | K19: 291.67 | L19: 295.48 | M19: 287.85 | N19: 280.8 | O19: 18594000 | P19: -1.16%
A20: 10 | B20: Others | C20: APOLLOHOSP | D20: 2021-02-25 | E20: 3203.20 | F20: 3172.38 | G20: 3090.77 | H20: 2978.33 | I20: 2896.72 | J20: 3284.82 | K20: 3366.43 | L20: 3478.87 | M20: 3254 | N20: 3059.95 | O20: 2031500 | P20: -0.56%
A21: 11 | B21: Automobile | C21: APOLLOTYRE | D21: 2021-02-25 | E21: 237.35 | F21: 237.23 | G21: 233.47 | H21: 229.58 | I21: 225.82 | J21: 241.12 | K21: 244.88 | L21: 248.77 | M21: 241 | N21: 233.35 | O21: 19155000 | P21: 2.49%
A22: 12 | B22: Automobile | C22: ASHOKLEY | D22: 2021-02-25 | E22: 129.30 | F22: 129.87 | G22: 127.43 | H22: 125.57 | I22: 123.13 | J22: 131.73 | K22: 134.17 | L22: 136.03 | M22: 132.3 | N22: 128 | O22: 45252000 | P22: 6.35%
A23: 13 | B23: FMCG | C23: ASIANPAINT | D23: 2021-02-25 | E23: 2460.45 | F23: 2455.80 | G23: 2432.85 | H23: 2405.25 | I23: 2382.30 | J23: 2483.40 | K23: 2506.35 | L23: 2533.95 | M23: 2478.75 | N23: 2428.2 | O23: 6357300 | P23: 2.42%
A24: 14 | B24: Pharma | C24: AUROPHARMA | D24: 2021-02-25 | E24: 938.60 | F24: 935.28 | G24: 926.72 | H24: 914.83 | I24: 906.27 | J24: 947.17 | K24: 955.73 | L24: 967.62 | M24: 943.85 | N24: 923.4 | O24: 9188400 | P24: 0.31%
A25: 15 | B25: Banking | C25: AXISBANK | D25: 2021-02-25 | E25: 778.90 | F25: 782.98 | G25: 765.97 | H25: 753.03 | I25: 736.02 | J25: 795.92 | K25: 812.93 | L25: 825.87 | M25: 800 | N25: 770.05 | O25: 46724400 | P25: -2.84%
A26: 16 | B26: Automobile | C26: BAJAJ-AUTO | D26: 2021-02-25 | E26: 4147.40 | F26: 4156.12 | G26: 4121.18 | H26: 4094.97 | I26: 4060.03 | J26: 4182.33 | K26: 4217.27 | L26: 4243.48 | M26: 4191.05 | N26: 4129.9 | O26: 1738250 | P26: -1.93%
A27: 17 | B27: Finance | C27: BAJAJFINSV | D27: 2021-02-25 | E27: 10494.95 | F27: 10480.78 | G27: 10393.67 | H27: 10292.38 | I27: 10205.27 | J27: 10582.07 | K27: 10669.18 | L27: 10770.47 | M27: 10567.9 | N27: 10379.5 | O27: 741625 | P27: -2.39%
A28: 18 | B28: Finance | C28: BAJFINANCE | D28: 2021-02-25 | E28: 5776.75 | F28: 5771.15 | G28: 5712.30 | H28: 5647.85 | I28: 5589.00 | J28: 5835.60 | K28: 5894.45 | L28: 5958.90 | M28: 5830 | N28: 5706.7 | O28: 4282500 | P28: -4.12%
A29: 19 | B29: Automobile | C29: BALKRISIND | D29: 2021-02-25 | E29: 1629.05 | F29: 1634.68 | G29: 1608.37 | H29: 1587.68 | I29: 1561.37 | J29: 1655.37 | K29: 1681.68 | L29: 1702.37 | M29: 1661 | N29: 1614 | O29: 3116400 | P29: 3.53%
A30: 20 | B30: Banking | C30: BANDHANBNK | D30: 2021-02-25 | E30: 351.75 | F30: 347.77 | G30: 341.48 | H30: 331.22 | I30: 324.93 | J30: 358.03 | K30: 364.32 | L30: 374.58 | M30: 354.05 | N30: 337.5 | O30: 25659000 | P30: -4.68%
A31: 21 | B31: Banking | C31: BANKBARODA | D31: 2021-02-25 | E31: 79.45 | F31: 79.90 | G31: 77.85 | H31: 76.25 | I31: 74.20 | J31: 81.50 | K31: 83.55 | L31: 85.15 | M31: 81.95 | N31: 78.3 | O31: 95881500 | P31: -2.35%
A32: 22 | B32: FMCG | C32: BATAINDIA | D32: 2021-02-25 | E32: 1529.20 | F32: 1539.52 | G32: 1512.48 | H32: 1495.77 | I32: 1468.73 | J32: 1556.23 | K32: 1583.27 | L32: 1599.98 | M32: 1566.55 | N32: 1522.8 | O32: 1800700 | P32: 4.30%
A33: 23 | B33: Capital_Goods | C33: BEL | D33: 2021-02-25 | E33: 133.80 | F33: 135.20 | G33: 131.70 | H33: 129.60 | I33: 126.10 | J33: 137.30 | K33: 140.80 | L33: 142.90 | M33: 138.7 | N33: 133.1 | O33: 32642000 | P33: 4.17%
A34: 24 | B34: FMCG | C34: BERGEPAINT | D34: 2021-02-25 | E34: 760.40 | F34: 760.98 | G34: 750.92 | H34: 741.43 | I34: 731.37 | J34: 770.47 | K34: 780.53 | L34: 790.02 | M34: 771.05 | N34: 751.5 | O34: 3463900 | P34: -4.75%
A35: 25 | B35: Automobile | C35: BHARATFORG | D35: 2021-02-25 | E35: 633.65 | F35: 632.87 | G35: 624.83 | H35: 616.02 | I35: 607.98 | J35: 641.68 | K35: 649.72 | L35: 658.53 | M35: 640.9 | N35: 624.05 | O35: 7042500 | P35: 2.51%
A36: 26 | B36: Telecom | C36: BHARTIARTL | D36: 2021-02-25 | E36: 594.50 | F36: 596.80 | G36: 591.20 | H36: 587.90 | I36: 582.30 | J36: 600.10 | K36: 605.70 | L36: 609.00 | M36: 602.4 | N36: 593.5 | O36: 89780904 | P36: -3.14%
A37: 27 | B37: Capital_Goods | C37: BHEL | D37: 2021-02-25 | E37: 40.05 | F37: 39.40 | G37: 38.65 | H37: 37.25 | I37: 36.50 | J37: 40.80 | K37: 41.55 | L37: 42.95 | M37: 40.15 | N37: 38 | O37: 115710000 | P37: -1.66%
A38: 28 | B38: Pharma | C38: BIOCON | D38: 2021-02-25 | E38: 418.10 | F38: 415.05 | G38: 410.75 | H38: 403.40 | I38: 399.10 | J38: 422.40 | K38: 426.70 | L38: 434.05 | M38: 419.35 | N38: 407.7 | O38: 15467500 | P38: -2.73%
A39: 29 | B39: Automobile | C39: BOSCHLTD | D39: 2021-02-25 | E39: 15650.75 | F39: 15637.37 | G39: 15398.53 | H39: 15146.32 | I39: 14907.48 | J39: 15889.58 | K39: 16128.42 | L39: 16380.63 | M39: 15876.2 | N39: 15385.15 | O39: 100950 | P39: 5.76%
A40: 30 | B40: Oil_Gas | C40: BPCL | D40: 2021-02-25 | E40: 404.05 | F40: 404.78 | G40: 401.12 | H40: 398.18 | I40: 394.52 | J40: 407.72 | K40: 411.38 | L40: 414.32 | M40: 408.45 | N40: 401.85 | O40: 23997600 | P40: -0.84%
A41: 31 | B41: FMCG | C41: BRITANNIA | D41: 2021-02-25 | E41: 3404.00 | F41: 3411.67 | G41: 3384.58 | H41: 3365.17 | I41: 3338.08 | J41: 3431.08 | K41: 3458.17 | L41: 3477.58 | M41: 3438.75 | N41: 3392.25 | O41: 2951000 | P41: 2.66%
A42: 32 | B42: Pharma | C42: CADILAHC | D42: 2021-02-25 | E42: 470.90 | F42: 470.48 | G42: 465.42 | H42: 459.93 | I42: 454.87 | J42: 475.97 | K42: 481.03 | L42: 486.52 | M42: 475.55 | N42: 465 | O42: 11440000 | P42: 4.46%
A43: 33 | B43: Banking | C43: CANBK | D43: 2021-02-25 | E43: 163.15 | F43: 163.22 | G43: 160.13 | H43: 157.12 | I43: 154.03 | J43: 166.23 | K43: 169.32 | L43: 172.33 | M43: 166.3 | N43: 160.2 | O43: 60642000 | P43: -0.20%
A44: 34 | B44: Finance | C44: CHOLAFIN | D44: 2021-02-25 | E44: 529.50 | F44: 528.63 | G44: 519.87 | H44: 510.23 | I44: 501.47 | J44: 538.27 | K44: 547.03 | L44: 556.67 | M44: 537.4 | N44: 519 | O44: 5692500 | P44: 0.98%
A45: 35 | B45: Pharma | C45: CIPLA | D45: 2021-02-25 | E45: 852.00 | F45: 849.42 | G45: 844.58 | H45: 837.17 | I45: 832.33 | J45: 856.83 | K45: 861.67 | L45: 869.08 | M45: 854.25 | N45: 842 | O45: 12818000 | P45: 0.81%
A46: 36 | B46: Others | C46: COALINDIA | D46: 2021-02-25 | E46: 134.25 | F46: 133.93 | G46: 132.47 | H46: 130.68 | I46: 129.22 | J46: 135.72 | K46: 137.18 | L46: 138.97 | M46: 135.4 | N46: 132.15 | O46: 40504800 | P46: 3.67%
A47: 37 | B47: Technology | C47: COFORGE | D47: 2021-02-25 | E47: 2618.80 | F47: 2617.78 | G47: 2585.57 | H47: 2552.33 | I47: 2520.12 | J47: 2651.02 | K47: 2683.23 | L47: 2716.47 | M47: 2650 | N47: 2584.55 | O47: 419250 | P47: -1.50%
A48: 38 | B48: FMCG | C48: COLPAL | D48: 2021-02-25 | E48: 1587.70 | F48: 1589.43 | G48: 1570.87 | H48: 1554.03 | I48: 1535.47 | J48: 1606.27 | K48: 1624.83 | L48: 1641.67 | M48: 1608 | N48: 1572.6 | O48: 3271100 | P48: -0.51%
A49: 39 | B49: Others | C49: CONCOR | D49: 2021-02-25 | E49: 537.25 | F49: 536.77 | G49: 528.53 | H49: 519.82 | I49: 511.58 | J49: 545.48 | K49: 553.72 | L49: 562.43 | M49: 545 | N49: 528.05 | O49: 6523962 | P49: -8.88%
A50: 40 | B50: Capital_Goods | C50: CUMMINSIND | D50: 2021-02-25 | E50: 768.45 | F50: 769.78 | G50: 760.92 | H50: 753.38 | I50: 744.52 | J50: 777.32 | K50: 786.18 | L50: 793.72 | M50: 778.65 | N50: 762.25 | O50: 1528800 | P50: 2.49%
A51: 41 | B51: FMCG | C51: DABUR | D51: 2021-02-25 | E51: 524.35 | F51: 526.30 | G51: 519.85 | H51: 515.35 | I51: 508.90 | J51: 530.80 | K51: 537.25 | L51: 541.75 | M51: 532.75 | N51: 521.8 | O51: 11992500 | P51: 2.37%
A52: 42 | B52: Pharma | C52: DIVISLAB | D52: 2021-02-25 | E52: 3698.80 | F52: 3698.77 | G52: 3674.53 | H52: 3650.27 | I52: 3626.03 | J52: 3723.03 | K52: 3747.27 | L52: 3771.53 | M52: 3723 | N52: 3674.5 | O52: 2956800 | P52: -0.46%
A53: 43 | B53: Realty | C53: DLF | D53: 2021-02-25 | E53: 319.70 | F53: 321.42 | G53: 313.88 | H53: 308.07 | I53: 300.53 | J53: 327.23 | K53: 334.77 | L53: 340.58 | M53: 328.95 | N53: 315.6 | O53: 31039800 | P53: -0.73%
A54: 44 | B54: Pharma | C54: DRREDDY | D54: 2021-02-25 | E54: 4716.20 | F54: 4721.98 | G54: 4674.32 | H54: 4632.43 | I54: 4584.77 | J54: 4763.87 | K54: 4811.53 | L54: 4853.42 | M54: 4769.65 | N54: 4680.1 | O54: 2866375 | P54: -1.54%
A55: 45 | B55: Automobile | C55: EICHERMOT | D55: 2021-02-25 | E55: 2739.15 | F55: 2741.35 | G55: 2703.10 | H55: 2667.05 | I55: 2628.80 | J55: 2777.40 | K55: 2815.65 | L55: 2851.70 | M55: 2779.6 | N55: 2705.3 | O55: 2449650 | P55: 0.55%
A56: 46 | B56: Automobile | C56: ESCORTS | D56: 2021-02-25 | E56: 1392.55 | F56: 1394.78 | G56: 1379.57 | H56: 1366.58 | I56: 1351.37 | J56: 1407.77 | K56: 1422.98 | L56: 1435.97 | M56: 1410 | N56: 1381.8 | O56: 3185050 | P56: -0.57%
A57: 47 | B57: Automobile | C57: EXIDEIND | D57: 2021-02-25 | E57: 212.10 | F57: 211.82 | G57: 208.88 | H57: 205.67 | I57: 202.73 | J57: 215.03 | K57: 217.97 | L57: 221.18 | M57: 214.75 | N57: 208.6 | O57: 12171600 | P57: 1.96%
A58: 48 | B58: Banking | C58: FEDERALBNK | D58: 2021-02-25 | E58: 85.55 | F58: 85.78 | G58: 84.07 | H58: 82.58 | I58: 80.87 | J58: 87.27 | K58: 88.98 | L58: 90.47 | M58: 87.5 | N58: 84.3 | O58: 86990000 | P58: 2.59%
A59: 49 | B59: Oil_Gas | C59: GAIL | D59: 2021-02-25 | E59: 133.30 | F59: 133.90 | G59: 132.00 | H59: 130.70 | I59: 128.80 | J59: 135.20 | K59: 137.10 | L59: 138.40 | M59: 135.8 | N59: 132.6 | O59: 36301100 | P59: 2.69%
A60: 50 | B60: Pharma | C60: GLENMARK | D60: 2021-02-25 | E60: 505.30 | F60: 501.35 | G60: 494.70 | H60: 484.10 | I60: 477.45 | J60: 511.95 | K60: 518.60 | L60: 529.20 | M60: 508 | N60: 490.75 | O60: 5480900 | P60: 5.82%
A61: 51 | B61: Infrastructure | C61: GMRINFRA | D61: 2021-02-25 | E61: 25.30 | F61: 25.43 | G61: 25.02 | H61: 24.73 | I61: 24.32 | J61: 25.72 | K61: 26.13 | L61: 26.42 | M61: 25.85 | N61: 25.15 | O61: 151020000 | P61: 1.34%
A62: 52 | B62: FMCG | C62: GODREJCP | D62: 2021-02-25 | E62: 724.35 | F62: 730.20 | G62: 715.05 | H62: 705.75 | I62: 690.60 | J62: 739.50 | K62: 754.65 | L62: 763.95 | M62: 745.35 | N62: 720.9 | O62: 3983000 | P62: 9.85%
A63: 53 | B63: Others | C63: GODREJPROP | D63: 2021-02-25 | E63: 1522.50 | F63: 1519.62 | G63: 1496.48 | H63: 1470.47 | I63: 1447.33 | J63: 1545.63 | K63: 1568.77 | L63: 1594.78 | M63: 1542.75 | N63: 1493.6 | O63: 2043600 | P63: 0.61%
A64: 54 | B64: Cement | C64: GRASIM | D64: 2021-02-25 | E64: 1249.30 | F64: 1247.08 | G64: 1232.82 | H64: 1216.33 | I64: 1202.07 | J64: 1263.57 | K64: 1277.83 | L64: 1294.32 | M64: 1261.35 | N64: 1230.6 | O64: 17283350 | P64: 0.68%
A65: 55 | B65: Others | C65: HAVELLS | D65: 2021-02-25 | E65: 1218.35 | F65: 1201.77 | G65: 1180.38 | H65: 1142.42 | I65: 1121.03 | J65: 1239.73 | K65: 1261.12 | L65: 1299.08 | M65: 1223.15 | N65: 1163.8 | O65: 4025000 | P65: 5.70%
A66: 56 | B66: Technology | C66: HCLTECH | D66: 2021-02-25 | E66: 955.90 | F66: 954.82 | G66: 947.13 | H66: 938.37 | I66: 930.68 | J66: 963.58 | K66: 971.27 | L66: 980.03 | M66: 962.5 | N66: 946.05 | O66: 20296500 | P66: 1.57%
A67: 57 | B67: Finance | C67: HDFC | D67: 2021-02-25 | E67: 2860.80 | F67: 2866.68 | G67: 2835.17 | H67: 2809.53 | I67: 2778.02 | J67: 2892.32 | K67: 2923.83 | L67: 2949.47 | M67: 2898.2 | N67: 2841.05 | O67: 16750800 | P67: -2.13%
A68: 58 | B68: Finance | C68: HDFCAMC | D68: 2021-02-25 | E68: 3003.40 | F68: 3011.13 | G68: 2972.27 | H68: 2941.13 | I68: 2902.27 | J68: 3042.27 | K68: 3081.13 | L68: 3112.27 | M68: 3050 | N68: 2980 | O68: 487400 | P68: -0.25%
A69: 59 | B69: Banking | C69: HDFCBANK | D69: 2021-02-25 | E69: 1630.85 | F69: 1629.43 | G69: 1614.92 | H69: 1598.98 | I69: 1584.47 | J69: 1645.37 | K69: 1659.88 | L69: 1675.82 | M69: 1643.95 | N69: 1613.5 | O69: 25401750 | P69: -3.51%
A70: 60 | B70: Finance | C70: HDFCLIFE | D70: 2021-02-25 | E70: 696.95 | F70: 697.05 | G70: 689.40 | H70: 681.85 | I70: 674.20 | J70: 704.60 | K70: 712.25 | L70: 719.80 | M70: 704.7 | N70: 689.5 | O70: 8484300 | P70: -0.10%
A71: 61 | B71: Automobile | C71: HEROMOTOCO | D71: 2021-02-25 | E71: 3454.10 | F71: 3453.90 | G71: 3427.95 | H71: 3401.80 | I71: 3375.85 | J71: 3480.05 | K71: 3506.00 | L71: 3532.15 | M71: 3479.85 | N71: 3427.75 | O71: 3687000 | P71: 1.37%
A72: 62 | B72: Metals | C72: HINDALCO | D72: 2021-02-25 | E72: 303.15 | F72: 301.53 | G72: 294.97 | H72: 286.78 | I72: 280.22 | J72: 309.72 | K72: 316.28 | L72: 324.47 | M72: 308.1 | N72: 293.35 | O72: 31007300 | P72: 3.59%
A73: 63 | B73: Oil_Gas | C73: HINDPETRO | D73: 2021-02-25 | E73: 226.25 | F73: 225.23 | G73: 222.92 | H73: 219.58 | I73: 217.27 | J73: 228.57 | K73: 230.88 | L73: 234.22 | M73: 227.55 | N73: 221.9 | O73: 34989300 | P73: -1.44%
A74: 64 | B74: FMCG | C74: HINDUNILVR | D74: 2021-02-25 | E74: 2204.75 | F74: 2211.73 | G74: 2189.62 | H74: 2174.48 | I74: 2152.37 | J74: 2226.87 | K74: 2248.98 | L74: 2264.12 | M74: 2233.85 | N74: 2196.6 | O74: 9171900 | P74: 3.94%
A75: 65 | B75: Finance | C75: IBULHSGFIN | D75: 2021-02-25 | E75: 226.85 | F75: 225.30 | G75: 220.20 | H75: 213.55 | I75: 208.45 | J75: 231.95 | K75: 237.05 | L75: 243.70 | M75: 230.4 | N75: 218.65 | O75: 34453400 | P75: -1.06%
A76: 66 | B76: Banking | C76: ICICIBANK | D76: 2021-02-25 | E76: 661.25 | F76: 664.63 | G76: 648.82 | H76: 636.38 | I76: 620.57 | J76: 677.07 | K76: 692.88 | L76: 705.32 | M76: 680.45 | N76: 652.2 | O76: 116142125 | P76: -1.95%
A77: 67 | B77: Finance | C77: ICICIGI | D77: 2021-02-25 | E77: 1507.30 | F77: 1505.48 | G77: 1490.02 | H77: 1472.73 | I77: 1457.27 | J77: 1522.77 | K77: 1538.23 | L77: 1555.52 | M77: 1520.95 | N77: 1488.2 | O77: 1000025 | P77: -0.63%
A78: 68 | B78: Finance | C78: ICICIPRULI | D78: 2021-02-25 | E78: 491.65 | F78: 491.22 | G78: 486.78 | H78: 481.92 | I78: 477.48 | J78: 496.08 | K78: 500.52 | L78: 505.38 | M78: 495.65 | N78: 486.35 | O78: 8800500 | P78: -6.78%
A79: 69 | B79: Telecom | C79: IDEA | D79: 2021-02-25 | E79: 11.80 | F79: 11.92 | G79: 11.58 | H79: 11.37 | I79: 11.03 | J79: 12.13 | K79: 12.47 | L79: 12.68 | M79: 12.25 | N79: 11.7 | O79: 940170000 | P79: -1.18%
A80: 70 | B80: Banking | C80: IDFCFIRSTB | D80: 2021-02-25 | E80: 53.80 | F80: 53.57 | G80: 52.73 | H80: 51.67 | I80: 50.83 | J80: 54.63 | K80: 55.47 | L80: 56.53 | M80: 54.4 | N80: 52.5 | O80: 181279000 | P80: 3.43%
A81: 71 | B81: Oil_Gas | C81: IGL | D81: 2021-02-25 | E81: 550.15 | F81: 549.48 | G81: 540.47 | H81: 530.78 | I81: 521.77 | J81: 559.17 | K81: 568.18 | L81: 577.87 | M81: 558.5 | N81: 539.8 | O81: 5984000 | P81: -0.32%
A82: 72 | B82: Others | C82: INDIGO | D82: 2021-02-25 | E82: 1617.20 | F82: 1621.65 | G82: 1596.80 | H82: 1576.40 | I82: 1551.55 | J82: 1642.05 | K82: 1666.90 | L82: 1687.30 | M82: 1646.5 | N82: 1601.25 | O82: 2938000 | P82: 1.80%
A83: 73 | B83: Banking | C83: INDUSINDBK | D83: 2021-02-25 | E83: 1060.90 | F83: 1067.65 | G83: 1035.60 | H83: 1010.30 | I83: 978.25 | J83: 1092.95 | K83: 1125.00 | L83: 1150.30 | M83: 1099.7 | N83: 1042.35 | O83: 25887600 | P83: -4.43%
A84: 74 | B84: Telecom | C84: INDUSTOWER | D84: 2021-02-25 | E84: 247.30 | F84: 247.90 | G84: 243.65 | H84: 240.00 | I84: 235.75 | J84: 251.55 | K84: 255.80 | L84: 259.45 | M84: 252.15 | N84: 244.25 | O84: 11536000 | P84: -3.10%
A85: 75 | B85: Technology | C85: INFY | D85: 2021-02-25 | E85: 1296.30 | F85: 1302.67 | G85: 1284.68 | H85: 1273.07 | I85: 1255.08 | J85: 1314.28 | K85: 1332.27 | L85: 1343.88 | M85: 1320.65 | N85: 1291.05 | O85: 34615800 | P85: 1.23%
A86: 76 | B86: Oil_Gas | C86: IOC | D86: 2021-02-25 | E86: 96.10 | F86: 95.83 | G86: 94.77 | H86: 93.43 | I86: 92.37 | J86: 97.17 | K86: 98.23 | L86: 99.57 | M86: 96.9 | N86: 94.5 | O86: 63492000 | P86: -3.83%
A87: 77 | B87: FMCG | C87: ITC | D87: 2021-02-25 | E87: 214.25 | F87: 214.83 | G87: 212.47 | H87: 210.68 | I87: 208.32 | J87: 216.62 | K87: 218.98 | L87: 220.77 | M87: 217.2 | N87: 213.05 | O87: 157427200 | P87: -2.07%
A88: 78 | B88: Metals | C88: JINDALSTEL | D88: 2021-02-25 | E88: 333.35 | F88: 327.05 | G88: 316.70 | H88: 300.05 | I88: 289.70 | J88: 343.70 | K88: 354.05 | L88: 370.70 | M88: 337.4 | N88: 310.4 | O88: 25755000 | P88: 22.21%
A89: 79 | B89: Metals | C89: JSWSTEEL | D89: 2021-02-25 | E89: 408.60 | F89: 411.80 | G89: 400.60 | H89: 392.60 | I89: 381.40 | J89: 419.80 | K89: 431.00 | L89: 439.00 | M89: 423 | N89: 403.8 | O89: 33409800 | P89: -1.83%
A90: 80 | B90: Others | C90: JUBLFOOD | D90: 2021-02-25 | E90: 2883.60 | F90: 2889.42 | G90: 2854.23 | H90: 2824.87 | I90: 2789.68 | J90: 2918.78 | K90: 2953.97 | L90: 2983.33 | M90: 2924.6 | N90: 2860.05 | O90: 1651000 | P90: -2.45%
A91: 81 | B91: Banking | C91: KOTAKBANK | D91: 2021-02-25 | E91: 2020.35 | F91: 2024.48 | G91: 1997.87 | H91: 1975.38 | I91: 1948.77 | J91: 2046.97 | K91: 2073.58 | L91: 2096.07 | M91: 2051.1 | N91: 2002 | O91: 14904800 | P91: 0.35%
A92: 82 | B92: Finance | C92: L&TFH | D92: 2021-02-25 | E92: 98.55 | F92: 98.73 | G92: 96.67 | H92: 94.78 | I92: 92.72 | J92: 100.62 | K92: 102.68 | L92: 104.57 | M92: 100.8 | N92: 96.85 | O92: 41567992 | P92: -0.41%
A93: 83 | B93: Others | C93: LALPATHLAB | D93: 2021-02-25 | E93: 2391.85 | F93: 2407.20 | G93: 2373.25 | H93: 2354.65 | I93: 2320.70 | J93: 2425.80 | K93: 2459.75 | L93: 2478.35 | M93: 2441.15 | N93: 2388.6 | O93: 95500 | P93: -1.55%
A94: 84 | B94: Finance | C94: LICHSGFIN | D94: 2021-02-25 | E94: 471.40 | F94: 473.90 | G94: 464.05 | H94: 456.70 | I94: 446.85 | J94: 481.25 | K94: 491.10 | L94: 498.45 | M94: 483.75 | N94: 466.55 | O94: 9344000 | P94: -1.77%
A95: 85 | B95: Capital_Goods | C95: LT | D95: 2021-02-25 | E95: 1551.00 | F95: 1557.08 | G95: 1537.17 | H95: 1523.33 | I95: 1503.42 | J95: 1570.92 | K95: 1590.83 | L95: 1604.67 | M95: 1577 | N95: 1543.25 | O95: 13590125 | P95: -2.85%
A96: 86 | B96: Pharma | C96: LUPIN | D96: 2021-02-25 | E96: 1101.35 | F96: 1086.57 | G96: 1066.38 | H96: 1031.42 | I96: 1011.23 | J96: 1121.53 | K96: 1141.72 | L96: 1176.68 | M96: 1106.75 | N96: 1051.6 | O96: 8517850 | P96: 13.37%
A97: 87 | B97: Automobile | C97: M&M | D97: 2021-02-25 | E97: 915.85 | F97: 914.85 | G97: 905.55 | H97: 895.25 | I97: 885.95 | J97: 925.15 | K97: 934.45 | L97: 944.75 | M97: 924.15 | N97: 904.55 | O97: 10963400 | P97: -0.36%
A98: 88 | B98: Finance | C98: M&MFIN | D98: 2021-02-25 | E98: 220.80 | F98: 217.50 | G98: 212.55 | H98: 204.30 | I98: 199.35 | J98: 225.75 | K98: 230.70 | L98: 238.95 | M98: 222.45 | N98: 209.25 | O98: 15408000 | P98: 2.07%
A99: 89 | B99: Finance | C99: MANAPPURAM | D99: 2021-02-25 | E99: 176.55 | F99: 176.87 | G99: 173.88 | H99: 171.22 | I99: 168.23 | J99: 179.53 | K99: 182.52 | L99: 185.18 | M99: 179.85 | N99: 174.2 | O99: 18828000 | P99: 1.78%
A100: 90 | B100: FMCG | C100: MARICO | D100: 2021-02-25 | E100: 409.95 | F100: 409.75 | G100: 406.10 | H100: 402.25 | I100: 398.60 | J100: 413.60 | K100: 417.25 | L100: 421.10 | M100: 413.4 | N100: 405.9 | O100: 8768000 | P100: -3.96%
A101: 91 | B101: Automobile | C101: MARUTI | D101: 2021-02-25 | E101: 7708.30 | F101: 7728.03 | G101: 7623.22 | H101: 7538.13 | I101: 7433.32 | J101: 7813.12 | K101: 7917.93 | L101: 8003.02 | M101: 7832.85 | N101: 7642.95 | O101: 2516200 | P101: -1.05%
A102: 92 | B102: FMCG | C102: MCDOWELL-N | D102: 2021-02-25 | E102: 570.05 | F102: 571.20 | G102: 566.45 | H102: 562.85 | I102: 558.10 | J102: 574.80 | K102: 579.55 | L102: 583.15 | M102: 575.95 | N102: 567.6 | O102: 14042500 | P102: -0.68%
A103: 93 | B103: Finance | C103: MFSL | D103: 2021-02-25 | E103: 853.55 | F103: 846.43 | G103: 832.97 | H103: 812.38 | I103: 798.92 | J103: 867.02 | K103: 880.48 | L103: 901.07 | M103: 859.9 | N103: 825.85 | O103: 3837600 | P103: -15.51%
A104: 94 | B104: Oil_Gas | C104: MGL | D104: 2021-02-25 | E104: 1141.25 | F104: 1135.97 | G104: 1124.98 | H104: 1108.72 | I104: 1097.73 | J104: 1152.23 | K104: 1163.22 | L104: 1179.48 | M104: 1146.95 | N104: 1119.7 | O104: 1705200 | P104: -0.63%
A105: 95 | B105: Technology | C105: MINDTREE | D105: 2021-02-25 | E105: 1693.60 | F105: 1703.45 | G105: 1665.00 | H105: 1636.40 | I105: 1597.95 | J105: 1732.05 | K105: 1770.50 | L105: 1799.10 | M105: 1741.9 | N105: 1674.85 | O105: 1548000 | P105: 1.04%
A106: 96 | B106: Automobile | C106: MOTHERSUMI | D106: 2021-02-25 | E106: 214.35 | F106: 214.08 | G106: 211.47 | H106: 208.58 | I106: 205.97 | J106: 216.97 | K106: 219.58 | L106: 222.47 | M106: 216.7 | N106: 211.2 | O106: 34034000 | P106: 1.95%
A107: 97 | B107: Automobile | C107: MRF | D107: 2021-02-25 | E107: 89774.20 | F107: 90091.40 | G107: 88682.80 | H107: 87591.40 | I107: 86182.80 | J107: 91182.80 | K107: 92591.40 | L107: 93682.80 | M107: 91500 | N107: 89000 | O107: 61780 | P107: -1.84%
A108: 98 | B108: Finance | C108: MUTHOOTFIN | D108: 2021-02-25 | E108: 1321.30 | F108: 1325.10 | G108: 1306.30 | H108: 1291.30 | I108: 1272.50 | J108: 1340.10 | K108: 1358.90 | L108: 1373.90 | M108: 1343.9 | N108: 1310.1 | O108: 4510500 | P108: -1.59%
A109: 99 | B109: Metals | C109: NATIONALUM | D109: 2021-02-25 | E109: 50.40 | F109: 49.90 | G109: 49.15 | H109: 47.90 | I109: 47.15 | J109: 51.15 | K109: 51.90 | L109: 53.15 | M109: 50.65 | N109: 48.65 | O109: 60231000 | P109: -3.96%
A110: 100 | B110: Others | C110: NAUKRI | D110: 2021-02-25 | E110: 5113.30 | F110: 5226.75 | G110: 4905.55 | H110: 4697.80 | I110: 4376.60 | J110: 5434.50 | K110: 5755.70 | L110: 5963.45 | M110: 5547.95 | N110: 5019 | O110: 844750 | P110: 13.96%
A111: 101 | B111: FMCG | C111: NESTLEIND | D111: 2021-02-25 | E111: 17211.65 | F111: 17312.80 | G111: 17030.85 | H111: 16850.05 | I111: 16568.10 | J111: 17493.60 | K111: 17775.55 | L111: 17956.35 | M111: 17594.75 | N111: 17132 | O111: 359950 | P111: 11.79%
A112: 102 | B112: Metals | C112: NMDC | D112: 2021-02-25 | E112: 116.05 | F112: 115.87 | G112: 113.98 | H112: 111.92 | I112: 110.03 | J112: 117.93 | K112: 119.82 | L112: 121.88 | M112: 117.75 | N112: 113.8 | O112: 52675400 | P112: 0.49%
A113: 103 | B113: Power | C113: NTPC | D113: 2021-02-25 | E113: 98.40 | F113: 97.83 | G113: 96.12 | H113: 93.83 | I113: 92.12 | J113: 100.12 | K113: 101.83 | L113: 104.12 | M113: 99.55 | N113: 95.55 | O113: 82222500 | P113: 5.59%
A114: 104 | B114: Oil_Gas | C114: ONGC | D114: 2021-02-25 | E114: 102.40 | F114: 101.27 | G114: 98.88 | H114: 95.37 | I114: 92.98 | J114: 104.78 | K114: 107.17 | L114: 110.68 | M114: 103.65 | N114: 97.75 | O114: 55255200 | P114: 6.17%
A115: 105 | B115: Textile | C115: PAGEIND | D115: 2021-02-25 | E115: 29325.90 | F115: 29547.52 | G115: 28841.58 | H115: 28357.27 | I115: 27651.33 | J115: 30031.83 | K115: 30737.77 | L115: 31222.08 | M115: 30253.45 | N115: 29063.2 | O115: 95670 | P115: 1.69%
A116: 106 | B116: Pharma | C116: PEL | D116: 2021-02-25 | E116: 1849.40 | F116: 1836.13 | G116: 1803.42 | H116: 1757.43 | I116: 1724.72 | J116: 1882.12 | K116: 1914.83 | L116: 1960.82 | M116: 1868.85 | N116: 1790.15 | O116: 4370300 | P116: -0.30%
A117: 107 | B117: Oil_Gas | C117: PETRONET | D117: 2021-02-25 | E117: 243.00 | F117: 243.55 | G117: 241.20 | H117: 239.40 | I117: 237.05 | J117: 245.35 | K117: 247.70 | L117: 249.50 | M117: 245.9 | N117: 241.75 | O117: 16950000 | P117: -4.50%
A118: 108 | B118: Finance | C118: PFC | D118: 2021-02-25 | E118: 134.30 | F118: 134.37 | G118: 132.28 | H118: 130.27 | I118: 128.18 | J118: 136.38 | K118: 138.47 | L118: 140.48 | M118: 136.45 | N118: 132.35 | O118: 31421600 | P118: 1.14%
A119: 109 | B119: FMCG | C119: PIDILITIND | D119: 2021-02-25 | E119: 1793.40 | F119: 1786.45 | G119: 1773.95 | H119: 1754.50 | I119: 1742.00 | J119: 1805.90 | K119: 1818.40 | L119: 1837.85 | M119: 1798.95 | N119: 1767 | O119: 2387500 | P119: -4.39%
A120: 110 | B120: Banking | C120: PNB | D120: 2021-02-25 | E120: 39.65 | F120: 39.83 | G120: 38.92 | H120: 38.18 | I120: 37.27 | J120: 40.57 | K120: 41.48 | L120: 42.22 | M120: 40.75 | N120: 39.1 | O120: 200304000 | P120: -2.50%
A121: 111 | B121: Power | C121: POWERGRID | D121: 2021-02-25 | E121: 225.50 | F121: 222.95 | G121: 216.10 | H121: 206.70 | I121: 199.85 | J121: 232.35 | K121: 239.20 | L121: 248.60 | M121: 229.8 | N121: 213.55 | O121: 18356000 | P121: 5.83%
A122: 112 | B122: Media | C122: PVR | D122: 2021-02-25 | E122: 1477.30 | F122: 1477.07 | G122: 1458.23 | H122: 1439.17 | I122: 1420.33 | J122: 1496.13 | K122: 1514.97 | L122: 1534.03 | M122: 1495.9 | N122: 1458 | O122: 1917377 | P122: 1.01%
A123: 113 | B123: Cement | C123: RAMCOCEM | D123: 2021-02-25 | E123: 991.05 | F123: 989.25 | G123: 977.00 | H123: 962.95 | I123: 950.70 | J123: 1003.30 | K123: 1015.55 | L123: 1029.60 | M123: 1001.5 | N123: 975.2 | O123: 1613300 | P123: -4.14%
A124: 114 | B124: Banking | C124: RBLBANK | D124: 2021-02-25 | E124: 259.15 | F124: 257.08 | G124: 251.37 | H124: 243.58 | I124: 237.87 | J124: 264.87 | K124: 270.58 | L124: 278.37 | M124: 262.8 | N124: 249.3 | O124: 24873300 | P124: -7.22%
A125: 115 | B125: Power | C125: RECLTD | D125: 2021-02-25 | E125: 154.30 | F125: 154.80 | G125: 152.60 | H125: 150.90 | I125: 148.70 | J125: 156.50 | K125: 158.70 | L125: 160.40 | M125: 157 | N125: 153.1 | O125: 14946000 | P125: 3.15%
A126: 116 | B126: Oil_Gas | C126: RELIANCE | D126: 2021-02-25 | E126: 2067.30 | F126: 2065.12 | G126: 2042.88 | H126: 2018.47 | I126: 1996.23 | J126: 2089.53 | K126: 2111.77 | L126: 2136.18 | M126: 2087.35 | N126: 2040.7 | O126: 29361750 | P126: 0.74%
A127: 117 | B127: Metals | C127: SAIL | D127: 2021-02-25 | E127: 64.80 | F127: 64.72 | G127: 62.93 | H127: 61.07 | I127: 59.28 | J127: 66.58 | K127: 68.37 | L127: 70.23 | M127: 66.5 | N127: 62.85 | O127: 116280000 | P127: -3.42%
A128: 118 | B128: Finance | C128: SBILIFE | D128: 2021-02-25 | E128: 875.60 | F128: 878.90 | G128: 868.70 | H128: 861.80 | I128: 851.60 | J128: 885.80 | K128: 896.00 | L128: 902.90 | M128: 889.1 | N128: 872 | O128: 5757750 | P128: 0.41%
A129: 119 | B129: Banking | C129: SBIN | D129: 2021-02-25 | E129: 404.25 | F129: 407.57 | G129: 398.08 | H129: 391.92 | I129: 382.43 | J129: 413.73 | K129: 423.22 | L129: 429.38 | M129: 417.05 | N129: 401.4 | O129: 98091000 | P129: 0.31%
A130: 120 | B130: Cement | C130: SHREECEM | D130: 2021-02-25 | E130: 28648.20 | F130: 28774.38 | G130: 28398.82 | H130: 28149.43 | I130: 27773.87 | J130: 29023.77 | K130: 29399.33 | L130: 29648.72 | M130: 29149.95 | N130: 28525 | O130: 147100 | P130: -0.71%
A131: 121 | B131: Capital_Goods | C131: SIEMENS | D131: 2021-02-25 | E131: 1838.10 | F131: 1857.40 | G131: 1797.00 | H131: 1755.90 | I131: 1695.50 | J131: 1898.50 | K131: 1958.90 | L131: 2000.00 | M131: 1917.8 | N131: 1816.3 | O131: 852500 | P131: 10.48%
A132: 122 | B132: Textile | C132: SRF | D132: 2021-02-25 | E132: 5807.55 | F132: 5764.80 | G132: 5680.75 | H132: 5553.95 | I132: 5469.90 | J132: 5891.60 | K132: 5975.65 | L132: 6102.45 | M132: 5848.85 | N132: 5638 | O132: 338750 | P132: 6.48%
A133: 123 | B133: Finance | C133: SRTRANSFIN | D133: 2021-02-25 | E133: 1483.25 | F133: 1489.35 | G133: 1455.90 | H133: 1428.55 | I133: 1395.10 | J133: 1516.70 | K133: 1550.15 | L133: 1577.50 | M133: 1522.8 | N133: 1462 | O133: 4703200 | P133: -6.46%
A134: 124 | B134: Pharma | C134: SUNPHARMA | D134: 2021-02-25 | E134: 632.65 | F134: 630.13 | G134: 625.27 | H134: 617.88 | I134: 613.02 | J134: 637.52 | K134: 642.38 | L134: 649.77 | M134: 635 | N134: 622.75 | O134: 44560600 | P134: -2.01%
A135: 125 | B135: Media | C135: SUNTV | D135: 2021-02-25 | E135: 512.95 | F135: 514.30 | G135: 508.75 | H135: 504.55 | I135: 499.00 | J135: 518.50 | K135: 524.05 | L135: 528.25 | M135: 519.85 | N135: 510.1 | O135: 10573500 | P135: 1.03%
A136: 126 | B136: Fertilisers | C136: TATACHEM | D136: 2021-02-25 | E136: 586.50 | F136: 582.97 | G136: 573.98 | H136: 561.47 | I136: 552.48 | J136: 595.48 | K136: 604.47 | L136: 616.98 | M136: 591.95 | N136: 570.45 | O136: 9804000 | P136: 3.27%
A137: 127 | B137: Others | C137: TATACONSUM | D137: 2021-02-25 | E137: 629.10 | F137: 627.40 | G137: 619.80 | H137: 610.50 | I137: 602.90 | J137: 636.70 | K137: 644.30 | L137: 653.60 | M137: 635 | N137: 618.1 | O137: 14207400 | P137: -1.19%
A138: 128 | B138: Automobile | C138: TATAMOTORS | D138: 2021-02-25 | E138: 330.20 | F138: 332.52 | G138: 326.08 | H138: 321.97 | I138: 315.53 | J138: 336.63 | K138: 343.07 | L138: 347.18 | M138: 338.95 | N138: 328.4 | O138: 81555600 | P138: 1.87%
A139: 129 | B139: Power | C139: TATAPOWER | D139: 2021-02-25 | E139: 90.70 | F139: 89.60 | G139: 87.90 | H139: 85.10 | I139: 83.40 | J139: 92.40 | K139: 94.10 | L139: 96.90 | M139: 91.3 | N139: 86.8 | O139: 127129500 | P139: 3.36%
A140: 130 | B140: Metals | C140: TATASTEEL | D140: 2021-02-25 | E140: 701.90 | F140: 695.10 | G140: 678.70 | H140: 655.50 | I140: 639.10 | J140: 718.30 | K140: 734.70 | L140: 757.90 | M140: 711.5 | N140: 671.9 | O140: 43266700 | P140: 2.59%
A141: 131 | B141: Technology | C141: TCS | D141: 2021-02-25 | E141: 3121.55 | F141: 3136.50 | G141: 3095.60 | H141: 3069.65 | I141: 3028.75 | J141: 3162.45 | K141: 3203.35 | L141: 3229.30 | M141: 3177.4 | N141: 3110.55 | O141: 7384500 | P141: 9.55%
A142: 132 | B142: Technology | C142: TECHM | D142: 2021-02-25 | E142: 990.90 | F142: 989.92 | G142: 978.33 | H142: 965.77 | I142: 954.18 | J142: 1002.48 | K142: 1014.07 | L142: 1026.63 | M142: 1001.5 | N142: 977.35 | O142: 12176400 | P142: 3.25%
A143: 133 | B143: FMCG | C143: TITAN | D143: 2021-02-25 | E143: 1478.75 | F143: 1483.78 | G143: 1460.97 | H143: 1443.18 | I143: 1420.37 | J143: 1501.57 | K143: 1524.38 | L143: 1542.17 | M143: 1506.6 | N143: 1466 | O143: 7106250 | P143: 1.07%
A144: 134 | B144: Pharma | C144: TORNTPHARM | D144: 2021-02-25 | E144: 2601.60 | F144: 2601.65 | G144: 2582.20 | H144: 2562.80 | I144: 2543.35 | J144: 2621.05 | K144: 2640.50 | L144: 2659.90 | M144: 2621.1 | N144: 2582.25 | O144: 1169750 | P144: -0.21%
A145: 135 | B145: Power | C145: TORNTPOWER | D145: 2021-02-25 | E145: 345.30 | F145: 340.27 | G145: 333.43 | H145: 321.57 | I145: 314.73 | J145: 352.13 | K145: 358.97 | L145: 370.83 | M145: 347.1 | N145: 328.4 | O145: 4287000 | P145: -12.33%
A146: 136 | B146: Automobile | C146: TVSMOTOR | D146: 2021-02-25 | E146: 631.75 | F146: 634.00 | G146: 624.00 | H146: 616.25 | I146: 606.25 | J146: 641.75 | K146: 651.75 | L146: 659.50 | M146: 644 | N146: 626.25 | O146: 4386200 | P146: 4.16%
A147: 137 | B147: FMCG | C147: UBL | D147: 2021-02-25 | E147: 1273.65 | F147: 1276.62 | G147: 1257.68 | H147: 1241.72 | I147: 1222.78 | J147: 1292.58 | K147: 1311.52 | L147: 1327.48 | M147: 1295.55 | N147: 1260.65 | O147: 1223600 | P147: 1.33%
A148: 138 | B148: Cement | C148: ULTRACEMCO | D148: 2021-02-25 | E148: 6486.70 | F148: 6497.33 | G148: 6416.47 | H148: 6346.23 | I148: 6265.37 | J148: 6567.57 | K148: 6648.43 | L148: 6718.67 | M148: 6578.2 | N148: 6427.1 | O148: 1424000 | P148: 3.53%
A149: 139 | B149: Fertilisers | C149: UPL | D149: 2021-02-25 | E149: 541.10 | F149: 542.17 | G149: 537.03 | H149: 532.97 | I149: 527.83 | J149: 546.23 | K149: 551.37 | L149: 555.43 | M149: 547.3 | N149: 538.1 | O149: 18759000 | P149: 0.51%
A150: 140 | B150: Metals | C150: VEDL | D150: 2021-02-25 | E150: 191.10 | F150: 189.88 | G150: 185.82 | H150: 180.53 | I150: 176.47 | J150: 195.17 | K150: 199.23 | L150: 204.52 | M150: 193.95 | N150: 184.6 | O150: 89540400 | P150: 1.98%
A151: 141 | B151: Capital_Goods | C151: VOLTAS | D151: 2021-02-25 | E151: 1042.60 | F151: 1050.13 | G151: 1022.12 | H151: 1001.63 | I151: 973.62 | J151: 1070.62 | K151: 1098.63 | L151: 1119.12 | M151: 1078.15 | N151: 1029.65 | O151: 2631000 | P151: -31.25%
A152: 142 | B152: Technology | C152: WIPRO | D152: 2021-02-25 | E152: 437.45 | F152: 439.50 | G152: 431.85 | H152: 426.25 | I152: 418.60 | J152: 445.10 | K152: 452.75 | L152: 458.35 | M152: 447.15 | N152: 433.9 | O152: 33417600 | P152: 3.95%
A153: 143 | B153: Media | C153: ZEEL | D153: 2021-02-25 | E153: 206.45 | F153: 207.98 | G153: 201.72 | H153: 196.98 | I153: 190.72 | J153: 212.72 | K153: 218.98 | L153: 223.72 | M153: 214.25 | N153: 203.25 | O153: 39498000 | P153: -1.60%
A154: 144
A155: 145
A156: 146
A157: 147
A175: Pivot Point: This is trigger point for intra day buy/sell based on the price range of the previous day
A176: As per the tool,the trader should take BUY position just above Pivot and keep the stop loss of pivot point and the first target would be Resistance 1(R1)
A177: If R1 is crossed then R2 becomes the next target with stop loss of at R1
A178: Similarly if price goes below pivot point then the trader should sell and keep a stop loss of pivot point and the first target would be S1
A179: If S1 is crossed then S2 becomes the next target with stop loss of at S1
A181: Disclaimer:
A182: This document has been prepared by the Retail Research Desk of Asit C Mehta
A183: Investment Intermediates Ltd. and is meant for use of the recipient only
A184: and is not for circulation. This document is not to be reported or
A185: copied or made available to others. It should not be considered to be
A186: taken as an offer to sell or a solicitation to buy any security. The
A187: information contained herein is from sources believed reliable. We do
A188: not represent that it is accurate or complete and it should not be
A189: relied upon as such. We may from time to time have positions in and buy
A190: and sell securities referred to herein

Sheet Cash Intra
M5: Back to Main Page
A6: FOR INTRA DAY TRADING | K6: =Main!B10 -> 2021-02-17
A8: Sr.no | B8: Scrip | C8: CLOSE RATE | D8: Pivot Point | E8: Supports | H8: Resistances
C9: Point | E9: S1 | F9: S2 | G9: S3 | H9: R1 | I9: R2 | J9: R3 | K9: HIGH | L9: LOW | M9: Total Trade Quanity in Lakhs
A10: 1 | B10: Nifty 50 | C10: 15313.45 | D10: 15329.13 | E10: 15226.52 | F10: 15139.58 | G10: 15036.97 | H10: 15416.07 | I10: 15518.68 | J10: 15605.62 | K10: 15431.75 | L10: 15242.2
A11: 2 | B11: Nifty Bank | C11: 37098.4 | D11: 37189.97 | E11: 36671.18 | F11: 36243.97 | G11: 35725.18 | H11: 37617.18 | I11: 38135.97 | J11: 38563.18 | K11: 37708.75 | L11: 36762.75
A12: 3 | B12: Nifty CPSE | C12: 1747.3 | D12: 1736.42 | E12: 1712.83 | F12: 1678.37 | G12: 1654.78 | H12: 1770.88 | I12: 1794.47 | J12: 1828.93 | K12: 1760 | L12: 1701.95
A13: 4 | B13: Nifty Infra | C13: 4177.6 | D13: 4174.17 | E13: 4147.73 | F13: 4117.87 | G13: 4091.43 | H13: 4204.03 | I13: 4230.47 | J13: 4260.33 | K13: 4200.6 | L13: 4144.3
A14: 5 | B14: Nifty IT | C14: 25613.95 | D14: 25767.25 | E14: 25366.65 | F14: 25119.35 | G14: 24718.75 | H14: 26014.55 | I14: 26415.15 | J14: 26662.45 | K14: 26167.85 | L14: 25519.95
A15: 6 | B15: Nifty PSE | C15: 3050.65 | D15: 3036.90 | E15: 3007.20 | F15: 2963.75 | G15: 2934.05 | H15: 3080.35 | I15: 3110.05 | J15: 3153.50 | K15: 3066.6 | L15: 2993.45
A16: 7 | B16: Nifty Midcap 50 | C16: 6885.5 | D16: 6876.45 | E16: 6830.65 | F16: 6775.80 | G16: 6730.00 | H16: 6931.30 | I16: 6977.10 | J16: 7031.95 | K16: 6922.25 | L16: 6821.6
A17: 8 | B17: ACC | C17: 1819.3 | D17: 1815.93 | E17: 1788.32 | F17: 1757.33 | G17: 1729.72 | H17: 1846.92 | I17: 1874.53 | J17: 1905.52 | K17: 1843.55 | L17: 1784.95 | M17: 19.3773
A18: 9 | B18: AUBANK | C18: 1092.75 | D18: 1098.68 | E18: 1069.37 | F18: 1045.98 | G18: 1016.67 | H18: 1122.07 | I18: 1151.38 | J18: 1174.77 | K18: 1128 | L18: 1075.3 | M18: 4.55426
A19: 10 | B19: AARTIIND | C19: 1227.9 | D19: 1222.20 | E19: 1213.70 | F19: 1199.50 | G19: 1191.00 | H19: 1236.40 | I19: 1244.90 | J19: 1259.10 | K19: 1230.7 | L19: 1208 | M19: 2.60347
A20: 11 | B20: ABBOTINDIA | C20: 14700.7 | D20: 14634.90 | E20: 14530.80 | F20: 14360.90 | G20: 14256.80 | H20: 14804.80 | I20: 14908.90 | J20: 15078.80 | K20: 14739 | L20: 14465 | M20: 0.23617
A21: 12 | B21: ADANIENT | C21: 780.2 | D21: 779.80 | E21: 756.65 | F21: 733.10 | G21: 709.95 | H21: 803.35 | I21: 826.50 | J21: 850.05 | K21: 802.95 | L21: 756.25 | M21: 194.26061
A22: 13 | B22: ADANIGREEN | C22: 1078.3 | D22: 1080.10 | E22: 1047.20 | F22: 1016.10 | G22: 983.20 | H22: 1111.20 | I22: 1144.10 | J22: 1175.20 | K22: 1113 | L22: 1049 | M22: 51.82242
A23: 14 | B23: ADANIPORTS | C23: 636.55 | D23: 636.03 | E23: 628.57 | F23: 620.58 | G23: 613.12 | H23: 644.02 | I23: 651.48 | J23: 659.47 | K23: 643.5 | L23: 628.05 | M23: 151.20148
A24: 15 | B24: ATGL | C24: 497 | D24: 480.97 | E24: 453.03 | F24: 409.07 | G24: 381.13 | H24: 524.93 | I24: 552.87 | J24: 596.83 | K24: 508.9 | L24: 437 | M24: 90.04169
A25: 16 | B25: ADANITRANS | C25: 763.55 | D25: 746.75 | E25: 705.80 | F25: 648.05 | G25: 607.10 | H25: 804.50 | I25: 845.45 | J25: 903.20 | K25: 787.7 | L25: 689 | M25: 46.52336
A26: 17 | B26: ABCAPITAL | C26: 97.75 | D26: 98.02 | E26: 94.18 | F26: 90.62 | G26: 86.78 | H26: 101.58 | I26: 105.42 | J26: 108.98 | K26: 101.85 | L26: 94.45 | M26: 198.06981
A27: 18 | B27: ABFRL | C27: 164.85 | D27: 165.37 | E27: 162.48 | F27: 160.12 | G27: 157.23 | H27: 167.73 | I27: 170.62 | J27: 172.98 | K27: 168.25 | L27: 163 | M27: 13.17403
A28: 19 | B28: AJANTPHARM | C28: 1803.1 | D28: 1804.42 | E28: 1790.93 | F28: 1778.77 | G28: 1765.28 | H28: 1816.58 | I28: 1830.07 | J28: 1842.23 | K28: 1817.9 | L28: 1792.25 | M28: 0.56789
A29: 20 | B29: APLLTD | C29: 960.9 | D29: 966.98 | E29: 949.97 | F29: 939.03 | G29: 922.02 | H29: 977.92 | I29: 994.93 | J29: 1005.87 | K29: 984 | L29: 956.05 | M29: 2.39259
A30: 21 | B30: ALKEM | C30: 2876.2 | D30: 2885.10 | E30: 2852.10 | F30: 2828.00 | G30: 2795.00 | H30: 2909.20 | I30: 2942.20 | J30: 2966.30 | K30: 2918.1 | L30: 2861 | M30: 0.8748
A31: 22 | B31: AMARAJABAT | C31: 907.9 | D31: 915.62 | E31: 896.28 | F31: 884.67 | G31: 865.33 | H31: 927.23 | I31: 946.57 | J31: 958.18 | K31: 934.95 | L31: 904 | M31: 22.37254
A32: 23 | B32: AMBUJACEM | C32: 284.05 | D32: 283.85 | E32: 280.40 | F32: 276.75 | G32: 273.30 | H32: 287.50 | I32: 290.95 | J32: 294.60 | K32: 287.3 | L32: 280.2 | M32: 61.16048
A33: 24 | B33: APOLLOHOSP | C33: 3202.75 | D33: 3167.77 | E33: 3081.98 | F33: 2961.22 | G33: 2875.43 | H33: 3288.53 | I33: 3374.32 | J33: 3495.08 | K33: 3253.55 | L33: 3047 | M33: 43.81584
A34: 25 | B34: APOLLOTYRE | C34: 236.25 | D34: 236.47 | E34: 232.38 | F34: 228.52 | G34: 224.43 | H34: 240.33 | I34: 244.42 | J34: 248.28 | K34: 240.55 | L34: 232.6 | M34: 87.06612
A35: 26 | B35: ASHOKLEY | C35: 128.75 | D35: 129.53 | E35: 126.97 | F35: 125.18 | G35: 122.62 | H35: 131.32 | I35: 133.88 | J35: 135.67 | K35: 132.1 | L35: 127.75 | M35: 227.87254
A36: 27 | B36: ASIANPAINT | C36: 2450.25 | D36: 2449.12 | E36: 2423.13 | F36: 2396.02 | G36: 2370.03 | H36: 2476.23 | I36: 2502.22 | J36: 2529.33 | K36: 2475.1 | L36: 2422 | M36: 16.15849
A37: 28 | B37: AUROPHARMA | C37: 935.85 | D37: 934.08 | E37: 925.47 | F37: 915.08 | G37: 906.47 | H37: 944.47 | I37: 953.08 | J37: 963.47 | K37: 942.7 | L37: 923.7 | M37: 18.26339
A38: 29 | B38: DMART | C38: 3130.85 | D38: 3110.60 | E38: 3066.20 | F38: 3001.55 | G38: 2957.15 | H38: 3175.25 | I38: 3219.65 | J38: 3284.30 | K38: 3155 | L38: 3045.95 | M38: 7.92804
A39: 30 | B39: AXISBANK | C39: 775.05 | D39: 780.35 | E39: 761.70 | F39: 748.35 | G39: 729.70 | H39: 793.70 | I39: 812.35 | J39: 825.70 | K39: 799 | L39: 767 | M39: 239.68943
A40: 31 | B40: BAJAJ-AUTO | C40: 4132.85 | D40: 4144.82 | E40: 4112.03 | F40: 4091.22 | G40: 4058.43 | H40: 4165.63 | I40: 4198.42 | J40: 4219.23 | K40: 4177.6 | L40: 4124 | M40: 3.1828
A41: 32 | B41: BAJFINANCE | C41: 5760.25 | D41: 5757.58 | E41: 5692.97 | F41: 5625.68 | G41: 5561.07 | H41: 5824.87 | I41: 5889.48 | J41: 5956.77 | K41: 5822.2 | L41: 5690.3 | M41: 21.2681
A42: 33 | B42: BAJAJFINSV | C42: 10460.6 | D42: 10451.20 | E42: 10370.40 | F42: 10280.20 | G42: 10199.40 | H42: 10541.40 | I42: 10622.20 | J42: 10712.40 | K42: 10532 | L42: 10361 | M42: 3.58604
A43: 34 | B43: BAJAJHLDNG | C43: 3618.95 | D43: 3603.38 | E43: 3565.87 | F43: 3512.78 | G43: 3475.27 | H43: 3656.47 | I43: 3693.98 | J43: 3747.07 | K43: 3640.9 | L43: 3550.3 | M43: 0.29612
A44: 35 | B44: BALKRISIND | C44: 1621.55 | D44: 1632.03 | E44: 1602.52 | F44: 1583.48 | G44: 1553.97 | H44: 1651.07 | I44: 1680.58 | J44: 1699.62 | K44: 1661.55 | L44: 1613 | M44: 10.12966
A45: 36 | B45: BANDHANBNK | C45: 350.15 | D45: 346.42 | E45: 340.23 | F45: 330.32 | G45: 324.13 | H45: 356.33 | I45: 362.52 | J45: 372.43 | K45: 352.6 | L45: 336.5 | M45: 131.33247
A46: 37 | B46: BANKBARODA | C46: 79.7 | D46: 80.02 | E46: 78.28 | F46: 76.87 | G46: 75.13 | H46: 81.43 | I46: 83.17 | J46: 84.58 | K46: 81.75 | L46: 78.6 | M46: 448.03164
A47: 38 | B47: BANKINDIA | C47: 70.6 | D47: 67.83 | E47: 65.07 | F47: 59.53 | G47: 56.77 | H47: 73.37 | I47: 76.13 | J47: 81.67 | K47: 70.6 | L47: 62.3 | M47: 573.5488
A48: 39 | B48: BATAINDIA | C48: 1524.65 | D48: 1536.55 | E48: 1509.10 | F48: 1493.55 | G48: 1466.10 | H48: 1552.10 | I48: 1579.55 | J48: 1595.10 | K48: 1564 | L48: 1521 | M48: 4.26008
A49: 40 | B49: BERGEPAINT | C49: 759.55 | D49: 760.98 | E49: 750.17 | F49: 740.78 | G49: 729.97 | H49: 770.37 | I49: 781.18 | J49: 790.57 | K49: 771.8 | L49: 751.6 | M49: 11.8825
A50: 41 | B50: BEL | C50: 133.15 | D50: 134.72 | E50: 130.98 | F50: 128.82 | G50: 125.08 | H50: 136.88 | I50: 140.62 | J50: 142.78 | K50: 138.45 | L50: 132.55 | M50: 162.38431
A51: 42 | B51: BHARATFORG | C51: 630.75 | D51: 630.82 | E51: 621.93 | F51: 613.12 | G51: 604.23 | H51: 639.63 | I51: 648.52 | J51: 657.33 | K51: 639.7 | L51: 622 | M51: 22.09598
A52: 43 | B52: BHEL | C52: 39.9 | D52: 39.43 | E52: 38.87 | F52: 37.83 | G52: 37.27 | H52: 40.47 | I52: 41.03 | J52: 42.07 | K52: 40 | L52: 38.4 | M52: 467.59963
A53: 44 | B53: BPCL | C53: 417.95 | D53: 418.92 | E53: 415.23 | F53: 412.52 | G53: 408.83 | H53: 421.63 | I53: 425.32 | J53: 428.03 | K53: 422.6 | L53: 416.2 | M53: 53.97662
A54: 45 | B54: BHARTIARTL | C54: 593.95 | D54: 596.18 | E54: 590.77 | F54: 587.58 | G54: 582.17 | H54: 599.37 | I54: 604.78 | J54: 607.97 | K54: 601.6 | L54: 593 | M54: 147.87224
A55: 46 | B55: BIOCON | C55: 417.4 | D55: 414.08 | E55: 409.57 | F55: 401.73 | G55: 397.22 | H55: 421.92 | I55: 426.43 | J55: 434.27 | K55: 418.6 | L55: 406.25 | M55: 54.07782
A56: 47 | B56: BBTC | C56: 1200.65 | D56: 1202.98 | E56: 1187.07 | F56: 1173.48 | G56: 1157.57 | H56: 1216.57 | I56: 1232.48 | J56: 1246.07 | K56: 1218.9 | L56: 1189.4 | M56: 0.43151
A57: 48 | B57: BOSCHLTD | C57: 15579.6 | D57: 15586.50 | E57: 15323.10 | F57: 15066.60 | G57: 14803.20 | H57: 15843.00 | I57: 16106.40 | J57: 16362.90 | K57: 15849.9 | L57: 15330 | M57: 0.58454
A58: 49 | B58: BRITANNIA | C58: 3389.45 | D58: 3402.28 | E58: 3372.22 | F58: 3354.98 | G58: 3324.92 | H58: 3419.52 | I58: 3449.58 | J58: 3466.82 | K58: 3432.35 | L58: 3385.05 | M58: 6.93631
A59: 50 | B59: CESC | C59: 618.1 | D59: 621.10 | E59: 614.00 | F59: 609.90 | G59: 602.80 | H59: 625.20 | I59: 632.30 | J59: 636.40 | K59: 628.2 | L59: 617 | M59: 1.848
A60: 51 | B60: CADILAHC | C60: 468.9 | D60: 468.90 | E60: 463.35 | F60: 457.80 | G60: 452.25 | H60: 474.45 | I60: 480.00 | J60: 485.55 | K60: 474.45 | L60: 463.35 | M60: 33.92787
A61: 52 | B61: CANBK | C61: 162.6 | D61: 162.88 | E61: 159.82 | F61: 157.03 | G61: 153.97 | H61: 165.67 | I61: 168.73 | J61: 171.52 | K61: 165.95 | L61: 160.1 | M61: 287.11074
A62: 53 | B62: CASTROLIND | C62: 126.65 | D62: 126.67 | E62: 125.13 | F62: 123.62 | G62: 122.08 | H62: 128.18 | I62: 129.72 | J62: 131.23 | K62: 128.2 | L62: 125.15 | M62: 11.00161
A63: 54 | B63: CHOLAFIN | C63: 528.05 | D63: 527.37 | E63: 517.73 | F63: 507.42 | G63: 497.78 | H63: 537.68 | I63: 547.32 | J63: 557.63 | K63: 537 | L63: 517.05 | M63: 104.86006
A64: 55 | B64: CIPLA | C64: 848.35 | D64: 847.28 | E64: 842.32 | F64: 836.28 | G64: 831.32 | H64: 853.32 | I64: 858.28 | J64: 864.32 | K64: 852.25 | L64: 841.25 | M64: 28.08115
A65: 56 | B65: CUB | C65: 165.75 | D65: 167.53 | E65: 162.62 | F65: 159.48 | G65: 154.57 | H65: 170.67 | I65: 175.58 | J65: 178.72 | K65: 172.45 | L65: 164.4 | M65: 56.45652
A66: 57 | B66: COALINDIA | C66: 133.75 | D66: 133.82 | E66: 132.23 | F66: 130.72 | G66: 129.13 | H66: 135.33 | I66: 136.92 | J66: 138.43 | K66: 135.4 | L66: 132.3 | M66: 117.35144
A67: 58 | B67: COFORGE | C67: 2622.05 | D67: 2618.70 | E67: 2584.40 | F67: 2546.75 | G67: 2512.45 | H67: 2656.35 | I67: 2690.65 | J67: 2728.30 | K67: 2653 | L67: 2581.05 | M67: 3.41414
A68: 59 | B68: COLPAL | C68: 1581.05 | D68: 1585.55 | E68: 1563.45 | F68: 1545.85 | G68: 1523.75 | H68: 1603.15 | I68: 1625.25 | J68: 1642.85 | K68: 1607.65 | L68: 1567.95 | M68: 2.98723
A69: 60 | B69: CONCOR | C69: 537.15 | D69: 537.42 | E69: 528.33 | F69: 519.52 | G69: 510.43 | H69: 546.23 | I69: 555.32 | J69: 564.13 | K69: 546.5 | L69: 528.6 | M69: 31.75417
A70: 61 | B70: COROMANDEL | C70: 782.8 | D70: 781.22 | E70: 775.68 | F70: 768.57 | G70: 763.03 | H70: 788.33 | I70: 793.87 | J70: 800.98 | K70: 786.75 | L70: 774.1 | M70: 5.71802
A71: 62 | B71: CROMPTON | C71: 397.7 | D71: 396.77 | E71: 392.93 | F71: 388.17 | G71: 384.33 | H71: 401.53 | I71: 405.37 | J71: 410.13 | K71: 400.6 | L71: 392 | M71: 38.72811
A72: 63 | B72: CUMMINSIND | C72: 766.35 | D72: 768.07 | E72: 759.83 | F72: 753.32 | G72: 745.08 | H72: 774.58 | I72: 782.82 | J72: 789.33 | K72: 776.3 | L72: 761.55 | M72: 12.93232
A73: 64 | B73: DLF | C73: 319 | D73: 320.90 | E73: 313.60 | F73: 308.20 | G73: 300.90 | H73: 326.30 | I73: 333.60 | J73: 339.00 | K73: 328.2 | L73: 315.5 | M73: 193.00639
A74: 65 | B74: DABUR | C74: 522.6 | D74: 525.25 | E74: 517.75 | F74: 512.90 | G74: 505.40 | H74: 530.10 | I74: 537.60 | J74: 542.45 | K74: 532.75 | L74: 520.4 | M74: 31.19109
A75: 66 | B75: DALBHARAT | C75: 1444.8 | D75: 1436.62 | E75: 1376.23 | F75: 1307.67 | G75: 1247.28 | H75: 1505.18 | I75: 1565.57 | J75: 1634.13 | K75: 1497 | L75: 1368.05 | M75: 3.06389
A76: 67 | B76: DHANI | C76: 364.95 | D76: 363.33 | E76: 356.67 | F76: 348.38 | G76: 341.72 | H76: 371.62 | I76: 378.28 | J76: 386.57 | K76: 370 | L76: 355.05 | M76: 9.78217
A77: 68 | B77: DIVISLAB | C77: 3686.5 | D77: 3690.65 | E77: 3661.85 | F77: 3637.20 | G77: 3608.40 | H77: 3715.30 | I77: 3744.10 | J77: 3768.75 | K77: 3719.45 | L77: 3666 | M77: 3.92393
A78: 69 | B78: LALPATHLAB | C78: 2387.85 | D78: 2402.10 | E78: 2365.80 | F78: 2343.75 | G78: 2307.45 | H78: 2424.15 | I78: 2460.45 | J78: 2482.50 | K78: 2438.4 | L78: 2380.05 | M78: 0.84198
A79: 70 | B79: DRREDDY | C79: 4696.6 | D79: 4709.40 | E79: 4657.20 | F79: 4617.80 | G79: 4565.60 | H79: 4748.80 | I79: 4801.00 | J79: 4840.40 | K79: 4761.6 | L79: 4670 | M79: 8.1294
A80: 71 | B80: EDELWEISS | C80: 66.8 | D80: 67.43 | E80: 65.37 | F80: 63.93 | G80: 61.87 | H80: 68.87 | I80: 70.93 | J80: 72.37 | K80: 69.5 | L80: 66 | M80: 30.87502
A81: 72 | B81: EICHERMOT | C81: 2726.95 | D81: 2732.52 | E81: 2686.88 | F81: 2646.82 | G81: 2601.18 | H81: 2772.58 | I81: 2818.22 | J81: 2858.28 | K81: 2778.15 | L81: 2692.45 | M81: 15.25475
A82: 73 | B82: EMAMILTD | C82: 478.3 | D82: 474.60 | E82: 468.30 | F82: 458.30 | G82: 452.00 | H82: 484.60 | I82: 490.90 | J82: 500.90 | K82: 480.9 | L82: 464.6 | M82: 4.22475
A83: 74 | B83: ENDURANCE | C83: 1471.5 | D83: 1480.45 | E83: 1452.05 | F83: 1432.60 | G83: 1404.20 | H83: 1499.90 | I83: 1528.30 | J83: 1547.75 | K83: 1508.85 | L83: 1461 | M83: 0.65865
A84: 75 | B84: ESCORTS | C84: 1391.05 | D84: 1392.05 | E84: 1379.10 | F84: 1367.15 | G84: 1354.20 | H84: 1404.00 | I84: 1416.95 | J84: 1428.90 | K84: 1405 | L84: 1380.1 | M84: 9.36005
A85: 76 | B85: EXIDEIND | C85: 211.4 | D85: 211.27 | E85: 208.13 | F85: 204.87 | G85: 201.73 | H85: 214.53 | I85: 217.67 | J85: 220.93 | K85: 214.4 | L85: 208 | M85: 58.7337
A86: 77 | B86: FEDERALBNK | C86: 85.4 | D86: 85.60 | E86: 83.95 | F86: 82.50 | G86: 80.85 | H86: 87.05 | I86: 88.70 | J86: 90.15 | K86: 87.25 | L86: 84.15 | M86: 278.05881
A87: 78 | B87: FORTIS | C87: 162.7 | D87: 163.72 | E87: 160.58 | F87: 158.47 | G87: 155.33 | H87: 165.83 | I87: 168.97 | J87: 171.08 | K87: 166.85 | L87: 161.6 | M87: 29.42249
A88: 79 | B88: FRETAIL | C88: 76.6 | D88: 77.27 | E88: 75.63 | F88: 74.67 | G88: 73.03 | H88: 78.23 | I88: 79.87 | J88: 80.83 | K88: 78.9 | L88: 76.3 | M88: 19.98254
A89: 80 | B89: GAIL | C89: 133.1 | D89: 133.62 | E89: 131.98 | F89: 130.87 | G89: 129.23 | H89: 134.73 | I89: 136.37 | J89: 137.48 | K89: 135.25 | L89: 132.5 | M89: 152.27589
A90: 81 | B90: GMRINFRA | C90: 25.25 | D90: 25.40 | E90: 24.90 | F90: 24.55 | G90: 24.05 | H90: 25.75 | I90: 26.25 | J90: 26.60 | K90: 25.9 | L90: 25.05 | M90: 100.48122
A91: 82 | B91: GICRE | C91: 141.95 | D91: 142.57 | E91: 140.38 | F91: 138.82 | G91: 136.63 | H91: 144.13 | I91: 146.32 | J91: 147.88 | K91: 144.75 | L91: 141 | M91: 3.12747
A92: 83 | B92: GLENMARK | C92: 503.2 | D92: 499.70 | E92: 493.60 | F92: 484.00 | G92: 477.90 | H92: 509.30 | I92: 515.40 | J92: 525.00 | K92: 505.8 | L92: 490.1 | M92: 24.96554
A93: 84 | B93: GODREJAGRO | C93: 494.85 | D93: 495.88 | E93: 490.97 | F93: 487.08 | G93: 482.17 | H93: 499.77 | I93: 504.68 | J93: 508.57 | K93: 500.8 | L93: 492 | M93: 0.84756
A94: 85 | B94: GODREJCP | C94: 721.1 | D94: 728.95 | E94: 710.20 | F94: 699.30 | G94: 680.55 | H94: 739.85 | I94: 758.60 | J94: 769.50 | K94: 747.7 | L94: 718.05 | M94: 16.30695
A95: 86 | B95: GODREJIND | C95: 446.25 | D95: 445.88 | E95: 441.47 | F95: 436.68 | G95: 432.27 | H95: 450.67 | I95: 455.08 | J95: 459.87 | K95: 450.3 | L95: 441.1 | M95: 1.22285
A96: 87 | B96: GODREJPROP | C96: 1522.8 | D96: 1518.60 | E96: 1497.20 | F96: 1471.60 | G96: 1450.20 | H96: 1544.20 | I96: 1565.60 | J96: 1591.20 | K96: 1540 | L96: 1493 | M96: 5.83114
A97: 88 | B97: GRASIM | C97: 1243.75 | D97: 1242.12 | E97: 1227.23 | F97: 1210.72 | G97: 1195.83 | H97: 1258.63 | I97: 1273.52 | J97: 1290.03 | K97: 1257 | L97: 1225.6 | M97: 15.61647
A98: 89 | B98: GUJGASLTD | C98: 440.3 | D98: 437.95 | E98: 430.90 | F98: 421.50 | G98: 414.45 | H98: 447.35 | I98: 454.40 | J98: 463.80 | K98: 445 | L98: 428.55 | M98: 6.23515
A99: 90 | B99: GSPL | C99: 236.3 | D99: 235.22 | E99: 233.33 | F99: 230.37 | G99: 228.48 | H99: 238.18 | I99: 240.07 | J99: 243.03 | K99: 237.1 | L99: 232.25 | M99: 8.89909
A100: 91 | B100: HCLTECH | C100: 952.3 | D100: 952.88 | E100: 943.52 | F100: 934.73 | G100: 925.37 | H100: 961.67 | I100: 971.03 | J100: 979.82 | K100: 962.25 | L100: 944.1 | M100: 32.77086
A101: 92 | B101: HDFCAMC | C101: 3000.55 | D101: 3009.85 | E101: 2971.70 | F101: 2942.85 | G101: 2904.70 | H101: 3038.70 | I101: 3076.85 | J101: 3105.70 | K101: 3048 | L101: 2981 | M101: 1.89278
A102: 93 | B102: HDFCBANK | C102: 1626.65 | D102: 1625.37 | E102: 1609.73 | F102: 1592.82 | G102: 1577.18 | H102: 1642.28 | I102: 1657.92 | J102: 1674.83 | K102: 1641 | L102: 1608.45 | M102: 69.48679
A103: 94 | B103: HDFCLIFE | C103: 695.35 | D103: 695.43 | E103: 686.87 | F103: 678.38 | G103: 669.82 | H103: 703.92 | I103: 712.48 | J103: 720.97 | K103: 704 | L103: 686.95 | M103: 30.66134
A104: 95 | B104: HAVELLS | C104: 1216.15 | D104: 1200.55 | E104: 1179.10 | F104: 1142.05 | G104: 1120.60 | H104: 1237.60 | I104: 1259.05 | J104: 1296.10 | K104: 1222 | L104: 1163.5 | M104: 37.15493
A105: 96 | B105: HEROMOTOCO | C105: 3461.55 | D105: 3459.62 | E105: 3433.93 | F105: 3406.32 | G105: 3380.63 | H105: 3487.23 | I105: 3512.92 | J105: 3540.53 | K105: 3485.3 | L105: 3432 | M105: 7.59332
A106: 97 | B106: HINDALCO | C106: 302.7 | D106: 301.02 | E106: 294.68 | F106: 286.67 | G106: 280.33 | H106: 309.03 | I106: 315.37 | J106: 323.38 | K106: 307.35 | L106: 293 | M106: 275.19511
A107: 98 | B107: HINDPETRO | C107: 225.65 | D107: 224.68 | E107: 222.37 | F107: 219.08 | G107: 216.77 | H107: 227.97 | I107: 230.28 | J107: 233.57 | K107: 227 | L107: 221.4 | M107: 71.11409
A108: 99 | B108: HINDUNILVR | C108: 2196.1 | D108: 2205.07 | E108: 2181.08 | F108: 2166.07 | G108: 2142.08 | H108: 2220.08 | I108: 2244.07 | J108: 2259.08 | K108: 2229.05 | L108: 2190.05 | M108: 23.96356
A109: 100 | B109: HINDZINC | C109: 304.7 | D109: 304.00 | E109: 298.15 | F109: 291.60 | G109: 285.75 | H109: 310.55 | I109: 316.40 | J109: 322.95 | K109: 309.85 | L109: 297.45 | M109: 26.91599
A110: 101 | B110: HUDCO | C110: 44.15 | D110: 44.25 | E110: 43.65 | F110: 43.15 | G110: 42.55 | H110: 44.75 | I110: 45.35 | J110: 45.85 | K110: 44.85 | L110: 43.75 | M110: 14.20764
A111: 102 | B111: HDFC | C111: 2858.65 | D111: 2864.22 | E111: 2832.43 | F111: 2806.22 | G111: 2774.43 | H111: 2890.43 | I111: 2922.22 | J111: 2948.43 | K111: 2896 | L111: 2838 | M111: 22.951
A112: 103 | B112: ICICIBANK | C112: 658.35 | D112: 662.43 | E112: 645.47 | F112: 632.58 | G112: 615.62 | H112: 675.32 | I112: 692.28 | J112: 705.17 | K112: 679.4 | L112: 649.55 | M112: 249.66739
A113: 104 | B113: ICICIGI | C113: 1504.9 | D113: 1503.82 | E113: 1488.63 | F113: 1472.37 | G113: 1457.18 | H113: 1520.08 | I113: 1535.27 | J113: 1551.53 | K113: 1519 | L113: 1487.55 | M113: 4.28431
A114: 105 | B114: ICICIPRULI | C114: 490.75 | D114: 490.78 | E114: 486.12 | F114: 481.48 | G114: 476.82 | H114: 495.42 | I114: 500.08 | J114: 504.72 | K114: 495.45 | L114: 486.15 | M114: 19.89191
A115: 106 | B115: ISEC | C115: 413.85 | D115: 415.30 | E115: 407.85 | F115: 401.85 | G115: 394.40 | H115: 421.30 | I115: 428.75 | J115: 434.75 | K115: 422.75 | L115: 409.3 | M115: 5.13669
A116: 107 | B116: IDFCFIRSTB | C116: 53.85 | D116: 53.72 | E116: 52.83 | F116: 51.82 | G116: 50.93 | H116: 54.73 | I116: 55.62 | J116: 56.63 | K116: 54.6 | L116: 52.7 | M116: 469.08035
A117: 108 | B117: ITC | C117: 218.25 | D117: 219.10 | E117: 216.40 | F117: 214.55 | G117: 211.85 | H117: 220.95 | I117: 223.65 | J117: 225.50 | K117: 221.8 | L117: 217.25 | M117: 291.48891
A118: 109 | B118: IBULHSGFIN | C118: 226.1 | D118: 224.68 | E118: 219.97 | F118: 213.83 | G118: 209.12 | H118: 230.82 | I118: 235.53 | J118: 241.67 | K118: 229.4 | L118: 218.55 | M118: 200.97806
A119: 110 | B119: INDHOTEL | C119: 126.8 | D119: 128.47 | E119: 124.33 | F119: 121.87 | G119: 117.73 | H119: 130.93 | I119: 135.07 | J119: 137.53 | K119: 132.6 | L119: 126 | M119: 52.26027
A120: 111 | B120: IOC | C120: 95.6 | D120: 95.37 | E120: 94.23 | F120: 92.87 | G120: 91.73 | H120: 96.73 | I120: 97.87 | J120: 99.23 | K120: 96.5 | L120: 94 | M120: 248.69144
A121: 112 | B121: IRCTC | C121: 1674.15 | D121: 1689.97 | E121: 1646.18 | F121: 1618.22 | G121: 1574.43 | H121: 1717.93 | I121: 1761.72 | J121: 1789.68 | K121: 1733.75 | L121: 1662 | M121: 17.7637
A122: 113 | B122: IGL | C122: 547.65 | D122: 547.68 | E122: 538.57 | F122: 529.48 | G122: 520.37 | H122: 556.77 | I122: 565.88 | J122: 574.97 | K122: 556.8 | L122: 538.6 | M122: 23.23058
A123: 114 | B123: INDUSTOWER | C123: 247.15 | D123: 247.82 | E123: 243.43 | F123: 239.72 | G123: 235.33 | H123: 251.53 | I123: 255.92 | J123: 259.63 | K123: 252.2 | L123: 244.1 | M123: 31.84642
A124: 115 | B124: INDUSINDBK | C124: 1058.25 | D124: 1065.28 | E124: 1034.07 | F124: 1009.88 | G124: 978.67 | H124: 1089.47 | I124: 1120.68 | J124: 1144.87 | K124: 1096.5 | L124: 1041.1 | M124: 138.83441
A125: 116 | B125: NAUKRI | C125: 5095.2 | D125: 5216.17 | E125: 4881.23 | F125: 4667.27 | G125: 4332.33 | H125: 5430.13 | I125: 5765.07 | J125: 5979.03 | K125: 5551.1 | L125: 5002.2 | M125: 18.02188
A126: 117 | B126: INFY | C126: 1290.4 | D126: 1298.72 | E126: 1277.68 | F126: 1264.97 | G126: 1243.93 | H126: 1311.43 | I126: 1332.47 | J126: 1345.18 | K126: 1319.75 | L126: 1286 | M126: 68.96421
A127: 118 | B127: INDIGO | C127: 1610.45 | D127: 1617.72 | E127: 1588.88 | F127: 1567.32 | G127: 1538.48 | H127: 1639.28 | I127: 1668.12 | J127: 1689.68 | K127: 1646.55 | L127: 1596.15 | M127: 9.29036
A128: 119 | B128: IPCALAB | C128: 1901.25 | D128: 1896.00 | E128: 1883.20 | F128: 1865.15 | G128: 1852.35 | H128: 1914.05 | I128: 1926.85 | J128: 1944.90 | K128: 1908.8 | L128: 1877.95 | M128: 2.36624
A129: 120 | B129: JSWENERGY | C129: 75 | D129: 75.27 | E129: 73.78 | F129: 72.57 | G129: 71.08 | H129: 76.48 | I129: 77.97 | J129: 79.18 | K129: 76.75 | L129: 74.05 | M129: 27.64907
A130: 121 | B130: JSWSTEEL | C130: 407.65 | D130: 411.08 | E130: 400.27 | F130: 392.88 | G130: 382.07 | H130: 418.47 | I130: 429.28 | J130: 436.67 | K130: 421.9 | L130: 403.7 | M130: 105.94928
A131: 122 | B131: JINDALSTEL | C131: 332.65 | D131: 325.78 | E131: 315.67 | F131: 298.68 | G131: 288.57 | H131: 342.77 | I131: 352.88 | J131: 369.87 | K131: 335.9 | L131: 308.8 | M131: 263.20619
A132: 123 | B132: JUBLFOOD | C132: 2881.65 | D132: 2884.08 | E132: 2852.17 | F132: 2822.68 | G132: 2790.77 | H132: 2913.57 | I132: 2945.48 | J132: 2974.97 | K132: 2916 | L132: 2854.6 | M132: 11.34266
A133: 124 | B133: KOTAKBANK | C133: 2019.65 | D133: 2022.22 | E133: 1995.43 | F133: 1971.22 | G133: 1944.43 | H133: 2046.43 | I133: 2073.22 | J133: 2097.43 | K133: 2049 | L133: 1998 | M133: 54.80183
A134: 125 | B134: L&TFH | C134: 98.6 | D134: 98.98 | E134: 96.97 | F134: 95.33 | G134: 93.32 | H134: 100.62 | I134: 102.63 | J134: 104.27 | K134: 101 | L134: 97.35 | M134: 230.11432
A135: 126 | B135: LTTS | C135: 2660.3 | D135: 2641.80 | E135: 2604.60 | F135: 2548.90 | G135: 2511.70 | H135: 2697.50 | I135: 2734.70 | J135: 2790.40 | K135: 2679 | L135: 2586.1 | M135: 2.25924
A136: 127 | B136: LICHSGFIN | C136: 469.8 | D136: 472.97 | E136: 462.58 | F136: 455.37 | G136: 444.98 | H136: 480.18 | I136: 490.57 | J136: 497.78 | K136: 483.35 | L136: 465.75 | M136: 64.89108
A137: 128 | B137: LTI | C137: 3944.95 | D137: 3974.32 | E137: 3890.63 | F137: 3836.32 | G137: 3752.63 | H137: 4028.63 | I137: 4112.32 | J137: 4166.63 | K137: 4058 | L137: 3920 | M137: 0.9206
A138: 129 | B138: LT | C138: 1549.45 | D138: 1554.15 | E138: 1534.30 | F138: 1519.15 | G138: 1499.30 | H138: 1569.30 | I138: 1589.15 | J138: 1604.30 | K138: 1574 | L138: 1539 | M138: 38.38556
A139: 130 | B139: LUPIN | C139: 1096.8 | D139: 1082.75 | E139: 1064.05 | F139: 1031.30 | G139: 1012.60 | H139: 1115.50 | I139: 1134.20 | J139: 1166.95 | K139: 1101.45 | L139: 1050 | M139: 38.22108
A140: 131 | B140: MRF | C140: 89575.35 | D140: 90043.05 | E140: 88536.10 | F140: 87496.85 | G140: 85989.90 | H140: 91082.30 | I140: 92589.25 | J140: 93628.50 | K140: 91550 | L140: 89003.8 | M140: 0.58998
A141: 132 | B141: MGL | C141: 1145.25 | D141: 1140.73 | E141: 1131.52 | F141: 1117.78 | G141: 1108.57 | H141: 1154.47 | I141: 1163.68 | J141: 1177.42 | K141: 1149.95 | L141: 1127 | M141: 5.61526
A142: 133 | B142: M&MFIN | C142: 220.75 | D142: 218.03 | E142: 213.52 | F142: 206.28 | G142: 201.77 | H142: 225.27 | I142: 229.78 | J142: 237.02 | K142: 222.55 | L142: 210.8 | M142: 169.12835
A143: 134 | B143: M&M | C143: 912.2 | D143: 912.02 | E143: 902.28 | F143: 892.37 | G143: 882.63 | H143: 921.93 | I143: 931.67 | J143: 941.58 | K143: 921.75 | L143: 902.1 | M143: 42.23635
A144: 135 | B144: MANAPPURAM | C144: 175.75 | D144: 176.38 | E144: 173.32 | F144: 170.88 | G144: 167.82 | H144: 178.82 | I144: 181.88 | J144: 184.32 | K144: 179.45 | L144: 173.95 | M144: 29.47464
A145: 136 | B145: MARICO | C145: 409.25 | D145: 409.40 | E145: 405.55 | F145: 401.85 | G145: 398.00 | H145: 413.10 | I145: 416.95 | J145: 420.65 | K145: 413.25 | L145: 405.7 | M145: 13.5875
A146: 137 | B146: MARUTI | C146: 7697.05 | D146: 7707.10 | E146: 7615.20 | F146: 7533.35 | G146: 7441.45 | H146: 7788.95 | I146: 7880.85 | J146: 7962.70 | K146: 7799 | L146: 7625.25 | M146: 13.21126
A147: 138 | B147: MFSL | C147: 852.75 | D147: 844.78 | E147: 829.72 | F147: 806.68 | G147: 791.62 | H147: 867.82 | I147: 882.88 | J147: 905.92 | K147: 859.85 | L147: 821.75 | M147: 35.55872
A148: 139 | B148: MINDTREE | C148: 1686.65 | D148: 1700.45 | E148: 1658.20 | F148: 1629.75 | G148: 1587.50 | H148: 1728.90 | I148: 1771.15 | J148: 1799.60 | K148: 1742.7 | L148: 1672 | M148: 5.4583
A149: 140 | B149: MOTHERSUMI | C149: 213.45 | D149: 213.62 | E149: 210.48 | F149: 207.52 | G149: 204.38 | H149: 216.58 | I149: 219.72 | J149: 222.68 | K149: 216.75 | L149: 210.65 | M149: 356.09075
A150: 141 | B150: MPHASIS | C150: 1683.6 | D150: 1682.95 | E150: 1670.90 | F150: 1658.20 | G150: 1646.15 | H150: 1695.65 | I150: 1707.70 | J150: 1720.40 | K150: 1695 | L150: 1670.25 | M150: 2.3089
A151: 142 | B151: MUTHOOTFIN | C151: 1315.3 | D151: 1322.72 | E151: 1301.58 | F151: 1287.87 | G151: 1266.73 | H151: 1336.43 | I151: 1357.57 | J151: 1371.28 | K151: 1343.85 | L151: 1309 | M151: 17.21816
A152: 143 | B152: NATCOPHARM | C152: 819.35 | D152: 825.90 | E152: 805.85 | F152: 792.35 | G152: 772.30 | H152: 839.40 | I152: 859.45 | J152: 872.95 | K152: 845.95 | L152: 812.4 | M152: 6.2435
A153: 144 | B153: NMDC | C153: 115.5 | D153: 115.33 | E153: 113.37 | F153: 111.23 | G153: 109.27 | H153: 117.47 | I153: 119.43 | J153: 121.57 | K153: 117.3 | L153: 113.2 | M153: 158.26952
A154: 145 | B154: NTPC | C154: 98 | D154: 97.55 | E154: 95.95 | F154: 93.90 | G154: 92.30 | H154: 99.60 | I154: 101.20 | J154: 103.25 | K154: 99.15 | L154: 95.5 | M154: 328.65663
A155: 146 | B155: NATIONALUM | C155: 50.15 | D155: 49.65 | E155: 48.90 | F155: 47.65 | G155: 46.90 | H155: 50.90 | I155: 51.65 | J155: 52.90 | K155: 50.4 | L155: 48.4 | M155: 225.31335
A156: 147 | B156: NAVINFLUOR | C156: 2509.1 | D156: 2527.32 | E156: 2476.93 | F156: 2444.77 | G156: 2394.38 | H156: 2559.48 | I156: 2609.87 | J156: 2642.03 | K156: 2577.7 | L156: 2495.15 | M156: 1.32248
A157: 148 | B157: NESTLEIND | C157: 17217.25 | D157: 17334.12 | E157: 17022.23 | F157: 16827.22 | G157: 16515.33 | H157: 17529.13 | I157: 17841.02 | J157: 18036.03 | K157: 17646 | L157: 17139.1 | M157: 2.29774
A158: 149 | B158: NAM-INDIA | C158: 345.2 | D158: 342.05 | E158: 336.10 | F158: 327.00 | G158: 321.05 | H158: 351.15 | I158: 357.10 | J158: 366.20 | K158: 348 | L158: 332.95 | M158: 7.388
A159: 150 | B159: OBEROIRLTY | C159: 577.6 | D159: 581.38 | E159: 567.77 | F159: 557.93 | G159: 544.32 | H159: 591.22 | I159: 604.83 | J159: 614.67 | K159: 595 | L159: 571.55 | M159: 1.44772
A160: 151 | B160: ONGC | C160: 103.75 | D160: 102.62 | E160: 100.38 | F160: 97.02 | G160: 94.78 | H160: 105.98 | I160: 108.22 | J160: 111.58 | K160: 104.85 | L160: 99.25 | M160: 762.36798
A161: 152 | B161: OIL | C161: 118.25 | D161: 117.95 | E161: 117.00 | F161: 115.75 | G161: 114.80 | H161: 119.20 | I161: 120.15 | J161: 121.40 | K161: 118.9 | L161: 116.7 | M161: 14.8938
A162: 153 | B162: OFSS | C162: 3134.7 | D162: 3148.62 | E162: 3107.08 | F162: 3079.47 | G162: 3037.93 | H162: 3176.23 | I162: 3217.77 | J162: 3245.38 | K162: 3190.15 | L162: 3121 | M162: 0.53701
A163: 154 | B163: PIIND | C163: 2226.7 | D163: 2232.15 | E163: 2204.80 | F163: 2182.90 | G163: 2155.55 | H163: 2254.05 | I163: 2281.40 | J163: 2303.30 | K163: 2259.5 | L163: 2210.25 | M163: 2.93562
A164: 155 | B164: PAGEIND | C164: 29343.15 | D164: 29642.97 | E164: 28850.18 | F164: 28357.22 | G164: 27564.43 | H164: 30135.93 | I164: 30928.72 | J164: 31421.68 | K164: 30435.75 | L164: 29150 | M164: 0.36771
A165: 156 | B165: PETRONET | C165: 242.8 | D165: 243.40 | E165: 240.90 | F165: 239.00 | G165: 236.50 | H165: 245.30 | I165: 247.80 | J165: 249.70 | K165: 245.9 | L165: 241.5 | M165: 45.23573
A166: 157 | B166: PFIZER | C166: 4606.05 | D166: 4601.68 | E166: 4579.37 | F166: 4552.68 | G166: 4530.37 | H166: 4628.37 | I166: 4650.68 | J166: 4677.37 | K166: 4624 | L166: 4575 | M166: 0.48878
A167: 158 | B167: PIDILITIND | C167: 1789.15 | D167: 1783.33 | E167: 1771.67 | F167: 1754.18 | G167: 1742.52 | H167: 1800.82 | I167: 1812.48 | J167: 1829.97 | K167: 1795 | L167: 1765.85 | M167: 10.14212
A168: 159 | B168: PEL | C168: 1842.1 | D168: 1834.40 | E168: 1793.80 | F168: 1745.50 | G168: 1704.90 | H168: 1882.70 | I168: 1923.30 | J168: 1971.60 | K168: 1875 | L168: 1786.1 | M168: 19.96884
A169: 160 | B169: POLYCAB | C169: 1326.4 | D169: 1325.80 | E169: 1311.60 | F169: 1296.80 | G169: 1282.60 | H169: 1340.60 | I169: 1354.80 | J169: 1369.60 | K169: 1340 | L169: 1311 | M169: 2.28193
A170: 161 | B170: PFC | C170: 133.7 | D170: 133.83 | E170: 131.77 | F170: 129.83 | G170: 127.77 | H170: 135.77 | I170: 137.83 | J170: 139.77 | K170: 135.9 | L170: 131.9 | M170: 85.26216
A171: 162 | B171: POWERGRID | C171: 225.55 | D171: 222.92 | E171: 215.93 | F171: 206.32 | G171: 199.33 | H171: 232.53 | I171: 239.52 | J171: 249.13 | K171: 229.9 | L171: 213.3 | M171: 451.1305
A172: 163 | B172: PRESTIGE | C172: 284.9 | D172: 287.27 | E172: 280.83 | F172: 276.77 | G172: 270.33 | H172: 291.33 | I172: 297.77 | J172: 301.83 | K172: 293.7 | L172: 283.2 | M172: 4.2165
A173: 164 | B173: PGHH | C173: 13109.35 | D173: 13305.30 | E173: 12810.60 | F173: 12511.85 | G173: 12017.15 | H173: 13604.05 | I173: 14098.75 | J173: 14397.50 | K173: 13800 | L173: 13006.55 | M173: 0.09423
A174: 165 | B174: PNB | C174: 39.5 | D174: 39.75 | E174: 38.85 | F174: 38.20 | G174: 37.30 | H174: 40.40 | I174: 41.30 | J174: 41.95 | K174: 40.65 | L174: 39.1 | M174: 1875.20683
A175: 166 | B175: RBLBANK | C175: 258.5 | D175: 256.65 | E175: 251.30 | F175: 244.10 | G175: 238.75 | H175: 263.85 | I175: 269.20 | J175: 276.40 | K175: 262 | L175: 249.45 | M175: 226.30711
A176: 167 | B176: RECLTD | C176: 153.7 | D176: 154.17 | E176: 152.03 | F176: 150.37 | G176: 148.23 | H176: 155.83 | I176: 157.97 | J176: 159.63 | K176: 156.3 | L176: 152.5 | M176: 52.94198
A177: 168 | B177: RAJESHEXPO | C177: 479.4 | D177: 478.82 | E177: 476.53 | F177: 473.67 | G177: 471.38 | H177: 481.68 | I177: 483.97 | J177: 486.83 | K177: 481.1 | L177: 475.95 | M177: 0.63559
A178: 169 | B178: RELIANCE | C178: 2059.5 | D178: 2057.97 | E178: 2036.53 | F178: 2013.57 | G178: 1992.13 | H178: 2080.93 | I178: 2102.37 | J178: 2125.33 | K178: 2079.4 | L178: 2035 | M178: 98.86093
A179: 170 | B179: SBICARD | C179: 1019.35 | D179: 1023.78 | E179: 1010.57 | F179: 1001.78 | G179: 988.57 | H179: 1032.57 | I179: 1045.78 | J179: 1054.57 | K179: 1037 | L179: 1015 | M179: 9.53363
A180: 171 | B180: SBILIFE | C180: 872 | D180: 876.43 | E180: 864.57 | F180: 857.13 | G180: 845.27 | H180: 883.87 | I180: 895.73 | J180: 903.17 | K180: 888.3 | L180: 869 | M180: 16.34864
A181: 172 | B181: SRF | C181: 5787.6 | D181: 5744.20 | E181: 5668.40 | F181: 5549.20 | G181: 5473.40 | H181: 5863.40 | I181: 5939.20 | J181: 6058.40 | K181: 5820 | L181: 5625 | M181: 1.72931
A182: 173 | B182: SANOFI | C182: 7830.65 | D182: 7845.72 | E182: 7796.43 | F182: 7762.22 | G182: 7712.93 | H182: 7879.93 | I182: 7929.22 | J182: 7963.43 | K182: 7895 | L182: 7811.5 | M182: 0.29867
A183: 174 | B183: SHREECEM | C183: 28597.4 | D183: 28704.50 | E183: 28319.00 | F183: 28040.60 | G183: 27655.10 | H183: 28982.90 | I183: 29368.40 | J183: 29646.80 | K183: 29090 | L183: 28426.1 | M183: 0.70319
A184: 175 | B184: SRTRANSFIN | C184: 1477.8 | D184: 1486.07 | E184: 1453.13 | F184: 1428.47 | G184: 1395.53 | H184: 1510.73 | I184: 1543.67 | J184: 1568.33 | K184: 1519 | L184: 1461.4 | M184: 23.25039
A185: 176 | B185: SIEMENS | C185: 1831.55 | D185: 1852.18 | E185: 1794.37 | F185: 1757.18 | G185: 1699.37 | H185: 1889.37 | I185: 1947.18 | J185: 1984.37 | K185: 1910 | L185: 1815 | M185: 5.57842
A186: 177 | B186: SBIN | C186: 402.35 | D186: 406.13 | E186: 396.52 | F186: 390.68 | G186: 381.07 | H186: 411.97 | I186: 421.58 | J186: 427.42 | K186: 415.75 | L186: 400.3 | M186: 803.65431
A187: 178 | B187: SAIL | C187: 64.75 | D187: 64.63 | E187: 62.87 | F187: 60.98 | G187: 59.22 | H187: 66.52 | I187: 68.28 | J187: 70.17 | K187: 66.4 | L187: 62.75 | M187: 536.47015
A188: 179 | B188: SUNPHARMA | C188: 631.15 | D188: 629.55 | E188: 624.60 | F188: 618.05 | G188: 613.10 | H188: 636.10 | I188: 641.05 | J188: 647.60 | K188: 634.5 | L188: 623 | M188: 61.37454
A189: 180 | B189: SUNTV | C189: 516.3 | D189: 517.93 | E189: 512.37 | F189: 508.43 | G189: 502.87 | H189: 521.87 | I189: 527.43 | J189: 531.37 | K189: 523.5 | L189: 514 | M189: 15.6932
A190: 181 | B190: SYNGENE | C190: 591.9 | D190: 592.17 | E190: 585.33 | F190: 578.77 | G190: 571.93 | H190: 598.73 | I190: 605.57 | J190: 612.13 | K190: 599 | L190: 585.6 | M190: 3.83214
A191: 182 | B191: TVSMOTOR | C191: 628.85 | D191: 631.35 | E191: 620.70 | F191: 612.55 | G191: 601.90 | H191: 639.50 | I191: 650.15 | J191: 658.30 | K191: 642 | L191: 623.2 | M191: 19.43169
A192: 183 | B192: TATACHEM | C192: 583.7 | D192: 580.82 | E192: 571.73 | F192: 559.77 | G192: 550.68 | H192: 592.78 | I192: 601.87 | J192: 613.83 | K192: 589.9 | L192: 568.85 | M192: 91.043
A193: 184 | B193: TCS | C193: 3108.8 | D193: 3125.48 | E193: 3083.32 | F193: 3057.83 | G193: 3015.67 | H193: 3150.97 | I193: 3193.13 | J193: 3218.62 | K193: 3167.65 | L193: 3100 | M193: 34.3577
A194: 185 | B194: TATACONSUM | C194: 628.35 | D194: 626.95 | E194: 618.95 | F194: 609.55 | G194: 601.55 | H194: 636.35 | I194: 644.35 | J194: 653.75 | K194: 634.95 | L194: 617.55 | M194: 64.18986
A195: 186 | B195: TATAMOTORS | C195: 329.2 | D195: 331.53 | E195: 325.17 | F195: 321.13 | G195: 314.77 | H195: 335.57 | I195: 341.93 | J195: 345.97 | K195: 337.9 | L195: 327.5 | M195: 659.43843
A196: 187 | B196: TATAPOWER | C196: 90.25 | D196: 89.28 | E196: 87.57 | F196: 84.88 | G196: 83.17 | H196: 91.97 | I196: 93.68 | J196: 96.37 | K196: 91 | L196: 86.6 | M196: 458.33754
A197: 188 | B197: TATASTEEL | C197: 699.2 | D197: 692.03 | E197: 675.47 | F197: 651.73 | G197: 635.17 | H197: 715.77 | I197: 732.33 | J197: 756.07 | K197: 708.6 | L197: 668.3 | M197: 336.61838
A198: 189 | B198: TECHM | C198: 986.8 | D198: 986.77 | E198: 973.53 | F198: 960.27 | G198: 947.03 | H198: 1000.03 | I198: 1013.27 | J198: 1026.53 | K198: 1000 | L198: 973.5 | M198: 39.12433
A199: 190 | B199: RAMCOCEM | C199: 989.95 | D199: 988.57 | E199: 975.43 | F199: 960.92 | G199: 947.78 | H199: 1003.08 | I199: 1016.22 | J199: 1030.73 | K199: 1001.7 | L199: 974.05 | M199: 12.10065
A200: 191 | B200: TITAN | C200: 1471.85 | D200: 1479.28 | E200: 1453.57 | F200: 1435.28 | G200: 1409.57 | H200: 1497.57 | I200: 1523.28 | J200: 1541.57 | K200: 1505 | L200: 1461 | M200: 30.90249
A201: 192 | B201: TORNTPHARM | C201: 2588.8 | D201: 2594.27 | E201: 2569.53 | F201: 2550.27 | G201: 2525.53 | H201: 2613.53 | I201: 2638.27 | J201: 2657.53 | K201: 2619 | L201: 2575 | M201: 1.75989
A202: 193 | B202: TORNTPOWER | C202: 345.05 | D202: 339.93 | E202: 332.97 | F202: 320.88 | G202: 313.92 | H202: 352.02 | I202: 358.98 | J202: 371.07 | K202: 346.9 | L202: 327.85 | M202: 54.83054
A203: 194 | B203: TRENT | C203: 750.25 | D203: 739.42 | E203: 720.83 | F203: 691.42 | G203: 672.83 | H203: 768.83 | I203: 787.42 | J203: 816.83 | K203: 758 | L203: 710 | M203: 20.95315
A204: 195 | B204: UPL | C204: 538.95 | D204: 540.57 | E204: 535.48 | F204: 532.02 | G204: 526.93 | H204: 544.03 | I204: 549.12 | J204: 552.58 | K204: 545.65 | L204: 537.1 | M204: 29.76504
A205: 196 | B205: ULTRACEMCO | C205: 6457.8 | D205: 6472.58 | E205: 6395.17 | F205: 6332.53 | G205: 6255.12 | H205: 6535.22 | I205: 6612.63 | J205: 6675.27 | K205: 6550 | L205: 6409.95 | M205: 5.95723
... 29 more rows

Sheet MidCap Intra
L5: Back To Main Page
A6: FOR INTRA DAY TRADING | K6: =Main!B10 -> 2021-02-17
A9: Sr.no | B9: Scrip | C9: CLOSE RATE | D9: Pivot Point | E9: Supports | H9: Resistances
C10: Point | E10: S1 | F10: S2 | G10: S3 | H10: R1 | I10: R2 | J10: R3 | K10: HIGH | L10: LOW | M10: Total Trade Quanity in Lakhs
A11: 1 | B11: 3MINDIA | C11: =VLOOKUP($B11,[1]EQ!$A$1:$L$2000,6,0) -> 21298.05 | D11: =(C11+K11+L11)/3 -> 21211.02 | E11: =+(D11*2)-K11 -> 20922.03 | F11: =+D11-K11+L11 -> 20546.02 | G11: =L11-2*(K11-D11) -> 20257.03 | H11: =(D11*2)-L11 -> 21587.03 | I11: =+D11+K11-L11 -> 21876.02 | J11: =K11+2*(D11-L11) -> 22252.03 | K11: =VLOOKUP($B11,[1]EQ!$A$1:$L$2000,4,0) -> 21500 | L11: =VLOOKUP($B11,[1]EQ!$A$1:$L$2000,5,0) -> 20835 | M11: =(VLOOKUP($B11,[1]EQ!$A$1:$L$2000,9,0)/100000) -> 0.16907
A12: 2 | B12: ABB | C12: =VLOOKUP($B12,[1]EQ!$A$1:$L$2000,6,0) -> 1500.5 | D12: 1496.50 | E12: 1478.00 | F12: 1455.50 | G12: 1437.00 | H12: 1519.00 | I12: 1537.50 | J12: 1560.00 | K12: =VLOOKUP($B12,[1]EQ!$A$1:$L$2000,4,0) -> 1515 | L12: =VLOOKUP($B12,[1]EQ!$A$1:$L$2000,5,0) -> 1474 | M12: =(VLOOKUP($B12,[1]EQ!$A$1:$L$2000,9,0)/100000) -> 1.70927
A13: 3 | B13: POWERINDIA | C13: =VLOOKUP($B13,[1]EQ!$A$1:$L$2000,6,0) -> 1343.15 | D13: 1351.08 | E13: 1323.07 | F13: 1302.98 | G13: 1274.97 | H13: 1371.17 | I13: 1399.18 | J13: 1419.27 | K13: =VLOOKUP($B13,[1]EQ!$A$1:$L$2000,4,0) -> 1379.1 | L13: =VLOOKUP($B13,[1]EQ!$A$1:$L$2000,5,0) -> 1331 | M13: =(VLOOKUP($B13,[1]EQ!$A$1:$L$2000,9,0)/100000) -> 0.18664
A14: 4 | B14: ACC | C14: =VLOOKUP($B14,[1]EQ!$A$1:$L$2000,6,0) -> 1819.3 | D14: 1815.93 | E14: 1788.32 | F14: 1757.33 | G14: 1729.72 | H14: 1846.92 | I14: 1874.53 | J14: 1905.52 | K14: =VLOOKUP($B14,[1]EQ!$A$1:$L$2000,4,0) -> 1843.55 | L14: =VLOOKUP($B14,[1]EQ!$A$1:$L$2000,5,0) -> 1784.95 | M14: =(VLOOKUP($B14,[1]EQ!$A$1:$L$2000,9,0)/100000) -> 19.3773
A15: 5 | B15: AIAENG | C15: =VLOOKUP($B15,[1]EQ!$A$1:$L$2000,6,0) -> 1949.9 | D15: 1961.08 | E15: 1930.87 | F15: 1911.83 | G15: 1881.62 | H15: 1980.12 | I15: 2010.33 | J15: 2029.37 | K15: =VLOOKUP($B15,[1]EQ!$A$1:$L$2000,4,0) -> 1991.3 | L15: =VLOOKUP($B15,[1]EQ!$A$1:$L$2000,5,0) -> 1942.05 | M15: =(VLOOKUP($B15,[1]EQ!$A$1:$L$2000,9,0)/100000) -> 0.39348
A16: 6 | B16: APLAPOLLO | C16: =VLOOKUP($B16,[1]EQ!$A$1:$L$2000,6,0) -> 958.1 | D16: 970.70 | E16: 942.50 | F16: 926.90 | G16: 898.70 | H16: 986.30 | I16: 1014.50 | J16: 1030.10 | K16: =VLOOKUP($B16,[1]EQ!$A$1:$L$2000,4,0) -> 998.9 | L16: =VLOOKUP($B16,[1]EQ!$A$1:$L$2000,5,0) -> 955.1 | M16: =(VLOOKUP($B16,[1]EQ!$A$1:$L$2000,9,0)/100000) -> 8.11679
A17: 7 | B17: AUBANK | C17: =VLOOKUP($B17,[1]EQ!$A$1:$L$2000,6,0) -> 1092.75 | D17: 1098.68 | E17: 1069.37 | F17: 1045.98 | G17: 1016.67 | H17: 1122.07 | I17: 1151.38 | J17: 1174.77 | K17: =VLOOKUP($B17,[1]EQ!$A$1:$L$2000,4,0) -> 1128 | L17: =VLOOKUP($B17,[1]EQ!$A$1:$L$2000,5,0) -> 1075.3 | M17: =(VLOOKUP($B17,[1]EQ!$A$1:$L$2000,9,0)/100000) -> 4.55426
A18: 8 | B18: AARTIDRUGS | C18: =VLOOKUP($B18,[1]EQ!$A$1:$L$2000,6,0) -> 668.75 | D18: 665.52 | E18: 645.03 | F18: 621.32 | G18: 600.83 | H18: 689.23 | I18: 709.72 | J18: 733.43 | K18: =VLOOKUP($B18,[1]EQ!$A$1:$L$2000,4,0) -> 686 | L18: =VLOOKUP($B18,[1]EQ!$A$1:$L$2000,5,0) -> 641.8 | M18: =(VLOOKUP($B18,[1]EQ!$A$1:$L$2000,9,0)/100000) -> 9.20307
A19: 9 | B19: AARTIIND | C19: =VLOOKUP($B19,[1]EQ!$A$1:$L$2000,6,0) -> 1227.9 | D19: 1222.20 | E19: 1213.70 | F19: 1199.50 | G19: 1191.00 | H19: 1236.40 | I19: 1244.90 | J19: 1259.10 | K19: =VLOOKUP($B19,[1]EQ!$A$1:$L$2000,4,0) -> 1230.7 | L19: =VLOOKUP($B19,[1]EQ!$A$1:$L$2000,5,0) -> 1208 | M19: =(VLOOKUP($B19,[1]EQ!$A$1:$L$2000,9,0)/100000) -> 2.60347
A20: 10 | B20: AAVAS | C20: =VLOOKUP($B20,[1]EQ!$A$1:$L$2000,6,0) -> 2212.9 | D20: 2222.93 | E20: 2183.87 | F20: 2154.83 | G20: 2115.77 | H20: 2251.97 | I20: 2291.03 | J20: 2320.07 | K20: =VLOOKUP($B20,[1]EQ!$A$1:$L$2000,4,0) -> 2262 | L20: =VLOOKUP($B20,[1]EQ!$A$1:$L$2000,5,0) -> 2193.9 | M20: =(VLOOKUP($B20,[1]EQ!$A$1:$L$2000,9,0)/100000) -> 0.7203
A21: 11 | B21: ABBOTINDIA | C21: =VLOOKUP($B21,[1]EQ!$A$1:$L$2000,6,0) -> 14700.7 | D21: 14634.90 | E21: 14530.80 | F21: 14360.90 | G21: 14256.80 | H21: 14804.80 | I21: 14908.90 | J21: 15078.80 | K21: =VLOOKUP($B21,[1]EQ!$A$1:$L$2000,4,0) -> 14739 | L21: =VLOOKUP($B21,[1]EQ!$A$1:$L$2000,5,0) -> 14465 | M21: =(VLOOKUP($B21,[1]EQ!$A$1:$L$2000,9,0)/100000) -> 0.23617
A22: 12 | B22: ADANIENT | C22: =VLOOKUP($B22,[1]EQ!$A$1:$L$2000,6,0) -> 780.2 | D22: 779.80 | E22: 756.65 | F22: 733.10 | G22: 709.95 | H22: 803.35 | I22: 826.50 | J22: 850.05 | K22: =VLOOKUP($B22,[1]EQ!$A$1:$L$2000,4,0) -> 802.95 | L22: =VLOOKUP($B22,[1]EQ!$A$1:$L$2000,5,0) -> 756.25 | M22: =(VLOOKUP($B22,[1]EQ!$A$1:$L$2000,9,0)/100000) -> 194.26061
A23: 13 | B23: ADANIGREEN | C23: =VLOOKUP($B23,[1]EQ!$A$1:$L$2000,6,0) -> 1078.3 | D23: 1080.10 | E23: 1047.20 | F23: 1016.10 | G23: 983.20 | H23: 1111.20 | I23: 1144.10 | J23: 1175.20 | K23: =VLOOKUP($B23,[1]EQ!$A$1:$L$2000,4,0) -> 1113 | L23: =VLOOKUP($B23,[1]EQ!$A$1:$L$2000,5,0) -> 1049 | M23: =(VLOOKUP($B23,[1]EQ!$A$1:$L$2000,9,0)/100000) -> 51.82242
A24: 14 | B24: ADANIPORTS | C24: =VLOOKUP($B24,[1]EQ!$A$1:$L$2000,6,0) -> 636.55 | D24: 636.03 | E24: 628.57 | F24: 620.58 | G24: 613.12 | H24: 644.02 | I24: 651.48 | J24: 659.47 | K24: =VLOOKUP($B24,[1]EQ!$A$1:$L$2000,4,0) -> 643.5 | L24: =VLOOKUP($B24,[1]EQ!$A$1:$L$2000,5,0) -> 628.05 | M24: =(VLOOKUP($B24,[1]EQ!$A$1:$L$2000,9,0)/100000) -> 151.20148
A25: 15 | B25: ATGL | C25: =VLOOKUP($B25,[1]EQ!$A$1:$L$2000,6,0) -> 497 | D25: 480.97 | E25: 453.03 | F25: 409.07 | G25: 381.13 | H25: 524.93 | I25: 552.87 | J25: 596.83 | K25: =VLOOKUP($B25,[1]EQ!$A$1:$L$2000,4,0) -> 508.9 | L25: =VLOOKUP($B25,[1]EQ!$A$1:$L$2000,5,0) -> 437 | M25: =(VLOOKUP($B25,[1]EQ!$A$1:$L$2000,9,0)/100000) -> 90.04169
A26: 16 | B26: ADANITRANS | C26: =VLOOKUP($B26,[1]EQ!$A$1:$L$2000,6,0) -> 763.55 | D26: 746.75 | E26: 705.80 | F26: 648.05 | G26: 607.10 | H26: 804.50 | I26: 845.45 | J26: 903.20 | K26: =VLOOKUP($B26,[1]EQ!$A$1:$L$2000,4,0) -> 787.7 | L26: =VLOOKUP($B26,[1]EQ!$A$1:$L$2000,5,0) -> 689 | M26: =(VLOOKUP($B26,[1]EQ!$A$1:$L$2000,9,0)/100000) -> 46.52336
A27: 17 | B27: ABCAPITAL | C27: =VLOOKUP($B27,[1]EQ!$A$1:$L$2000,6,0) -> 97.75 | D27: 98.02 | E27: 94.18 | F27: 90.62 | G27: 86.78 | H27: 101.58 | I27: 105.42 | J27: 108.98 | K27: =VLOOKUP($B27,[1]EQ!$A$1:$L$2000,4,0) -> 101.85 | L27: =VLOOKUP($B27,[1]EQ!$A$1:$L$2000,5,0) -> 94.45 | M27: =(VLOOKUP($B27,[1]EQ!$A$1:$L$2000,9,0)/100000) -> 198.06981
A28: 18 | B28: ABFRL | C28: =VLOOKUP($B28,[1]EQ!$A$1:$L$2000,6,0) -> 164.85 | D28: 165.37 | E28: 162.48 | F28: 160.12 | G28: 157.23 | H28: 167.73 | I28: 170.62 | J28: 172.98 | K28: =VLOOKUP($B28,[1]EQ!$A$1:$L$2000,4,0) -> 168.25 | L28: =VLOOKUP($B28,[1]EQ!$A$1:$L$2000,5,0) -> 163 | M28: =(VLOOKUP($B28,[1]EQ!$A$1:$L$2000,9,0)/100000) -> 13.17403
A29: 19 | B29: ADVENZYMES | C29: =VLOOKUP($B29,[1]EQ!$A$1:$L$2000,6,0) -> 373.1 | D29: 370.35 | E29: 363.90 | F29: 354.70 | G29: 348.25 | H29: 379.55 | I29: 386.00 | J29: 395.20 | K29: =VLOOKUP($B29,[1]EQ!$A$1:$L$2000,4,0) -> 376.8 | L29: =VLOOKUP($B29,[1]EQ!$A$1:$L$2000,5,0) -> 361.15 | M29: =(VLOOKUP($B29,[1]EQ!$A$1:$L$2000,9,0)/100000) -> 3.98219
A30: 20 | B30: AEGISCHEM | C30: =VLOOKUP($B30,[1]EQ!$A$1:$L$2000,6,0) -> 300.85 | D30: 299.12 | E30: 296.23 | F30: 291.62 | G30: 288.73 | H30: 303.73 | I30: 306.62 | J30: 311.23 | K30: =VLOOKUP($B30,[1]EQ!$A$1:$L$2000,4,0) -> 302 | L30: =VLOOKUP($B30,[1]EQ!$A$1:$L$2000,5,0) -> 294.5 | M30: =(VLOOKUP($B30,[1]EQ!$A$1:$L$2000,9,0)/100000) -> 2.08423
A31: 21 | B31: AFFLE | C31: =VLOOKUP($B31,[1]EQ!$A$1:$L$2000,6,0) -> 5189.4 | D31: 5203.13 | E31: 5056.27 | F31: 4923.13 | G31: 4776.27 | H31: 5336.27 | I31: 5483.13 | J31: 5616.27 | K31: =VLOOKUP($B31,[1]EQ!$A$1:$L$2000,4,0) -> 5350 | L31: =VLOOKUP($B31,[1]EQ!$A$1:$L$2000,5,0) -> 5070 | M31: =(VLOOKUP($B31,[1]EQ!$A$1:$L$2000,9,0)/100000) -> 1.07869
A32: 22 | B32: AJANTPHARM | C32: =VLOOKUP($B32,[1]EQ!$A$1:$L$2000,6,0) -> 1803.1 | D32: 1804.42 | E32: 1790.93 | F32: 1778.77 | G32: 1765.28 | H32: 1816.58 | I32: 1830.07 | J32: 1842.23 | K32: =VLOOKUP($B32,[1]EQ!$A$1:$L$2000,4,0) -> 1817.9 | L32: =VLOOKUP($B32,[1]EQ!$A$1:$L$2000,5,0) -> 1792.25 | M32: =(VLOOKUP($B32,[1]EQ!$A$1:$L$2000,9,0)/100000) -> 0.56789
A33: 23 | B33: AKZOINDIA | C33: =VLOOKUP($B33,[1]EQ!$A$1:$L$2000,6,0) -> 2190.75 | D33: 2197.08 | E33: 2174.67 | F33: 2158.58 | G33: 2136.17 | H33: 2213.17 | I33: 2235.58 | J33: 2251.67 | K33: =VLOOKUP($B33,[1]EQ!$A$1:$L$2000,4,0) -> 2219.5 | L33: =VLOOKUP($B33,[1]EQ!$A$1:$L$2000,5,0) -> 2181 | M33: =(VLOOKUP($B33,[1]EQ!$A$1:$L$2000,9,0)/100000) -> 0.08712
A34: 24 | B34: ALEMBICLTD | C34: =VLOOKUP($B34,[1]EQ!$A$1:$L$2000,6,0) -> 102.4 | D34: 102.07 | E34: 100.38 | F34: 98.37 | G34: 96.68 | H34: 104.08 | I34: 105.77 | J34: 107.78 | K34: =VLOOKUP($B34,[1]EQ!$A$1:$L$2000,4,0) -> 103.75 | L34: =VLOOKUP($B34,[1]EQ!$A$1:$L$2000,5,0) -> 100.05 | M34: =(VLOOKUP($B34,[1]EQ!$A$1:$L$2000,9,0)/100000) -> 3.56172
A35: 25 | B35: APLLTD | C35: =VLOOKUP($B35,[1]EQ!$A$1:$L$2000,6,0) -> 960.9 | D35: 966.98 | E35: 949.97 | F35: 939.03 | G35: 922.02 | H35: 977.92 | I35: 994.93 | J35: 1005.87 | K35: =VLOOKUP($B35,[1]EQ!$A$1:$L$2000,4,0) -> 984 | L35: =VLOOKUP($B35,[1]EQ!$A$1:$L$2000,5,0) -> 956.05 | M35: =(VLOOKUP($B35,[1]EQ!$A$1:$L$2000,9,0)/100000) -> 2.39259
A36: 26 | B36: ALKEM | C36: =VLOOKUP($B36,[1]EQ!$A$1:$L$2000,6,0) -> 2876.2 | D36: 2885.10 | E36: 2852.10 | F36: 2828.00 | G36: 2795.00 | H36: 2909.20 | I36: 2942.20 | J36: 2966.30 | K36: =VLOOKUP($B36,[1]EQ!$A$1:$L$2000,4,0) -> 2918.1 | L36: =VLOOKUP($B36,[1]EQ!$A$1:$L$2000,5,0) -> 2861 | M36: =(VLOOKUP($B36,[1]EQ!$A$1:$L$2000,9,0)/100000) -> 0.8748
A37: 27 | B37: ALKYLAMINE | C37: =VLOOKUP($B37,[1]EQ!$A$1:$L$2000,6,0) -> 5199.25 | D37: 5233.83 | E37: 5145.42 | F37: 5091.58 | G37: 5003.17 | H37: 5287.67 | I37: 5376.08 | J37: 5429.92 | K37: =VLOOKUP($B37,[1]EQ!$A$1:$L$2000,4,0) -> 5322.25 | L37: =VLOOKUP($B37,[1]EQ!$A$1:$L$2000,5,0) -> 5180 | M37: =(VLOOKUP($B37,[1]EQ!$A$1:$L$2000,9,0)/100000) -> 0.21406
A38: 28 | B38: ALOKINDS | C38: =VLOOKUP($B38,[1]EQ!$A$1:$L$2000,6,0) -> 20.35 | D38: 20.45 | E38: 20.15 | F38: 19.95 | G38: 19.65 | H38: 20.65 | I38: 20.95 | J38: 21.15 | K38: =VLOOKUP($B38,[1]EQ!$A$1:$L$2000,4,0) -> 20.75 | L38: =VLOOKUP($B38,[1]EQ!$A$1:$L$2000,5,0) -> 20.25 | M38: =(VLOOKUP($B38,[1]EQ!$A$1:$L$2000,9,0)/100000) -> 59.68221
A39: 29 | B39: AMARAJABAT | C39: =VLOOKUP($B39,[1]EQ!$A$1:$L$2000,6,0) -> 907.9 | D39: 915.62 | E39: 896.28 | F39: 884.67 | G39: 865.33 | H39: 927.23 | I39: 946.57 | J39: 958.18 | K39: =VLOOKUP($B39,[1]EQ!$A$1:$L$2000,4,0) -> 934.95 | L39: =VLOOKUP($B39,[1]EQ!$A$1:$L$2000,5,0) -> 904 | M39: =(VLOOKUP($B39,[1]EQ!$A$1:$L$2000,9,0)/100000) -> 22.37254
A40: 30 | B40: AMBER | C40: =VLOOKUP($B40,[1]EQ!$A$1:$L$2000,6,0) -> 3215.4 | D40: 3231.52 | E40: 3173.03 | F40: 3130.67 | G40: 3072.18 | H40: 3273.88 | I40: 3332.37 | J40: 3374.73 | K40: =VLOOKUP($B40,[1]EQ!$A$1:$L$2000,4,0) -> 3290 | L40: =VLOOKUP($B40,[1]EQ!$A$1:$L$2000,5,0) -> 3189.15 | M40: =(VLOOKUP($B40,[1]EQ!$A$1:$L$2000,9,0)/100000) -> 1.00407
A41: 31 | B41: AMBUJACEM | C41: =VLOOKUP($B41,[1]EQ!$A$1:$L$2000,6,0) -> 284.05 | D41: 283.85 | E41: 280.40 | F41: 276.75 | G41: 273.30 | H41: 287.50 | I41: 290.95 | J41: 294.60 | K41: =VLOOKUP($B41,[1]EQ!$A$1:$L$2000,4,0) -> 287.3 | L41: =VLOOKUP($B41,[1]EQ!$A$1:$L$2000,5,0) -> 280.2 | M41: =(VLOOKUP($B41,[1]EQ!$A$1:$L$2000,9,0)/100000) -> 61.16048
A42: 32 | B42: APOLLOHOSP | C42: =VLOOKUP($B42,[1]EQ!$A$1:$L$2000,6,0) -> 3202.75 | D42: 3167.77 | E42: 3081.98 | F42: 2961.22 | G42: 2875.43 | H42: 3288.53 | I42: 3374.32 | J42: 3495.08 | K42: =VLOOKUP($B42,[1]EQ!$A$1:$L$2000,4,0) -> 3253.55 | L42: =VLOOKUP($B42,[1]EQ!$A$1:$L$2000,5,0) -> 3047 | M42: =(VLOOKUP($B42,[1]EQ!$A$1:$L$2000,9,0)/100000) -> 43.81584
A43: 33 | B43: APOLLOTYRE | C43: =VLOOKUP($B43,[1]EQ!$A$1:$L$2000,6,0) -> 236.25 | D43: 236.47 | E43: 232.38 | F43: 228.52 | G43: 224.43 | H43: 240.33 | I43: 244.42 | J43: 248.28 | K43: =VLOOKUP($B43,[1]EQ!$A$1:$L$2000,4,0) -> 240.55 | L43: =VLOOKUP($B43,[1]EQ!$A$1:$L$2000,5,0) -> 232.6 | M43: =(VLOOKUP($B43,[1]EQ!$A$1:$L$2000,9,0)/100000) -> 87.06612
A44: 34 | B44: ASHOKLEY | C44: =VLOOKUP($B44,[1]EQ!$A$1:$L$2000,6,0) -> 128.75 | D44: 129.53 | E44: 126.97 | F44: 125.18 | G44: 122.62 | H44: 131.32 | I44: 133.88 | J44: 135.67 | K44: =VLOOKUP($B44,[1]EQ!$A$1:$L$2000,4,0) -> 132.1 | L44: =VLOOKUP($B44,[1]EQ!$A$1:$L$2000,5,0) -> 127.75 | M44: =(VLOOKUP($B44,[1]EQ!$A$1:$L$2000,9,0)/100000) -> 227.87254
A45: 35 | B45: ASHOKA | C45: =VLOOKUP($B45,[1]EQ!$A$1:$L$2000,6,0) -> 116.75 | D45: 114.00 | E45: 109.90 | F45: 103.05 | G45: 98.95 | H45: 120.85 | I45: 124.95 | J45: 131.80 | K45: =VLOOKUP($B45,[1]EQ!$A$1:$L$2000,4,0) -> 118.1 | L45: =VLOOKUP($B45,[1]EQ!$A$1:$L$2000,5,0) -> 107.15 | M45: =(VLOOKUP($B45,[1]EQ!$A$1:$L$2000,9,0)/100000) -> 36.7355
A46: 36 | B46: ASIANPAINT | C46: =VLOOKUP($B46,[1]EQ!$A$1:$L$2000,6,0) -> 2450.25 | D46: 2449.12 | E46: 2423.13 | F46: 2396.02 | G46: 2370.03 | H46: 2476.23 | I46: 2502.22 | J46: 2529.33 | K46: =VLOOKUP($B46,[1]EQ!$A$1:$L$2000,4,0) -> 2475.1 | L46: =VLOOKUP($B46,[1]EQ!$A$1:$L$2000,5,0) -> 2422 | M46: =(VLOOKUP($B46,[1]EQ!$A$1:$L$2000,9,0)/100000) -> 16.15849
A47: 37 | B47: ASTERDM | C47: =VLOOKUP($B47,[1]EQ!$A$1:$L$2000,6,0) -> 148.7 | D47: 149.92 | E47: 146.83 | F47: 144.97 | G47: 141.88 | H47: 151.78 | I47: 154.87 | J47: 156.73 | K47: =VLOOKUP($B47,[1]EQ!$A$1:$L$2000,4,0) -> 153 | L47: =VLOOKUP($B47,[1]EQ!$A$1:$L$2000,5,0) -> 148.05 | M47: =(VLOOKUP($B47,[1]EQ!$A$1:$L$2000,9,0)/100000) -> 2.59668
A48: 38 | B48: ASTRAZEN | C48: =VLOOKUP($B48,[1]EQ!$A$1:$L$2000,6,0) -> 3768.85 | D48: 3839.62 | E48: 3629.23 | F48: 3489.62 | G48: 3279.23 | H48: 3979.23 | I48: 4189.62 | J48: 4329.23 | K48: =VLOOKUP($B48,[1]EQ!$A$1:$L$2000,4,0) -> 4050 | L48: =VLOOKUP($B48,[1]EQ!$A$1:$L$2000,5,0) -> 3700 | M48: =(VLOOKUP($B48,[1]EQ!$A$1:$L$2000,9,0)/100000) -> 2.58002
A49: 39 | B49: ASTRAL | C49: =VLOOKUP($B49,[1]EQ!$A$1:$L$2000,6,0) -> 2013.9 | D49: 2031.30 | E49: 1991.60 | F49: 1969.30 | G49: 1929.60 | H49: 2053.60 | I49: 2093.30 | J49: 2115.60 | K49: =VLOOKUP($B49,[1]EQ!$A$1:$L$2000,4,0) -> 2071 | L49: =VLOOKUP($B49,[1]EQ!$A$1:$L$2000,5,0) -> 2009 | M49: =(VLOOKUP($B49,[1]EQ!$A$1:$L$2000,9,0)/100000) -> 1.23029
A50: 40 | B50: ATUL | C50: =VLOOKUP($B50,[1]EQ!$A$1:$L$2000,6,0) -> 6770.55 | D50: 6760.90 | E50: 6721.80 | F50: 6673.05 | G50: 6633.95 | H50: 6809.65 | I50: 6848.75 | J50: 6897.50 | K50: =VLOOKUP($B50,[1]EQ!$A$1:$L$2000,4,0) -> 6800 | L50: =VLOOKUP($B50,[1]EQ!$A$1:$L$2000,5,0) -> 6712.15 | M50: =(VLOOKUP($B50,[1]EQ!$A$1:$L$2000,9,0)/100000) -> 0.20461
A51: 41 | B51: AUROPHARMA | C51: =VLOOKUP($B51,[1]EQ!$A$1:$L$2000,6,0) -> 935.85 | D51: 934.08 | E51: 925.47 | F51: 915.08 | G51: 906.47 | H51: 944.47 | I51: 953.08 | J51: 963.47 | K51: =VLOOKUP($B51,[1]EQ!$A$1:$L$2000,4,0) -> 942.7 | L51: =VLOOKUP($B51,[1]EQ!$A$1:$L$2000,5,0) -> 923.7 | M51: =(VLOOKUP($B51,[1]EQ!$A$1:$L$2000,9,0)/100000) -> 18.26339
A52: 42 | B52: AVANTIFEED | C52: =VLOOKUP($B52,[1]EQ!$A$1:$L$2000,6,0) -> 486.3 | D52: 489.67 | E52: 481.63 | F52: 476.97 | G52: 468.93 | H52: 494.33 | I52: 502.37 | J52: 507.03 | K52: =VLOOKUP($B52,[1]EQ!$A$1:$L$2000,4,0) -> 497.7 | L52: =VLOOKUP($B52,[1]EQ!$A$1:$L$2000,5,0) -> 485 | M52: =(VLOOKUP($B52,[1]EQ!$A$1:$L$2000,9,0)/100000) -> 2.45631
A53: 43 | B53: DMART | C53: =VLOOKUP($B53,[1]EQ!$A$1:$L$2000,6,0) -> 3130.85 | D53: 3110.60 | E53: 3066.20 | F53: 3001.55 | G53: 2957.15 | H53: 3175.25 | I53: 3219.65 | J53: 3284.30 | K53: =VLOOKUP($B53,[1]EQ!$A$1:$L$2000,4,0) -> 3155 | L53: =VLOOKUP($B53,[1]EQ!$A$1:$L$2000,5,0) -> 3045.95 | M53: =(VLOOKUP($B53,[1]EQ!$A$1:$L$2000,9,0)/100000) -> 7.92804
A54: 44 | B54: AXISBANK | C54: =VLOOKUP($B54,[1]EQ!$A$1:$L$2000,6,0) -> 775.05 | D54: 780.35 | E54: 761.70 | F54: 748.35 | G54: 729.70 | H54: 793.70 | I54: 812.35 | J54: 825.70 | K54: =VLOOKUP($B54,[1]EQ!$A$1:$L$2000,4,0) -> 799 | L54: =VLOOKUP($B54,[1]EQ!$A$1:$L$2000,5,0) -> 767 | M54: =(VLOOKUP($B54,[1]EQ!$A$1:$L$2000,9,0)/100000) -> 239.68943
A55: 45 | B55: BASF | C55: =VLOOKUP($B55,[1]EQ!$A$1:$L$2000,6,0) -> 1999.75 | D55: 2007.48 | E55: 1955.77 | F55: 1911.78 | G55: 1860.07 | H55: 2051.47 | I55: 2103.18 | J55: 2147.17 | K55: =VLOOKUP($B55,[1]EQ!$A$1:$L$2000,4,0) -> 2059.2 | L55: =VLOOKUP($B55,[1]EQ!$A$1:$L$2000,5,0) -> 1963.5 | M55: =(VLOOKUP($B55,[1]EQ!$A$1:$L$2000,9,0)/100000) -> 0.745
A56: 46 | B56: BEML | C56: =VLOOKUP($B56,[1]EQ!$A$1:$L$2000,6,0) -> 940.15 | D56: 947.67 | E56: 928.58 | F56: 917.02 | G56: 897.93 | H56: 959.23 | I56: 978.32 | J56: 989.88 | K56: =VLOOKUP($B56,[1]EQ!$A$1:$L$2000,4,0) -> 966.75 | L56: =VLOOKUP($B56,[1]EQ!$A$1:$L$2000,5,0) -> 936.1 | M56: =(VLOOKUP($B56,[1]EQ!$A$1:$L$2000,9,0)/100000) -> 2.32061
A57: 47 | B57: BSE | C57: =VLOOKUP($B57,[1]EQ!$A$1:$L$2000,6,0) -> 596.45 | D57: 594.82 | E57: 573.23 | F57: 550.02 | G57: 528.43 | H57: 618.03 | I57: 639.62 | J57: 662.83 | K57: =VLOOKUP($B57,[1]EQ!$A$1:$L$2000,4,0) -> 616.4 | L57: =VLOOKUP($B57,[1]EQ!$A$1:$L$2000,5,0) -> 571.6 | M57: =(VLOOKUP($B57,[1]EQ!$A$1:$L$2000,9,0)/100000) -> 6.6112
A58: 48 | B58: BAJAJ-AUTO | C58: =VLOOKUP($B58,[1]EQ!$A$1:$L$2000,6,0) -> 4132.85 | D58: 4144.82 | E58: 4112.03 | F58: 4091.22 | G58: 4058.43 | H58: 4165.63 | I58: 4198.42 | J58: 4219.23 | K58: =VLOOKUP($B58,[1]EQ!$A$1:$L$2000,4,0) -> 4177.6 | L58: =VLOOKUP($B58,[1]EQ!$A$1:$L$2000,5,0) -> 4124 | M58: =(VLOOKUP($B58,[1]EQ!$A$1:$L$2000,9,0)/100000) -> 3.1828
A59: 49 | B59: BAJAJCON | C59: =VLOOKUP($B59,[1]EQ!$A$1:$L$2000,6,0) -> 238.95 | D59: 239.72 | E59: 232.73 | F59: 226.52 | G59: 219.53 | H59: 245.93 | I59: 252.92 | J59: 259.13 | K59: =VLOOKUP($B59,[1]EQ!$A$1:$L$2000,4,0) -> 246.7 | L59: =VLOOKUP($B59,[1]EQ!$A$1:$L$2000,5,0) -> 233.5 | M59: =(VLOOKUP($B59,[1]EQ!$A$1:$L$2000,9,0)/100000) -> 12.10476
A60: 50 | B60: BAJAJELEC | C60: =VLOOKUP($B60,[1]EQ!$A$1:$L$2000,6,0) -> 1053.05 | D60: 1058.40 | E60: 1040.05 | F60: 1027.05 | G60: 1008.70 | H60: 1071.40 | I60: 1089.75 | J60: 1102.75 | K60: =VLOOKUP($B60,[1]EQ!$A$1:$L$2000,4,0) -> 1076.75 | L60: =VLOOKUP($B60,[1]EQ!$A$1:$L$2000,5,0) -> 1045.4 | M60: =(VLOOKUP($B60,[1]EQ!$A$1:$L$2000,9,0)/100000) -> 2.14933
A61: 51 | B61: BAJFINANCE | C61: =VLOOKUP($B61,[1]EQ!$A$1:$L$2000,6,0) -> 5760.25 | D61: 5757.58 | E61: 5692.97 | F61: 5625.68 | G61: 5561.07 | H61: 5824.87 | I61: 5889.48 | J61: 5956.77 | K61: =VLOOKUP($B61,[1]EQ!$A$1:$L$2000,4,0) -> 5822.2 | L61: =VLOOKUP($B61,[1]EQ!$A$1:$L$2000,5,0) -> 5690.3 | M61: =(VLOOKUP($B61,[1]EQ!$A$1:$L$2000,9,0)/100000) -> 21.2681
A62: 52 | B62: BAJAJFINSV | C62: =VLOOKUP($B62,[1]EQ!$A$1:$L$2000,6,0) -> 10460.6 | D62: 10451.20 | E62: 10370.40 | F62: 10280.20 | G62: 10199.40 | H62: 10541.40 | I62: 10622.20 | J62: 10712.40 | K62: =VLOOKUP($B62,[1]EQ!$A$1:$L$2000,4,0) -> 10532 | L62: =VLOOKUP($B62,[1]EQ!$A$1:$L$2000,5,0) -> 10361 | M62: =(VLOOKUP($B62,[1]EQ!$A$1:$L$2000,9,0)/100000) -> 3.58604
A63: 53 | B63: BAJAJHLDNG | C63: =VLOOKUP($B63,[1]EQ!$A$1:$L$2000,6,0) -> 3618.95 | D63: 3603.38 | E63: 3565.87 | F63: 3512.78 | G63: 3475.27 | H63: 3656.47 | I63: 3693.98 | J63: 3747.07 | K63: =VLOOKUP($B63,[1]EQ!$A$1:$L$2000,4,0) -> 3640.9 | L63: =VLOOKUP($B63,[1]EQ!$A$1:$L$2000,5,0) -> 3550.3 | M63: =(VLOOKUP($B63,[1]EQ!$A$1:$L$2000,9,0)/100000) -> 0.29612
A64: 54 | B64: BALKRISIND | C64: =VLOOKUP($B64,[1]EQ!$A$1:$L$2000,6,0) -> 1621.55 | D64: 1632.03 | E64: 1602.52 | F64: 1583.48 | G64: 1553.97 | H64: 1651.07 | I64: 1680.58 | J64: 1699.62 | K64: =VLOOKUP($B64,[1]EQ!$A$1:$L$2000,4,0) -> 1661.55 | L64: =VLOOKUP($B64,[1]EQ!$A$1:$L$2000,5,0) -> 1613 | M64: =(VLOOKUP($B64,[1]EQ!$A$1:$L$2000,9,0)/100000) -> 10.12966
A65: 55 | B65: BALMLAWRIE | C65: =VLOOKUP($B65,[1]EQ!$A$1:$L$2000,6,0) -> 113.5 | D65: 113.77 | E65: 112.93 | F65: 112.37 | G65: 111.53 | H65: 114.33 | I65: 115.17 | J65: 115.73 | K65: =VLOOKUP($B65,[1]EQ!$A$1:$L$2000,4,0) -> 114.6 | L65: =VLOOKUP($B65,[1]EQ!$A$1:$L$2000,5,0) -> 113.2 | M65: =(VLOOKUP($B65,[1]EQ!$A$1:$L$2000,9,0)/100000) -> 1.54058
A66: 56 | B66: BALRAMCHIN | C66: =VLOOKUP($B66,[1]EQ!$A$1:$L$2000,6,0) -> 157.45 | D66: 157.78 | E66: 156.67 | F66: 155.88 | G66: 154.77 | H66: 158.57 | I66: 159.68 | J66: 160.47 | K66: =VLOOKUP($B66,[1]EQ!$A$1:$L$2000,4,0) -> 158.9 | L66: =VLOOKUP($B66,[1]EQ!$A$1:$L$2000,5,0) -> 157 | M66: =(VLOOKUP($B66,[1]EQ!$A$1:$L$2000,9,0)/100000) -> 4.86871
A67: 57 | B67: BANDHANBNK | C67: =VLOOKUP($B67,[1]EQ!$A$1:$L$2000,6,0) -> 350.15 | D67: 346.42 | E67: 340.23 | F67: 330.32 | G67: 324.13 | H67: 356.33 | I67: 362.52 | J67: 372.43 | K67: =VLOOKUP($B67,[1]EQ!$A$1:$L$2000,4,0) -> 352.6 | L67: =VLOOKUP($B67,[1]EQ!$A$1:$L$2000,5,0) -> 336.5 | M67: =(VLOOKUP($B67,[1]EQ!$A$1:$L$2000,9,0)/100000) -> 131.33247
A68: 58 | B68: BANKBARODA | C68: =VLOOKUP($B68,[1]EQ!$A$1:$L$2000,6,0) -> 79.7 | D68: 80.02 | E68: 78.28 | F68: 76.87 | G68: 75.13 | H68: 81.43 | I68: 83.17 | J68: 84.58 | K68: =VLOOKUP($B68,[1]EQ!$A$1:$L$2000,4,0) -> 81.75 | L68: =VLOOKUP($B68,[1]EQ!$A$1:$L$2000,5,0) -> 78.6 | M68: =(VLOOKUP($B68,[1]EQ!$A$1:$L$2000,9,0)/100000) -> 448.03164
A69: 59 | B69: BANKINDIA | C69: =VLOOKUP($B69,[1]EQ!$A$1:$L$2000,6,0) -> 70.6 | D69: 67.83 | E69: 65.07 | F69: 59.53 | G69: 56.77 | H69: 73.37 | I69: 76.13 | J69: 81.67 | K69: =VLOOKUP($B69,[1]EQ!$A$1:$L$2000,4,0) -> 70.6 | L69: =VLOOKUP($B69,[1]EQ!$A$1:$L$2000,5,0) -> 62.3 | M69: =(VLOOKUP($B69,[1]EQ!$A$1:$L$2000,9,0)/100000) -> 573.5488
A70: 60 | B70: MAHABANK | C70: =VLOOKUP($B70,[1]EQ!$A$1:$L$2000,6,0) -> 19.05 | D70: 18.58 | E70: 18.12 | F70: 17.18 | G70: 16.72 | H70: 19.52 | I70: 19.98 | J70: 20.92 | K70: =VLOOKUP($B70,[1]EQ!$A$1:$L$2000,4,0) -> 19.05 | L70: =VLOOKUP($B70,[1]EQ!$A$1:$L$2000,5,0) -> 17.65 | M70: =(VLOOKUP($B70,[1]EQ!$A$1:$L$2000,9,0)/100000) -> 204.16812
A71: 61 | B71: BATAINDIA | C71: =VLOOKUP($B71,[1]EQ!$A$1:$L$2000,6,0) -> 1524.65 | D71: 1536.55 | E71: 1509.10 | F71: 1493.55 | G71: 1466.10 | H71: 1552.10 | I71: 1579.55 | J71: 1595.10 | K71: =VLOOKUP($B71,[1]EQ!$A$1:$L$2000,4,0) -> 1564 | L71: =VLOOKUP($B71,[1]EQ!$A$1:$L$2000,5,0) -> 1521 | M71: =(VLOOKUP($B71,[1]EQ!$A$1:$L$2000,9,0)/100000) -> 4.26008
A72: 62 | B72: BAYERCROP | C72: =VLOOKUP($B72,[1]EQ!$A$1:$L$2000,6,0) -> 5245.7 | D72: 5216.57 | E72: 5134.13 | F72: 5022.57 | G72: 4940.13 | H72: 5328.13 | I72: 5410.57 | J72: 5522.13 | K72: =VLOOKUP($B72,[1]EQ!$A$1:$L$2000,4,0) -> 5299 | L72: =VLOOKUP($B72,[1]EQ!$A$1:$L$2000,5,0) -> 5105 | M72: =(VLOOKUP($B72,[1]EQ!$A$1:$L$2000,9,0)/100000) -> 0.63028
A73: 63 | B73: BERGEPAINT | C73: =VLOOKUP($B73,[1]EQ!$A$1:$L$2000,6,0) -> 759.55 | D73: 760.98 | E73: 750.17 | F73: 740.78 | G73: 729.97 | H73: 770.37 | I73: 781.18 | J73: 790.57 | K73: =VLOOKUP($B73,[1]EQ!$A$1:$L$2000,4,0) -> 771.8 | L73: =VLOOKUP($B73,[1]EQ!$A$1:$L$2000,5,0) -> 751.6 | M73: =(VLOOKUP($B73,[1]EQ!$A$1:$L$2000,9,0)/100000) -> 11.8825
A74: 64 | B74: BDL | C74: =VLOOKUP($B74,[1]EQ!$A$1:$L$2000,6,0) -> 342.2 | D74: 343.73 | E74: 338.47 | F74: 334.73 | G74: 329.47 | H74: 347.47 | I74: 352.73 | J74: 356.47 | K74: =VLOOKUP($B74,[1]EQ!$A$1:$L$2000,4,0) -> 349 | L74: =VLOOKUP($B74,[1]EQ!$A$1:$L$2000,5,0) -> 340 | M74: =(VLOOKUP($B74,[1]EQ!$A$1:$L$2000,9,0)/100000) -> 2.81761
A75: 65 | B75: BEL | C75: =VLOOKUP($B75,[1]EQ!$A$1:$L$2000,6,0) -> 133.15 | D75: =(C75+K75+L75)/3 -> 134.72 | E75: =+(D75*2)-K75 -> 130.98 | F75: =+D75-K75+L75 -> 128.82 | G75: =L75-2*(K75-D75) -> 125.08 | H75: =(D75*2)-L75 -> 136.88 | I75: =+D75+K75-L75 -> 140.62 | J75: =K75+2*(D75-L75) -> 142.78 | K75: =VLOOKUP($B75,[1]EQ!$A$1:$L$2000,4,0) -> 138.45 | L75: =VLOOKUP($B75,[1]EQ!$A$1:$L$2000,5,0) -> 132.55 | M75: =(VLOOKUP($B75,[1]EQ!$A$1:$L$2000,9,0)/100000) -> 162.38431
A76: 66 | B76: BHARATFORG | C76: =VLOOKUP($B76,[1]EQ!$A$1:$L$2000,6,0) -> 630.75 | D76: 630.82 | E76: 621.93 | F76: 613.12 | G76: 604.23 | H76: 639.63 | I76: 648.52 | J76: 657.33 | K76: =VLOOKUP($B76,[1]EQ!$A$1:$L$2000,4,0) -> 639.7 | L76: =VLOOKUP($B76,[1]EQ!$A$1:$L$2000,5,0) -> 622 | M76: =(VLOOKUP($B76,[1]EQ!$A$1:$L$2000,9,0)/100000) -> 22.09598
A77: 67 | B77: BHEL | C77: =VLOOKUP($B77,[1]EQ!$A$1:$L$2000,6,0) -> 39.9 | D77: 39.43 | E77: 38.87 | F77: 37.83 | G77: 37.27 | H77: 40.47 | I77: 41.03 | J77: 42.07 | K77: =VLOOKUP($B77,[1]EQ!$A$1:$L$2000,4,0) -> 40 | L77: =VLOOKUP($B77,[1]EQ!$A$1:$L$2000,5,0) -> 38.4 | M77: =(VLOOKUP($B77,[1]EQ!$A$1:$L$2000,9,0)/100000) -> 467.59963
A78: 68 | B78: BPCL | C78: =VLOOKUP($B78,[1]EQ!$A$1:$L$2000,6,0) -> 417.95 | D78: 418.92 | E78: 415.23 | F78: 412.52 | G78: 408.83 | H78: 421.63 | I78: 425.32 | J78: 428.03 | K78: =VLOOKUP($B78,[1]EQ!$A$1:$L$2000,4,0) -> 422.6 | L78: =VLOOKUP($B78,[1]EQ!$A$1:$L$2000,5,0) -> 416.2 | M78: =(VLOOKUP($B78,[1]EQ!$A$1:$L$2000,9,0)/100000) -> 53.97662
A79: 69 | B79: BHARATRAS | C79: =VLOOKUP($B79,[1]EQ!$A$1:$L$2000,6,0) -> 9753.35 | D79: 9803.80 | E79: 9649.60 | F79: 9545.85 | G79: 9391.65 | H79: 9907.55 | I79: 10061.75 | J79: 10165.50 | K79: =VLOOKUP($B79,[1]EQ!$A$1:$L$2000,4,0) -> 9958 | L79: =VLOOKUP($B79,[1]EQ!$A$1:$L$2000,5,0) -> 9700.05 | M79: =(VLOOKUP($B79,[1]EQ!$A$1:$L$2000,9,0)/100000) -> 0.05741
A80: 70 | B80: BHARTIARTL | C80: =VLOOKUP($B80,[1]EQ!$A$1:$L$2000,6,0) -> 593.95 | D80: 596.18 | E80: 590.77 | F80: 587.58 | G80: 582.17 | H80: 599.37 | I80: 604.78 | J80: 607.97 | K80: =VLOOKUP($B80,[1]EQ!$A$1:$L$2000,4,0) -> 601.6 | L80: =VLOOKUP($B80,[1]EQ!$A$1:$L$2000,5,0) -> 593 | M80: =(VLOOKUP($B80,[1]EQ!$A$1:$L$2000,9,0)/100000) -> 147.87224
A81: 71 | B81: BIOCON | C81: =VLOOKUP($B81,[1]EQ!$A$1:$L$2000,6,0) -> 417.4 | D81: 414.08 | E81: 409.57 | F81: 401.73 | G81: 397.22 | H81: 421.92 | I81: 426.43 | J81: 434.27 | K81: =VLOOKUP($B81,[1]EQ!$A$1:$L$2000,4,0) -> 418.6 | L81: =VLOOKUP($B81,[1]EQ!$A$1:$L$2000,5,0) -> 406.25 | M81: =(VLOOKUP($B81,[1]EQ!$A$1:$L$2000,9,0)/100000) -> 54.07782
A82: 72 | B82: BIRLACORPN | C82: =VLOOKUP($B82,[1]EQ!$A$1:$L$2000,6,0) -> 906.8 | D82: 909.63 | E82: 887.27 | F82: 867.73 | G82: 845.37 | H82: 929.17 | I82: 951.53 | J82: 971.07 | K82: =VLOOKUP($B82,[1]EQ!$A$1:$L$2000,4,0) -> 932 | L82: =VLOOKUP($B82,[1]EQ!$A$1:$L$2000,5,0) -> 890.1 | M82: =(VLOOKUP($B82,[1]EQ!$A$1:$L$2000,9,0)/100000) -> 4.86036
A83: 73 | B83: BSOFT | C83: =VLOOKUP($B83,[1]EQ!$A$1:$L$2000,6,0) -> 243.25 | D83: 243.52 | E83: 240.73 | F83: 238.22 | G83: 235.43 | H83: 246.03 | I83: 248.82 | J83: 251.33 | K83: =VLOOKUP($B83,[1]EQ!$A$1:$L$2000,4,0) -> 246.3 | L83: =VLOOKUP($B83,[1]EQ!$A$1:$L$2000,5,0) -> 241 | M83: =(VLOOKUP($B83,[1]EQ!$A$1:$L$2000,9,0)/100000) -> 6.87422
A84: 74 | B84: BLISSGVS | C84: =VLOOKUP($B84,[1]EQ!$A$1:$L$2000,6,0) -> 178.05 | D84: 177.92 | E84: 176.83 | F84: 175.62 | G84: 174.53 | H84: 179.13 | I84: 180.22 | J84: 181.43 | K84: =VLOOKUP($B84,[1]EQ!$A$1:$L$2000,4,0) -> 179 | L84: =VLOOKUP($B84,[1]EQ!$A$1:$L$2000,5,0) -> 176.7 | M84: =(VLOOKUP($B84,[1]EQ!$A$1:$L$2000,9,0)/100000) -> 4.1263
A85: 75 | B85: BLUEDART | C85: =VLOOKUP($B85,[1]EQ!$A$1:$L$2000,6,0) -> 4879.75 | D85: 4804.93 | E85: 4716.87 | F85: 4553.98 | G85: 4465.92 | H85: 4967.82 | I85: 5055.88 | J85: 5218.77 | K85: =VLOOKUP($B85,[1]EQ!$A$1:$L$2000,4,0) -> 4893 | L85: =VLOOKUP($B85,[1]EQ!$A$1:$L$2000,5,0) -> 4642.05 | M85: =(VLOOKUP($B85,[1]EQ!$A$1:$L$2000,9,0)/100000) -> 1.10297
A86: 76 | B86: BLUESTARCO | C86: =VLOOKUP($B86,[1]EQ!$A$1:$L$2000,6,0) -> 816.55 | D86: 818.13 | E86: 811.47 | F86: 806.38 | G86: 799.72 | H86: 823.22 | I86: 829.88 | J86: 834.97 | K86: =VLOOKUP($B86,[1]EQ!$A$1:$L$2000,4,0) -> 824.8 | L86: =VLOOKUP($B86,[1]EQ!$A$1:$L$2000,5,0) -> 813.05 | M86: =(VLOOKUP($B86,[1]EQ!$A$1:$L$2000,9,0)/100000) -> 0.89534
A87: 77 | B87: BBTC | C87: =VLOOKUP($B87,[1]EQ!$A$1:$L$2000,6,0) -> 1200.65 | D87: 1202.98 | E87: 1187.07 | F87: 1173.48 | G87: 1157.57 | H87: 1216.57 | I87: 1232.48 | J87: 1246.07 | K87: =VLOOKUP($B87,[1]EQ!$A$1:$L$2000,4,0) -> 1218.9 | L87: =VLOOKUP($B87,[1]EQ!$A$1:$L$2000,5,0) -> 1189.4 | M87: =(VLOOKUP($B87,[1]EQ!$A$1:$L$2000,9,0)/100000) -> 0.43151
A88: 78 | B88: BOMDYEING | C88: =VLOOKUP($B88,[1]EQ!$A$1:$L$2000,6,0) -> 71.25 | D88: 71.52 | E88: 70.08 | F88: 68.92 | G88: 67.48 | H88: 72.68 | I88: 74.12 | J88: 75.28 | K88: =VLOOKUP($B88,[1]EQ!$A$1:$L$2000,4,0) -> 72.95 | L88: =VLOOKUP($B88,[1]EQ!$A$1:$L$2000,5,0) -> 70.35 | M88: =(VLOOKUP($B88,[1]EQ!$A$1:$L$2000,9,0)/100000) -> 11.68775
A89: 79 | B89: BOSCHLTD | C89: =VLOOKUP($B89,[1]EQ!$A$1:$L$2000,6,0) -> 15579.6 | D89: 15586.50 | E89: 15323.10 | F89: 15066.60 | G89: 14803.20 | H89: 15843.00 | I89: 16106.40 | J89: 16362.90 | K89: =VLOOKUP($B89,[1]EQ!$A$1:$L$2000,4,0) -> 15849.9 | L89: =VLOOKUP($B89,[1]EQ!$A$1:$L$2000,5,0) -> 15330 | M89: =(VLOOKUP($B89,[1]EQ!$A$1:$L$2000,9,0)/100000) -> 0.58454
A90: 80 | B90: BRIGADE | C90: =VLOOKUP($B90,[1]EQ!$A$1:$L$2000,6,0) -> 281.8 | D90: 282.37 | E90: 278.73 | F90: 275.67 | G90: 272.03 | H90: 285.43 | I90: 289.07 | J90: 292.13 | K90: =VLOOKUP($B90,[1]EQ!$A$1:$L$2000,4,0) -> 286 | L90: =VLOOKUP($B90,[1]EQ!$A$1:$L$2000,5,0) -> 279.3 | M90: =(VLOOKUP($B90,[1]EQ!$A$1:$L$2000,9,0)/100000) -> 0.85075
A91: 81 | B91: BRITANNIA | C91: =VLOOKUP($B91,[1]EQ!$A$1:$L$2000,6,0) -> 3389.45 | D91: 3402.28 | E91: 3372.22 | F91: 3354.98 | G91: 3324.92 | H91: 3419.52 | I91: 3449.58 | J91: 3466.82 | K91: =VLOOKUP($B91,[1]EQ!$A$1:$L$2000,4,0) -> 3432.35 | L91: =VLOOKUP($B91,[1]EQ!$A$1:$L$2000,5,0) -> 3385.05 | M91: =(VLOOKUP($B91,[1]EQ!$A$1:$L$2000,9,0)/100000) -> 6.93631
A92: 82 | B92: CARERATING | C92: =VLOOKUP($B92,[1]EQ!$A$1:$L$2000,6,0) -> 489.7 | D92: 488.15 | E92: 484.80 | F92: 479.90 | G92: 476.55 | H92: 493.05 | I92: 496.40 | J92: 501.30 | K92: =VLOOKUP($B92,[1]EQ!$A$1:$L$2000,4,0) -> 491.5 | L92: =VLOOKUP($B92,[1]EQ!$A$1:$L$2000,5,0) -> 483.25 | M92: =(VLOOKUP($B92,[1]EQ!$A$1:$L$2000,9,0)/100000) -> 1.4836
A93: 83 | B93: CCL | C93: =VLOOKUP($B93,[1]EQ!$A$1:$L$2000,6,0) -> 242.3 | D93: 242.22 | E93: 240.43 | F93: 238.57 | G93: 236.78 | H93: 244.08 | I93: 245.87 | J93: 247.73 | K93: =VLOOKUP($B93,[1]EQ!$A$1:$L$2000,4,0) -> 244 | L93: =VLOOKUP($B93,[1]EQ!$A$1:$L$2000,5,0) -> 240.35 | M93: =(VLOOKUP($B93,[1]EQ!$A$1:$L$2000,9,0)/100000) -> 3.15619
A94: 84 | B94: CESC | C94: =VLOOKUP($B94,[1]EQ!$A$1:$L$2000,6,0) -> 618.1 | D94: 621.10 | E94: 614.00 | F94: 609.90 | G94: 602.80 | H94: 625.20 | I94: 632.30 | J94: 636.40 | K94: =VLOOKUP($B94,[1]EQ!$A$1:$L$2000,4,0) -> 628.2 | L94: =VLOOKUP($B94,[1]EQ!$A$1:$L$2000,5,0) -> 617 | M94: =(VLOOKUP($B94,[1]EQ!$A$1:$L$2000,9,0)/100000) -> 1.848
A95: 85 | B95: CRISIL | C95: =VLOOKUP($B95,[1]EQ!$A$1:$L$2000,6,0) -> 2007.85 | D95: 2018.98 | E95: 1988.97 | F95: 1970.08 | G95: 1940.07 | H95: 2037.87 | I95: 2067.88 | J95: 2086.77 | K95: =VLOOKUP($B95,[1]EQ!$A$1:$L$2000,4,0) -> 2049 | L95: =VLOOKUP($B95,[1]EQ!$A$1:$L$2000,5,0) -> 2000.1 | M95: =(VLOOKUP($B95,[1]EQ!$A$1:$L$2000,9,0)/100000) -> 0.4766
A96: 86 | B96: CSBBANK | C96: =VLOOKUP($B96,[1]EQ!$A$1:$L$2000,6,0) -> 218.7 | D96: 219.83 | E96: 216.87 | F96: 215.03 | G96: 212.07 | H96: 221.67 | I96: 224.63 | J96: 226.47 | K96: =VLOOKUP($B96,[1]EQ!$A$1:$L$2000,4,0) -> 222.8 | L96: =VLOOKUP($B96,[1]EQ!$A$1:$L$2000,5,0) -> 218 | M96: =(VLOOKUP($B96,[1]EQ!$A$1:$L$2000,9,0)/100000) -> 1.13026
A97: 87 | B97: CADILAHC | C97: =VLOOKUP($B97,[1]EQ!$A$1:$L$2000,6,0) -> 468.9 | D97: 468.90 | E97: 463.35 | F97: 457.80 | G97: 452.25 | H97: 474.45 | I97: 480.00 | J97: 485.55 | K97: =VLOOKUP($B97,[1]EQ!$A$1:$L$2000,4,0) -> 474.45 | L97: =VLOOKUP($B97,[1]EQ!$A$1:$L$2000,5,0) -> 463.35 | M97: =(VLOOKUP($B97,[1]EQ!$A$1:$L$2000,9,0)/100000) -> 33.92787
A98: 88 | B98: CANFINHOME | C98: =VLOOKUP($B98,[1]EQ!$A$1:$L$2000,6,0) -> 512.7 | D98: 515.95 | E98: 506.90 | F98: 501.10 | G98: 492.05 | H98: 521.75 | I98: 530.80 | J98: 536.60 | K98: =VLOOKUP($B98,[1]EQ!$A$1:$L$2000,4,0) -> 525 | L98: =VLOOKUP($B98,[1]EQ!$A$1:$L$2000,5,0) -> 510.15 | M98: =(VLOOKUP($B98,[1]EQ!$A$1:$L$2000,9,0)/100000) -> 8.44561
A99: 89 | B99: CANBK | C99: =VLOOKUP($B99,[1]EQ!$A$1:$L$2000,6,0) -> 162.6 | D99: 162.88 | E99: 159.82 | F99: 157.03 | G99: 153.97 | H99: 165.67 | I99: 168.73 | J99: 171.52 | K99: =VLOOKUP($B99,[1]EQ!$A$1:$L$2000,4,0) -> 165.95 | L99: =VLOOKUP($B99,[1]EQ!$A$1:$L$2000,5,0) -> 160.1 | M99: =(VLOOKUP($B99,[1]EQ!$A$1:$L$2000,9,0)/100000) -> 287.11074
A100: 90 | B100: CAPLIPOINT | C100: =VLOOKUP($B100,[1]EQ!$A$1:$L$2000,6,0) -> 471.1 | D100: 473.95 | E100: 467.20 | F100: 463.30 | G100: 456.55 | H100: 477.85 | I100: 484.60 | J100: 488.50 | K100: =VLOOKUP($B100,[1]EQ!$A$1:$L$2000,4,0) -> 480.7 | L100: =VLOOKUP($B100,[1]EQ!$A$1:$L$2000,5,0) -> 470.05 | M100: =(VLOOKUP($B100,[1]EQ!$A$1:$L$2000,9,0)/100000) -> 0.84394
A101: 91 | B101: CGCL | C101: =VLOOKUP($B101,[1]EQ!$A$1:$L$2000,6,0) -> 334.4 | D101: 339.45 | E101: 325.40 | F101: 316.40 | G101: 302.35 | H101: 348.45 | I101: 362.50 | J101: 371.50 | K101: =VLOOKUP($B101,[1]EQ!$A$1:$L$2000,4,0) -> 353.5 | L101: =VLOOKUP($B101,[1]EQ!$A$1:$L$2000,5,0) -> 330.45 | M101: =(VLOOKUP($B101,[1]EQ!$A$1:$L$2000,9,0)/100000) -> 0.92725
A102: 92 | B102: CARBORUNIV | C102: =VLOOKUP($B102,[1]EQ!$A$1:$L$2000,6,0) -> 502.05 | D102: 504.10 | E102: 483.85 | F102: 465.65 | G102: 445.40 | H102: 522.30 | I102: 542.55 | J102: 560.75 | K102: =VLOOKUP($B102,[1]EQ!$A$1:$L$2000,4,0) -> 524.35 | L102: =VLOOKUP($B102,[1]EQ!$A$1:$L$2000,5,0) -> 485.9 | M102: =(VLOOKUP($B102,[1]EQ!$A$1:$L$2000,9,0)/100000) -> 2.83214
A103: 93 | B103: CASTROLIND | C103: =VLOOKUP($B103,[1]EQ!$A$1:$L$2000,6,0) -> 126.65 | D103: 126.67 | E103: 125.13 | F103: 123.62 | G103: 122.08 | H103: 128.18 | I103: 129.72 | J103: 131.23 | K103: =VLOOKUP($B103,[1]EQ!$A$1:$L$2000,4,0) -> 128.2 | L103: =VLOOKUP($B103,[1]EQ!$A$1:$L$2000,5,0) -> 125.15 | M103: =(VLOOKUP($B103,[1]EQ!$A$1:$L$2000,9,0)/100000) -> 11.00161
A104: 94 | B104: CEATLTD | C104: =VLOOKUP($B104,[1]EQ!$A$1:$L$2000,6,0) -> 1617.7 | D104: 1615.17 | E104: 1587.53 | F104: 1557.37 | G104: 1529.73 | H104: 1645.33 | I104: 1672.97 | J104: 1703.13 | K104: =VLOOKUP($B104,[1]EQ!$A$1:$L$2000,4,0) -> 1642.8 | L104: =VLOOKUP($B104,[1]EQ!$A$1:$L$2000,5,0) -> 1585 | M104: =(VLOOKUP($B104,[1]EQ!$A$1:$L$2000,9,0)/100000) -> 1.72509
A105: 95 | B105: CENTRALBK | C105: =VLOOKUP($B105,[1]EQ!$A$1:$L$2000,6,0) -> 16.7 | D105: 16.23 | E105: 15.77 | F105: 14.83 | G105: 14.37 | H105: 17.17 | I105: 17.63 | J105: 18.57 | K105: =VLOOKUP($B105,[1]EQ!$A$1:$L$2000,4,0) -> 16.7 | L105: =VLOOKUP($B105,[1]EQ!$A$1:$L$2000,5,0) -> 15.3 | M105: =(VLOOKUP($B105,[1]EQ!$A$1:$L$2000,9,0)/100000) -> 1813.48035
A106: 96 | B106: CDSL | C106: =VLOOKUP($B106,[1]EQ!$A$1:$L$2000,6,0) -> 555.25 | D106: 562.38 | E106: 546.07 | F106: 536.88 | G106: 520.57 | H106: 571.57 | I106: 587.88 | J106: 597.07 | K106: =VLOOKUP($B106,[1]EQ!$A$1:$L$2000,4,0) -> 578.7 | L106: =VLOOKUP($B106,[1]EQ!$A$1:$L$2000,5,0) -> 553.2 | M106: =(VLOOKUP($B106,[1]EQ!$A$1:$L$2000,9,0)/100000) -> 14.4058
A107: 97 | B107: CENTURYPLY | C107: =VLOOKUP($B107,[1]EQ!$A$1:$L$2000,6,0) -> 307.45 | D107: 309.55 | E107: 303.10 | F107: 298.75 | G107: 292.30 | H107: 313.90 | I107: 320.35 | J107: 324.70 | K107: =VLOOKUP($B107,[1]EQ!$A$1:$L$2000,4,0) -> 316 | L107: =VLOOKUP($B107,[1]EQ!$A$1:$L$2000,5,0) -> 305.2 | M107: =(VLOOKUP($B107,[1]EQ!$A$1:$L$2000,9,0)/100000) -> 3.14655
A108: 98 | B108: CENTURYTEX | C108: =VLOOKUP($B108,[1]EQ!$A$1:$L$2000,6,0) -> 457.35 | D108: 458.98 | E108: 453.47 | F108: 449.58 | G108: 444.07 | H108: 462.87 | I108: 468.38 | J108: 472.27 | K108: =VLOOKUP($B108,[1]EQ!$A$1:$L$2000,4,0) -> 464.5 | L108: =VLOOKUP($B108,[1]EQ!$A$1:$L$2000,5,0) -> 455.1 | M108: =(VLOOKUP($B108,[1]EQ!$A$1:$L$2000,9,0)/100000) -> 2.10427
A109: 99 | B109: CERA | C109: =VLOOKUP($B109,[1]EQ!$A$1:$L$2000,6,0) -> 3993 | D109: 3954.00 | E109: 3881.00 | F109: 3769.00 | G109: 3696.00 | H109: 4066.00 | I109: 4139.00 | J109: 4251.00 | K109: =VLOOKUP($B109,[1]EQ!$A$1:$L$2000,4,0) -> 4027 | L109: =VLOOKUP($B109,[1]EQ!$A$1:$L$2000,5,0) -> 3842 | M109: =(VLOOKUP($B109,[1]EQ!$A$1:$L$2000,9,0)/100000) -> 0.6519
A110: 100 | B110: CHALET | C110: =VLOOKUP($B110,[1]EQ!$A$1:$L$2000,6,0) -> 173 | D110: 174.18 | E110: 171.12 | F110: 169.23 | G110: 166.17 | H110: 176.07 | I110: 179.13 | J110: 181.02 | K110: =VLOOKUP($B110,[1]EQ!$A$1:$L$2000,4,0) -> 177.25 | L110: =VLOOKUP($B110,[1]EQ!$A$1:$L$2000,5,0) -> 172.3 | M110: =(VLOOKUP($B110,[1]EQ!$A$1:$L$2000,9,0)/100000) -> 0.91762
A111: 101 | B111: CHAMBLFERT | C111: =VLOOKUP($B111,[1]EQ!$A$1:$L$2000,6,0) -> 235.85 | D111: 236.95 | E111: 232.90 | F111: 229.95 | G111: 225.90 | H111: 239.90 | I111: 243.95 | J111: 246.90 | K111: =VLOOKUP($B111,[1]EQ!$A$1:$L$2000,4,0) -> 241 | L111: =VLOOKUP($B111,[1]EQ!$A$1:$L$2000,5,0) -> 234 | M111: =(VLOOKUP($B111,[1]EQ!$A$1:$L$2000,9,0)/100000) -> 5.01106
A112: 102 | B112: CHENNPETRO | C112: =VLOOKUP($B112,[1]EQ!$A$1:$L$2000,6,0) -> 94.4 | D112: 95.00 | E112: 93.45 | F112: 92.50 | G112: 90.95 | H112: 95.95 | I112: 97.50 | J112: 98.45 | K112: =VLOOKUP($B112,[1]EQ!$A$1:$L$2000,4,0) -> 96.55 | L112: =VLOOKUP($B112,[1]EQ!$A$1:$L$2000,5,0) -> 94.05 | M112: =(VLOOKUP($B112,[1]EQ!$A$1:$L$2000,9,0)/100000) -> 4.14471
A113: 103 | B113: CHOLAHLDNG | C113: =VLOOKUP($B113,[1]EQ!$A$1:$L$2000,6,0) -> 589.75 | D113: 588.28 | E113: 576.57 | F113: 563.38 | G113: 551.67 | H113: 601.47 | I113: 613.18 | J113: 626.37 | K113: =VLOOKUP($B113,[1]EQ!$A$1:$L$2000,4,0) -> 600 | L113: =VLOOKUP($B113,[1]EQ!$A$1:$L$2000,5,0) -> 575.1 | M113: =(VLOOKUP($B113,[1]EQ!$A$1:$L$2000,9,0)/100000) -> 2.1734
A114: 104 | B114: CHOLAFIN | C114: =VLOOKUP($B114,[1]EQ!$A$1:$L$2000,6,0) -> 528.05 | D114: 527.37 | E114: 517.73 | F114: 507.42 | G114: 497.78 | H114: 537.68 | I114: 547.32 | J114: 557.63 | K114: =VLOOKUP($B114,[1]EQ!$A$1:$L$2000,4,0) -> 537 | L114: =VLOOKUP($B114,[1]EQ!$A$1:$L$2000,5,0) -> 517.05 | M114: =(VLOOKUP($B114,[1]EQ!$A$1:$L$2000,9,0)/100000) -> 104.86006
A115: 105 | B115: CIPLA | C115: =VLOOKUP($B115,[1]EQ!$A$1:$L$2000,6,0) -> 848.35 | D115: 847.28 | E115: 842.32 | F115: 836.28 | G115: 831.32 | H115: 853.32 | I115: 858.28 | J115: 864.32 | K115: =VLOOKUP($B115,[1]EQ!$A$1:$L$2000,4,0) -> 852.25 | L115: =VLOOKUP($B115,[1]EQ!$A$1:$L$2000,5,0) -> 841.25 | M115: =(VLOOKUP($B115,[1]EQ!$A$1:$L$2000,9,0)/100000) -> 28.08115
A116: 106 | B116: CUB | C116: =VLOOKUP($B116,[1]EQ!$A$1:$L$2000,6,0) -> 165.75 | D116: 167.53 | E116: 162.62 | F116: 159.48 | G116: 154.57 | H116: 170.67 | I116: 175.58 | J116: 178.72 | K116: =VLOOKUP($B116,[1]EQ!$A$1:$L$2000,4,0) -> 172.45 | L116: =VLOOKUP($B116,[1]EQ!$A$1:$L$2000,5,0) -> 164.4 | M116: =(VLOOKUP($B116,[1]EQ!$A$1:$L$2000,9,0)/100000) -> 56.45652
A117: 107 | B117: COALINDIA | C117: =VLOOKUP($B117,[1]EQ!$A$1:$L$2000,6,0) -> 133.75 | D117: 133.82 | E117: 132.23 | F117: 130.72 | G117: 129.13 | H117: 135.33 | I117: 136.92 | J117: 138.43 | K117: =VLOOKUP($B117,[1]EQ!$A$1:$L$2000,4,0) -> 135.4 | L117: =VLOOKUP($B117,[1]EQ!$A$1:$L$2000,5,0) -> 132.3 | M117: =(VLOOKUP($B117,[1]EQ!$A$1:$L$2000,9,0)/100000) -> 117.35144
A118: 108 | B118: COCHINSHIP | C118: =VLOOKUP($B118,[1]EQ!$A$1:$L$2000,6,0) -> 362.35 | D118: 361.62 | E118: 359.83 | F118: 357.32 | G118: 355.53 | H118: 364.13 | I118: 365.92 | J118: 368.43 | K118: =VLOOKUP($B118,[1]EQ!$A$1:$L$2000,4,0) -> 363.4 | L118: =VLOOKUP($B118,[1]EQ!$A$1:$L$2000,5,0) -> 359.1 | M118: =(VLOOKUP($B118,[1]EQ!$A$1:$L$2000,9,0)/100000) -> 2.45747
A119: 109 | B119: COFORGE | C119: =VLOOKUP($B119,[1]EQ!$A$1:$L$2000,6,0) -> 2622.05 | D119: 2618.70 | E119: 2584.40 | F119: 2546.75 | G119: 2512.45 | H119: 2656.35 | I119: 2690.65 | J119: 2728.30 | K119: =VLOOKUP($B119,[1]EQ!$A$1:$L$2000,4,0) -> 2653 | L119: =VLOOKUP($B119,[1]EQ!$A$1:$L$2000,5,0) -> 2581.05 | M119: =(VLOOKUP($B119,[1]EQ!$A$1:$L$2000,9,0)/100000) -> 3.41414
A120: 110 | B120: COLPAL | C120: =VLOOKUP($B120,[1]EQ!$A$1:$L$2000,6,0) -> 1581.05 | D120: 1585.55 | E120: 1563.45 | F120: 1545.85 | G120: 1523.75 | H120: 1603.15 | I120: 1625.25 | J120: 1642.85 | K120: =VLOOKUP($B120,[1]EQ!$A$1:$L$2000,4,0) -> 1607.65 | L120: =VLOOKUP($B120,[1]EQ!$A$1:$L$2000,5,0) -> 1567.95 | M120: =(VLOOKUP($B120,[1]EQ!$A$1:$L$2000,9,0)/100000) -> 2.98723
A121: 111 | B121: CONCOR | C121: =VLOOKUP($B121,[1]EQ!$A$1:$L$2000,6,0) -> 537.15 | D121: 537.42 | E121: 528.33 | F121: 519.52 | G121: 510.43 | H121: 546.23 | I121: 555.32 | J121: 564.13 | K121: =VLOOKUP($B121,[1]EQ!$A$1:$L$2000,4,0) -> 546.5 | L121: =VLOOKUP($B121,[1]EQ!$A$1:$L$2000,5,0) -> 528.6 | M121: =(VLOOKUP($B121,[1]EQ!$A$1:$L$2000,9,0)/100000) -> 31.75417
A122: 112 | B122: COROMANDEL | C122: =VLOOKUP($B122,[1]EQ!$A$1:$L$2000,6,0) -> 782.8 | D122: 781.22 | E122: 775.68 | F122: 768.57 | G122: 763.03 | H122: 788.33 | I122: 793.87 | J122: 800.98 | K122: =VLOOKUP($B122,[1]EQ!$A$1:$L$2000,4,0) -> 786.75 | L122: =VLOOKUP($B122,[1]EQ!$A$1:$L$2000,5,0) -> 774.1 | M122: =(VLOOKUP($B122,[1]EQ!$A$1:$L$2000,9,0)/100000) -> 5.71802
A123: 113 | B123: CREDITACC | C123: =VLOOKUP($B123,[1]EQ!$A$1:$L$2000,6,0) -> 709.65 | D123: 708.98 | E123: 704.72 | F123: 699.78 | G123: 695.52 | H123: 713.92 | I123: 718.18 | J123: 723.12 | K123: =VLOOKUP($B123,[1]EQ!$A$1:$L$2000,4,0) -> 713.25 | L123: =VLOOKUP($B123,[1]EQ!$A$1:$L$2000,5,0) -> 704.05 | M123: =(VLOOKUP($B123,[1]EQ!$A$1:$L$2000,9,0)/100000) -> 1.36669
A124: 114 | B124: CROMPTON | C124: =VLOOKUP($B124,[1]EQ!$A$1:$L$2000,6,0) -> 397.7 | D124: 396.77 | E124: 392.93 | F124: 388.17 | G124: 384.33 | H124: 401.53 | I124: 405.37 | J124: 410.13 | K124: =VLOOKUP($B124,[1]EQ!$A$1:$L$2000,4,0) -> 400.6 | L124: =VLOOKUP($B124,[1]EQ!$A$1:$L$2000,5,0) -> 392 | M124: =(VLOOKUP($B124,[1]EQ!$A$1:$L$2000,9,0)/100000) -> 38.72811
A125: 115 | B125: CUMMINSIND | C125: =VLOOKUP($B125,[1]EQ!$A$1:$L$2000,6,0) -> 766.35 | D125: 768.07 | E125: 759.83 | F125: 753.32 | G125: 745.08 | H125: 774.58 | I125: 782.82 | J125: 789.33 | K125: =VLOOKUP($B125,[1]EQ!$A$1:$L$2000,4,0) -> 776.3 | L125: =VLOOKUP($B125,[1]EQ!$A$1:$L$2000,5,0) -> 761.55 | M125: =(VLOOKUP($B125,[1]EQ!$A$1:$L$2000,9,0)/100000) -> 12.93232
A126: 116 | B126: CYIENT | C126: =VLOOKUP($B126,[1]EQ!$A$1:$L$2000,6,0) -> 619.65 | D126: 622.15 | E126: 611.50 | F126: 603.35 | G126: 592.70 | H126: 630.30 | I126: 640.95 | J126: 649.10 | K126: =VLOOKUP($B126,[1]EQ!$A$1:$L$2000,4,0) -> 632.8 | L126: =VLOOKUP($B126,[1]EQ!$A$1:$L$2000,5,0) -> 614 | M126: =(VLOOKUP($B126,[1]EQ!$A$1:$L$2000,9,0)/100000) -> 3.58058
A127: 117 | B127: DBCORP | C127: =VLOOKUP($B127,[1]EQ!$A$1:$L$2000,6,0) -> 85.4 | D127: 86.23 | E127: 84.17 | F127: 82.93 | G127: 80.87 | H127: 87.47 | I127: 89.53 | J127: 90.77 | K127: =VLOOKUP($B127,[1]EQ!$A$1:$L$2000,4,0) -> 88.3 | L127: =VLOOKUP($B127,[1]EQ!$A$1:$L$2000,5,0) -> 85 | M127: =(VLOOKUP($B127,[1]EQ!$A$1:$L$2000,9,0)/100000) -> 2.63627
A128: 118 | B128: DCBBANK | C128: =VLOOKUP($B128,[1]EQ!$A$1:$L$2000,6,0) -> 114.55 | D128: 114.70 | E128: 113.15 | F128: 111.75 | G128: 110.20 | H128: 116.10 | I128: 117.65 | J128: 119.05 | K128: =VLOOKUP($B128,[1]EQ!$A$1:$L$2000,4,0) -> 116.25 | L128: =VLOOKUP($B128,[1]EQ!$A$1:$L$2000,5,0) -> 113.3 | M128: =(VLOOKUP($B128,[1]EQ!$A$1:$L$2000,9,0)/100000) -> 20.31457
A129: 119 | B129: DCMSHRIRAM | C129: =VLOOKUP($B129,[1]EQ!$A$1:$L$2000,6,0) -> 474.95 | D129: 469.37 | E129: 460.78 | F129: 446.62 | G129: 438.03 | H129: 483.53 | I129: 492.12 | J129: 506.28 | K129: =VLOOKUP($B129,[1]EQ!$A$1:$L$2000,4,0) -> 477.95 | L129: =VLOOKUP($B129,[1]EQ!$A$1:$L$2000,5,0) -> 455.2 | M129: =(VLOOKUP($B129,[1]EQ!$A$1:$L$2000,9,0)/100000) -> 4.60506
A130: 120 | B130: DLF | C130: =VLOOKUP($B130,[1]EQ!$A$1:$L$2000,6,0) -> 319 | D130: 320.90 | E130: 313.60 | F130: 308.20 | G130: 300.90 | H130: 326.30 | I130: 333.60 | J130: 339.00 | K130: =VLOOKUP($B130,[1]EQ!$A$1:$L$2000,4,0) -> 328.2 | L130: =VLOOKUP($B130,[1]EQ!$A$1:$L$2000,5,0) -> 315.5 | M130: =(VLOOKUP($B130,[1]EQ!$A$1:$L$2000,9,0)/100000) -> 193.00639
A131: 121 | B131: DABUR | C131: =VLOOKUP($B131,[1]EQ!$A$1:$L$2000,6,0) -> 522.6 | D131: 525.25 | E131: 517.75 | F131: 512.90 | G131: 505.40 | H131: 530.10 | I131: 537.60 | J131: 542.45 | K131: =VLOOKUP($B131,[1]EQ!$A$1:$L$2000,4,0) -> 532.75 | L131: =VLOOKUP($B131,[1]EQ!$A$1:$L$2000,5,0) -> 520.4 | M131: =(VLOOKUP($B131,[1]EQ!$A$1:$L$2000,9,0)/100000) -> 31.19109
A132: 122 | B132: DALBHARAT | C132: =VLOOKUP($B132,[1]EQ!$A$1:$L$2000,6,0) -> 1444.8 | D132: 1436.62 | E132: 1376.23 | F132: 1307.67 | G132: 1247.28 | H132: 1505.18 | I132: 1565.57 | J132: 1634.13 | K132: =VLOOKUP($B132,[1]EQ!$A$1:$L$2000,4,0) -> 1497 | L132: =VLOOKUP($B132,[1]EQ!$A$1:$L$2000,5,0) -> 1368.05 | M132: =(VLOOKUP($B132,[1]EQ!$A$1:$L$2000,9,0)/100000) -> 3.06389
A133: 123 | B133: DEEPAKNTR | C133: =VLOOKUP($B133,[1]EQ!$A$1:$L$2000,6,0) -> 1273.8 | D133: 1243.50 | E133: 1193.00 | F133: 1112.20 | G133: 1061.70 | H133: 1324.30 | I133: 1374.80 | J133: 1455.60 | K133: =VLOOKUP($B133,[1]EQ!$A$1:$L$2000,4,0) -> 1294 | L133: =VLOOKUP($B133,[1]EQ!$A$1:$L$2000,5,0) -> 1162.7 | M133: =(VLOOKUP($B133,[1]EQ!$A$1:$L$2000,9,0)/100000) -> 37.10214
A134: 124 | B134: DELTACORP | C134: =VLOOKUP($B134,[1]EQ!$A$1:$L$2000,6,0) -> 154.75 | D134: 155.38 | E134: 152.82 | F134: 150.88 | G134: 148.32 | H134: 157.32 | I134: 159.88 | J134: 161.82 | K134: =VLOOKUP($B134,[1]EQ!$A$1:$L$2000,4,0) -> 157.95 | L134: =VLOOKUP($B134,[1]EQ!$A$1:$L$2000,5,0) -> 153.45 | M134: =(VLOOKUP($B134,[1]EQ!$A$1:$L$2000,9,0)/100000) -> 20.89645
A135: 125 | B135: DHANI | C135: =VLOOKUP($B135,[1]EQ!$A$1:$L$2000,6,0) -> 364.95 | D135: 363.33 | E135: 356.67 | F135: 348.38 | G135: 341.72 | H135: 371.62 | I135: 378.28 | J135: 386.57 | K135: =VLOOKUP($B135,[1]EQ!$A$1:$L$2000,4,0) -> 370 | L135: =VLOOKUP($B135,[1]EQ!$A$1:$L$2000,5,0) -> 355.05 | M135: =(VLOOKUP($B135,[1]EQ!$A$1:$L$2000,9,0)/100000) -> 9.78217
A136: 126 | B136: DHANUKA | C136: =VLOOKUP($B136,[1]EQ!$A$1:$L$2000,6,0) -> 753.2 | D136: 757.73 | E136: 745.47 | F136: 737.73 | G136: 725.47 | H136: 765.47 | I136: 777.73 | J136: 785.47 | K136: =VLOOKUP($B136,[1]EQ!$A$1:$L$2000,4,0) -> 770 | L136: =VLOOKUP($B136,[1]EQ!$A$1:$L$2000,5,0) -> 750 | M136: =(VLOOKUP($B136,[1]EQ!$A$1:$L$2000,9,0)/100000) -> 0.40133
A137: 127 | B137: DBL | C137: =VLOOKUP($B137,[1]EQ!$A$1:$L$2000,6,0) -> 554.8 | D137: 551.70 | E137: 540.15 | F137: 525.50 | G137: 513.95 | H137: 566.35 | I137: 577.90 | J137: 592.55 | K137: =VLOOKUP($B137,[1]EQ!$A$1:$L$2000,4,0) -> 563.25 | L137: =VLOOKUP($B137,[1]EQ!$A$1:$L$2000,5,0) -> 537.05 | M137: =(VLOOKUP($B137,[1]EQ!$A$1:$L$2000,9,0)/100000) -> 11.48956
A138: 128 | B138: DISHTV | C138: =VLOOKUP($B138,[1]EQ!$A$1:$L$2000,6,0) -> 11.5 | D138: 11.57 | E138: 11.38 | F138: 11.27 | G138: 11.08 | H138: 11.68 | I138: 11.87 | J138: 11.98 | K138: =VLOOKUP($B138,[1]EQ!$A$1:$L$2000,4,0) -> 11.75 | L138: =VLOOKUP($B138,[1]EQ!$A$1:$L$2000,5,0) -> 11.45 | M138: =(VLOOKUP($B138,[1]EQ!$A$1:$L$2000,9,0)/100000) -> 39.01858
A139: 129 | B139: DCAL | C139: =VLOOKUP($B139,[1]EQ!$A$1:$L$2000,6,0) -> 120.05 | D139: =(C139+K139+L139)/3 -> 121.47 | E139: =+(D139*2)-K139 -> 118.08 | F139: =+D139-K139+L139 -> 116.12 | G139: =L139-2*(K139-D139) -> 112.73 | H139: =(D139*2)-L139 -> 123.43 | I139: =+D139+K139-L139 -> 126.82 | J139: =K139+2*(D139-L139) -> 128.78 | K139: =VLOOKUP($B139,[1]EQ!$A$1:$L$2000,4,0) -> 124.85 | L139: =VLOOKUP($B139,[1]EQ!$A$1:$L$2000,5,0) -> 119.5 | M139: =(VLOOKUP($B139,[1]EQ!$A$1:$L$2000,9,0)/100000) -> 5.24942
A140: 130 | B140: DIVISLAB | C140: =VLOOKUP($B140,[1]EQ!$A$1:$L$2000,6,0) -> 3686.5 | D140: 3690.65 | E140: 3661.85 | F140: 3637.20 | G140: 3608.40 | H140: 3715.30 | I140: 3744.10 | J140: 3768.75 | K140: =VLOOKUP($B140,[1]EQ!$A$1:$L$2000,4,0) -> 3719.45 | L140: =VLOOKUP($B140,[1]EQ!$A$1:$L$2000,5,0) -> 3666 | M140: =(VLOOKUP($B140,[1]EQ!$A$1:$L$2000,9,0)/100000) -> 3.92393
A141: 131 | B141: DIXON | C141: =VLOOKUP($B141,[1]EQ!$A$1:$L$2000,6,0) -> 18620.5 | D141: 18690.87 | E141: 18382.73 | F141: 18144.97 | G141: 17836.83 | H141: 18928.63 | I141: 19236.77 | J141: 19474.53 | K141: =VLOOKUP($B141,[1]EQ!$A$1:$L$2000,4,0) -> 18999 | L141: =VLOOKUP($B141,[1]EQ!$A$1:$L$2000,5,0) -> 18453.1 | M141: =(VLOOKUP($B141,[1]EQ!$A$1:$L$2000,9,0)/100000) -> 0.38987
A142: 132 | B142: LALPATHLAB | C142: =VLOOKUP($B142,[1]EQ!$A$1:$L$2000,6,0) -> 2387.85 | D142: 2402.10 | E142: 2365.80 | F142: 2343.75 | G142: 2307.45 | H142: 2424.15 | I142: 2460.45 | J142: 2482.50 | K142: =VLOOKUP($B142,[1]EQ!$A$1:$L$2000,4,0) -> 2438.4 | L142: =VLOOKUP($B142,[1]EQ!$A$1:$L$2000,5,0) -> 2380.05 | M142: =(VLOOKUP($B142,[1]EQ!$A$1:$L$2000,9,0)/100000) -> 0.84198
A143: 133 | B143: DRREDDY | C143: =VLOOKUP($B143,[1]EQ!$A$1:$L$2000,6,0) -> 4696.6 | D143: 4709.40 | E143: 4657.20 | F143: 4617.80 | G143: 4565.60 | H143: 4748.80 | I143: 4801.00 | J143: 4840.40 | K143: =VLOOKUP($B143,[1]EQ!$A$1:$L$2000,4,0) -> 4761.6 | L143: =VLOOKUP($B143,[1]EQ!$A$1:$L$2000,5,0) -> 4670 | M143: =(VLOOKUP($B143,[1]EQ!$A$1:$L$2000,9,0)/100000) -> 8.1294
A144: 134 | B144: EIDPARRY | C144: =VLOOKUP($B144,[1]EQ!$A$1:$L$2000,6,0) -> 315.35 | D144: 316.27 | E144: 313.53 | F144: 311.72 | G144: 308.98 | H144: 318.08 | I144: 320.82 | J144: 322.63 | K144: =VLOOKUP($B144,[1]EQ!$A$1:$L$2000,4,0) -> 319 | L144: =VLOOKUP($B144,[1]EQ!$A$1:$L$2000,5,0) -> 314.45 | M144: =(VLOOKUP($B144,[1]EQ!$A$1:$L$2000,9,0)/100000) -> 1.28404
A145: 135 | B145: EIHOTEL | C145: =VLOOKUP($B145,[1]EQ!$A$1:$L$2000,6,0) -> 99.35 | D145: 99.57 | E145: 97.88 | F145: 96.42 | G145: 94.73 | H145: 101.03 | I145: 102.72 | J145: 104.18 | K145: =VLOOKUP($B145,[1]EQ!$A$1:$L$2000,4,0) -> 101.25 | L145: =VLOOKUP($B145,[1]EQ!$A$1:$L$2000,5,0) -> 98.1 | M145: =(VLOOKUP($B145,[1]EQ!$A$1:$L$2000,9,0)/100000) -> 8.42889
A146: 136 | B146: EPL | C146: =VLOOKUP($B146,[1]EQ!$A$1:$L$2000,6,0) -> 222.95 | D146: 224.48 | E146: 219.67 | F146: 216.38 | G146: 211.57 | H146: 227.77 | I146: 232.58 | J146: 235.87 | K146: =VLOOKUP($B146,[1]EQ!$A$1:$L$2000,4,0) -> 229.3 | L146: =VLOOKUP($B146,[1]EQ!$A$1:$L$2000,5,0) -> 221.2 | M146: =(VLOOKUP($B146,[1]EQ!$A$1:$L$2000,9,0)/100000) -> 4.29991
A147: 137 | B147: ESABINDIA | C147: =VLOOKUP($B147,[1]EQ!$A$1:$L$2000,6,0) -> 1868.1 | D147: 1872.52 | E147: 1850.58 | F147: 1833.07 | G147: 1811.13 | H147: 1890.03 | I147: 1911.97 | J147: 1929.48 | K147: =VLOOKUP($B147,[1]EQ!$A$1:$L$2000,4,0) -> 1894.45 | L147: =VLOOKUP($B147,[1]EQ!$A$1:$L$2000,5,0) -> 1855 | M147: =(VLOOKUP($B147,[1]EQ!$A$1:$L$2000,9,0)/100000) -> 0.0441
A148: 138 | B148: EDELWEISS | C148: =VLOOKUP($B148,[1]EQ!$A$1:$L$2000,6,0) -> 66.8 | D148: 67.43 | E148: 65.37 | F148: 63.93 | G148: 61.87 | H148: 68.87 | I148: 70.93 | J148: 72.37 | K148: =VLOOKUP($B148,[1]EQ!$A$1:$L$2000,4,0) -> 69.5 | L148: =VLOOKUP($B148,[1]EQ!$A$1:$L$2000,5,0) -> 66 | M148: =(VLOOKUP($B148,[1]EQ!$A$1:$L$2000,9,0)/100000) -> 30.87502
A149: 139 | B149: EICHERMOT | C149: =VLOOKUP($B149,[1]EQ!$A$1:$L$2000,6,0) -> 2726.95 | D149: 2732.52 | E149: 2686.88 | F149: 2646.82 | G149: 2601.18 | H149: 2772.58 | I149: 2818.22 | J149: 2858.28 | K149: =VLOOKUP($B149,[1]EQ!$A$1:$L$2000,4,0) -> 2778.15 | L149: =VLOOKUP($B149,[1]EQ!$A$1:$L$2000,5,0) -> 2692.45 | M149: =(VLOOKUP($B149,[1]EQ!$A$1:$L$2000,9,0)/100000) -> 15.25475
A150: 140 | B150: ELGIEQUIP | C150: =VLOOKUP($B150,[1]EQ!$A$1:$L$2000,6,0) -> 166.85 | D150: 166.78 | E150: 165.07 | F150: 163.28 | G150: 161.57 | H150: 168.57 | I150: 170.28 | J150: 172.07 | K150: =VLOOKUP($B150,[1]EQ!$A$1:$L$2000,4,0) -> 168.5 | L150: =VLOOKUP($B150,[1]EQ!$A$1:$L$2000,5,0) -> 165 | M150: =(VLOOKUP($B150,[1]EQ!$A$1:$L$2000,9,0)/100000) -> 0.7225
A151: 141 | B151: EMAMILTD | C151: =VLOOKUP($B151,[1]EQ!$A$1:$L$2000,6,0) -> 478.3 | D151: 474.60 | E151: 468.30 | F151: 458.30 | G151: 452.00 | H151: 484.60 | I151: 490.90 | J151: 500.90 | K151: =VLOOKUP($B151,[1]EQ!$A$1:$L$2000,4,0) -> 480.9 | L151: =VLOOKUP($B151,[1]EQ!$A$1:$L$2000,5,0) -> 464.6 | M151: =(VLOOKUP($B151,[1]EQ!$A$1:$L$2000,9,0)/100000) -> 4.22475
A152: 142 | B152: ENDURANCE | C152: =VLOOKUP($B152,[1]EQ!$A$1:$L$2000,6,0) -> 1471.5 | D152: 1480.45 | E152: 1452.05 | F152: 1432.60 | G152: 1404.20 | H152: 1499.90 | I152: 1528.30 | J152: 1547.75 | K152: =VLOOKUP($B152,[1]EQ!$A$1:$L$2000,4,0) -> 1508.85 | L152: =VLOOKUP($B152,[1]EQ!$A$1:$L$2000,5,0) -> 1461 | M152: =(VLOOKUP($B152,[1]EQ!$A$1:$L$2000,9,0)/100000) -> 0.65865
A153: 143 | B153: ENGINERSIN | C153: =VLOOKUP($B153,[1]EQ!$A$1:$L$2000,6,0) -> 71.3 | D153: 72.35 | E153: 69.15 | F153: 67.00 | G153: 63.80 | H153: 74.50 | I153: 77.70 | J153: 79.85 | K153: =VLOOKUP($B153,[1]EQ!$A$1:$L$2000,4,0) -> 75.55 | L153: =VLOOKUP($B153,[1]EQ!$A$1:$L$2000,5,0) -> 70.2 | M153: =(VLOOKUP($B153,[1]EQ!$A$1:$L$2000,9,0)/100000) -> 80.49335
A154: 144 | B154: EQUITAS | C154: =VLOOKUP($B154,[1]EQ!$A$1:$L$2000,6,0) -> 83.95 | D154: 84.68 | E154: 82.37 | F154: 80.78 | G154: 78.47 | H154: 86.27 | I154: 88.58 | J154: 90.17 | K154: =VLOOKUP($B154,[1]EQ!$A$1:$L$2000,4,0) -> 87 | L154: =VLOOKUP($B154,[1]EQ!$A$1:$L$2000,5,0) -> 83.1 | M154: =(VLOOKUP($B154,[1]EQ!$A$1:$L$2000,9,0)/100000) -> 16.98822
A155: 145 | B155: ERIS | C155: =VLOOKUP($B155,[1]EQ!$A$1:$L$2000,6,0) -> 575.8 | D155: 576.27 | E155: 569.53 | F155: 563.27 | G155: 556.53 | H155: 582.53 | I155: 589.27 | J155: 595.53 | K155: =VLOOKUP($B155,[1]EQ!$A$1:$L$2000,4,0) -> 583 | L155: =VLOOKUP($B155,[1]EQ!$A$1:$L$2000,5,0) -> 570 | M155: =(VLOOKUP($B155,[1]EQ!$A$1:$L$2000,9,0)/100000) -> 0.58715
A156: 146 | B156: ESCORTS | C156: =VLOOKUP($B156,[1]EQ!$A$1:$L$2000,6,0) -> 1391.05 | D156: 1392.05 | E156: 1379.10 | F156: 1367.15 | G156: 1354.20 | H156: 1404.00 | I156: 1416.95 | J156: 1428.90 | K156: =VLOOKUP($B156,[1]EQ!$A$1:$L$2000,4,0) -> 1405 | L156: =VLOOKUP($B156,[1]EQ!$A$1:$L$2000,5,0) -> 1380.1 | M156: =(VLOOKUP($B156,[1]EQ!$A$1:$L$2000,9,0)/100000) -> 9.36005
A157: 147 | B157: EXIDEIND | C157: =VLOOKUP($B157,[1]EQ!$A$1:$L$2000,6,0) -> 211.4 | D157: 211.27 | E157: 208.13 | F157: 204.87 | G157: 201.73 | H157: 214.53 | I157: 217.67 | J157: 220.93 | K157: =VLOOKUP($B157,[1]EQ!$A$1:$L$2000,4,0) -> 214.4 | L157: =VLOOKUP($B157,[1]EQ!$A$1:$L$2000,5,0) -> 208 | M157: =(VLOOKUP($B157,[1]EQ!$A$1:$L$2000,9,0)/100000) -> 58.7337
A158: 148 | B158: FDC | C158: =VLOOKUP($B158,[1]EQ!$A$1:$L$2000,6,0) -> 296.9 | D158: 299.93 | E158: 293.07 | F158: 289.23 | G158: 282.37 | H158: 303.77 | I158: 310.63 | J158: 314.47 | K158: =VLOOKUP($B158,[1]EQ!$A$1:$L$2000,4,0) -> 306.8 | L158: =VLOOKUP($B158,[1]EQ!$A$1:$L$2000,5,0) -> 296.1 | M158: =(VLOOKUP($B158,[1]EQ!$A$1:$L$2000,9,0)/100000) -> 3.44724
A159: 149 | B159: FEDERALBNK | C159: =VLOOKUP($B159,[1]EQ!$A$1:$L$2000,6,0) -> 85.4 | D159: 85.60 | E159: 83.95 | F159: 82.50 | G159: 80.85 | H159: 87.05 | I159: 88.70 | J159: 90.15 | K159: =VLOOKUP($B159,[1]EQ!$A$1:$L$2000,4,0) -> 87.25 | L159: =VLOOKUP($B159,[1]EQ!$A$1:$L$2000,5,0) -> 84.15 | M159: =(VLOOKUP($B159,[1]EQ!$A$1:$L$2000,9,0)/100000) -> 278.05881
A160: 150 | B160: FINEORG | C160: =VLOOKUP($B160,[1]EQ!$A$1:$L$2000,6,0) -> 2391.5 | D160: 2399.03 | E160: 2373.07 | F160: 2354.63 | G160: 2328.67 | H160: 2417.47 | I160: 2443.43 | J160: 2461.87 | K160: =VLOOKUP($B160,[1]EQ!$A$1:$L$2000,4,0) -> 2425 | L160: =VLOOKUP($B160,[1]EQ!$A$1:$L$2000,5,0) -> 2380.6 | M160: =(VLOOKUP($B160,[1]EQ!$A$1:$L$2000,9,0)/100000) -> 0.18027
A161: 151 | B161: FINCABLES | C161: =VLOOKUP($B161,[1]EQ!$A$1:$L$2000,6,0) -> 379.35 | D161: 379.57 | E161: 372.03 | F161: 364.72 | G161: 357.18 | H161: 386.88 | I161: 394.42 | J161: 401.73 | K161: =VLOOKUP($B161,[1]EQ!$A$1:$L$2000,4,0) -> 387.1 | L161: =VLOOKUP($B161,[1]EQ!$A$1:$L$2000,5,0) -> 372.25 | M161: =(VLOOKUP($B161,[1]EQ!$A$1:$L$2000,9,0)/100000) -> 2.22961
A162: 152 | B162: FINPIPE | C162: =VLOOKUP($B162,[1]EQ!$A$1:$L$2000,6,0) -> 664.25 | D162: 667.48 | E162: 656.87 | F162: 649.48 | G162: 638.87 | H162: 674.87 | I162: 685.48 | J162: 692.87 | K162: =VLOOKUP($B162,[1]EQ!$A$1:$L$2000,4,0) -> 678.1 | L162: =VLOOKUP($B162,[1]EQ!$A$1:$L$2000,5,0) -> 660.1 | M162: =(VLOOKUP($B162,[1]EQ!$A$1:$L$2000,9,0)/100000) -> 0.98525
A163: 153 | B163: FSL | C163: =VLOOKUP($B163,[1]EQ!$A$1:$L$2000,6,0) -> 97.5 | D163: 97.43 | E163: 96.12 | F163: 94.73 | G163: 93.42 | H163: 98.82 | I163: 100.13 | J163: 101.52 | K163: =VLOOKUP($B163,[1]EQ!$A$1:$L$2000,4,0) -> 98.75 | L163: =VLOOKUP($B163,[1]EQ!$A$1:$L$2000,5,0) -> 96.05 | M163: =(VLOOKUP($B163,[1]EQ!$A$1:$L$2000,9,0)/100000) -> 15.87004
A164: 154 | B164: FORTIS | C164: =VLOOKUP($B164,[1]EQ!$A$1:$L$2000,6,0) -> 162.7 | D164: 163.72 | E164: 160.58 | F164: 158.47 | G164: 155.33 | H164: 165.83 | I164: 168.97 | J164: 171.08 | K164: =VLOOKUP($B164,[1]EQ!$A$1:$L$2000,4,0) -> 166.85 | L164: =VLOOKUP($B164,[1]EQ!$A$1:$L$2000,5,0) -> 161.6 | M164: =(VLOOKUP($B164,[1]EQ!$A$1:$L$2000,9,0)/100000) -> 29.42249
A165: 155 | B165: FCONSUMER | C165: =VLOOKUP($B165,[1]EQ!$A$1:$L$2000,6,0) -> 8.3 | D165: 8.33 | E165: 8.17 | F165: 8.03 | G165: 7.87 | H165: 8.47 | I165: 8.63 | J165: 8.77 | K165: =VLOOKUP($B165,[1]EQ!$A$1:$L$2000,4,0) -> 8.5 | L165: =VLOOKUP($B165,[1]EQ!$A$1:$L$2000,5,0) -> 8.2 | M165: =(VLOOKUP($B165,[1]EQ!$A$1:$L$2000,9,0)/100000) -> 44.45588
A166: 156 | B166: FRETAIL | C166: =VLOOKUP($B166,[1]EQ!$A$1:$L$2000,6,0) -> 76.6 | D166: 77.27 | E166: 75.63 | F166: 74.67 | G166: 73.03 | H166: 78.23 | I166: 79.87 | J166: 80.83 | K166: =VLOOKUP($B166,[1]EQ!$A$1:$L$2000,4,0) -> 78.9 | L166: =VLOOKUP($B166,[1]EQ!$A$1:$L$2000,5,0) -> 76.3 | M166: =(VLOOKUP($B166,[1]EQ!$A$1:$L$2000,9,0)/100000) -> 19.98254
A167: 157 | B167: GAIL | C167: =VLOOKUP($B167,[1]EQ!$A$1:$L$2000,6,0) -> 133.1 | D167: 133.62 | E167: 131.98 | F167: 130.87 | G167: 129.23 | H167: 134.73 | I167: 136.37 | J167: 137.48 | K167: =VLOOKUP($B167,[1]EQ!$A$1:$L$2000,4,0) -> 135.25 | L167: =VLOOKUP($B167,[1]EQ!$A$1:$L$2000,5,0) -> 132.5 | M167: =(VLOOKUP($B167,[1]EQ!$A$1:$L$2000,9,0)/100000) -> 152.27589
A168: 158 | B168: GEPIL | C168: =VLOOKUP($B168,[1]EQ!$A$1:$L$2000,6,0) -> 275 | D168: 276.47 | E168: 272.58 | F168: 270.17 | G168: 266.28 | H168: 278.88 | I168: 282.77 | J168: 285.18 | K168: =VLOOKUP($B168,[1]EQ!$A$1:$L$2000,4,0) -> 280.35 | L168: =VLOOKUP($B168,[1]EQ!$A$1:$L$2000,5,0) -> 274.05 | M168: =(VLOOKUP($B168,[1]EQ!$A$1:$L$2000,9,0)/100000) -> 0.53558
A169: 159 | B169: GHCL | C169: =VLOOKUP($B169,[1]EQ!$A$1:$L$2000,6,0) -> 211.65 | D169: 210.22 | E169: 208.43 | F169: 205.22 | G169: 203.43 | H169: 213.43 | I169: 215.22 | J169: 218.43 | K169: =VLOOKUP($B169,[1]EQ!$A$1:$L$2000,4,0) -> 212 | L169: =VLOOKUP($B169,[1]EQ!$A$1:$L$2000,5,0) -> 207 | M169: =(VLOOKUP($B169,[1]EQ!$A$1:$L$2000,9,0)/100000) -> 1.89652
A170: 160 | B170: GMMPFAUDLR | C170: =VLOOKUP($B170,[1]EQ!$A$1:$L$2000,6,0) -> 3736.1 | D170: 3756.03 | E170: 3683.12 | F170: 3630.13 | G170: 3557.22 | H170: 3809.02 | I170: 3881.93 | J170: 3934.92 | K170: =VLOOKUP($B170,[1]EQ!$A$1:$L$2000,4,0) -> 3828.95 | L170: =VLOOKUP($B170,[1]EQ!$A$1:$L$2000,5,0) -> 3703.05 | M170: =(VLOOKUP($B170,[1]EQ!$A$1:$L$2000,9,0)/100000) -> 0.42454
A171: 161 | B171: GMRINFRA | C171: =VLOOKUP($B171,[1]EQ!$A$1:$L$2000,6,0) -> 25.25 | D171: 25.40 | E171: 24.90 | F171: 24.55 | G171: 24.05 | H171: 25.75 | I171: 26.25 | J171: 26.60 | K171: =VLOOKUP($B171,[1]EQ!$A$1:$L$2000,4,0) -> 25.9 | L171: =VLOOKUP($B171,[1]EQ!$A$1:$L$2000,5,0) -> 25.05 | M171: =(VLOOKUP($B171,[1]EQ!$A$1:$L$2000,9,0)/100000) -> 100.48122
A172: 162 | B172: GALAXYSURF | C172: =VLOOKUP($B172,[1]EQ!$A$1:$L$2000,6,0) -> 2192.05 | D172: 2197.97 | E172: 2170.93 | F172: 2149.82 | G172: 2122.78 | H172: 2219.08 | I172: 2246.12 | J172: 2267.23 | K172: =VLOOKUP($B172,[1]EQ!$A$1:$L$2000,4,0) -> 2225 | L172: =VLOOKUP($B172,[1]EQ!$A$1:$L$2000,5,0) -> 2176.85 | M172: =(VLOOKUP($B172,[1]EQ!$A$1:$L$2000,9,0)/100000) -> 0.12635
A173: 163 | B173: GRSE | C173: =VLOOKUP($B173,[1]EQ!$A$1:$L$2000,6,0) -> 198.3 | D173: 198.15 | E173: 195.15 | F173: 192.00 | G173: 189.00 | H173: 201.30 | I173: 204.30 | J173: 207.45 | K173: =VLOOKUP($B173,[1]EQ!$A$1:$L$2000,4,0) -> 201.15 | L173: =VLOOKUP($B173,[1]EQ!$A$1:$L$2000,5,0) -> 195 | M173: =(VLOOKUP($B173,[1]EQ!$A$1:$L$2000,9,0)/100000) -> 1.40564
A174: 164 | B174: GARFIBRES | C174: =VLOOKUP($B174,[1]EQ!$A$1:$L$2000,6,0) -> 2262.2 | D174: 2260.13 | E174: 2232.22 | F174: 2202.23 | G174: 2174.32 | H174: 2290.12 | I174: 2318.03 | J174: 2348.02 | K174: =VLOOKUP($B174,[1]EQ!$A$1:$L$2000,4,0) -> 2288.05 | L174: =VLOOKUP($B174,[1]EQ!$A$1:$L$2000,5,0) -> 2230.15 | M174: =(VLOOKUP($B174,[1]EQ!$A$1:$L$2000,9,0)/100000) -> 0.10177
A175: 165 | B175: GICRE | C175: =VLOOKUP($B175,[1]EQ!$A$1:$L$2000,6,0) -> 141.95 | D175: 142.57 | E175: 140.38 | F175: 138.82 | G175: 136.63 | H175: 144.13 | I175: 146.32 | J175: 147.88 | K175: =VLOOKUP($B175,[1]EQ!$A$1:$L$2000,4,0) -> 144.75 | L175: =VLOOKUP($B175,[1]EQ!$A$1:$L$2000,5,0) -> 141 | M175: =(VLOOKUP($B175,[1]EQ!$A$1:$L$2000,9,0)/100000) -> 3.12747
A176: 166 | B176: GILLETTE | C176: =VLOOKUP($B176,[1]EQ!$A$1:$L$2000,6,0) -> 5652.1 | D176: 5661.18 | E176: 5630.92 | F176: 5609.73 | G176: 5579.47 | H176: 5682.37 | I176: 5712.63 | J176: 5733.82 | K176: =VLOOKUP($B176,[1]EQ!$A$1:$L$2000,4,0) -> 5691.45 | L176: =VLOOKUP($B176,[1]EQ!$A$1:$L$2000,5,0) -> 5640 | M176: =(VLOOKUP($B176,[1]EQ!$A$1:$L$2000,9,0)/100000) -> 0.03351
A177: 167 | B177: GLAXO | C177: =VLOOKUP($B177,[1]EQ!$A$1:$L$2000,6,0) -> 1438.55 | D177: 1437.85 | E177: 1428.70 | F177: 1418.85 | G177: 1409.70 | H177: 1447.70 | I177: 1456.85 | J177: 1466.70 | K177: =VLOOKUP($B177,[1]EQ!$A$1:$L$2000,4,0) -> 1447 | L177: =VLOOKUP($B177,[1]EQ!$A$1:$L$2000,5,0) -> 1428 | M177: =(VLOOKUP($B177,[1]EQ!$A$1:$L$2000,9,0)/100000) -> 0.29186
A178: 168 | B178: GLENMARK | C178: =VLOOKUP($B178,[1]EQ!$A$1:$L$2000,6,0) -> 503.2 | D178: 499.70 | E178: 493.60 | F178: 484.00 | G178: 477.90 | H178: 509.30 | I178: 515.40 | J178: 525.00 | K178: =VLOOKUP($B178,[1]EQ!$A$1:$L$2000,4,0) -> 505.8 | L178: =VLOOKUP($B178,[1]EQ!$A$1:$L$2000,5,0) -> 490.1 | M178: =(VLOOKUP($B178,[1]EQ!$A$1:$L$2000,9,0)/100000) -> 24.96554
A179: 169 | B179: GODFRYPHLP | C179: =VLOOKUP($B179,[1]EQ!$A$1:$L$2000,6,0) -> 922.95 | D179: 924.68 | E179: 919.47 | F179: 915.98 | G179: 910.77 | H179: 928.17 | I179: 933.38 | J179: 936.87 | K179: =VLOOKUP($B179,[1]EQ!$A$1:$L$2000,4,0) -> 929.9 | L179: =VLOOKUP($B179,[1]EQ!$A$1:$L$2000,5,0) -> 921.2 | M179: =(VLOOKUP($B179,[1]EQ!$A$1:$L$2000,9,0)/100000) -> 0.26988
A180: 170 | B180: GODREJAGRO | C180: =VLOOKUP($B180,[1]EQ!$A$1:$L$2000,6,0) -> 494.85 | D180: 495.88 | E180: 490.97 | F180: 487.08 | G180: 482.17 | H180: 499.77 | I180: 504.68 | J180: 508.57 | K180: =VLOOKUP($B180,[1]EQ!$A$1:$L$2000,4,0) -> 500.8 | L180: =VLOOKUP($B180,[1]EQ!$A$1:$L$2000,5,0) -> 492 | M180: =(VLOOKUP($B180,[1]EQ!$A$1:$L$2000,9,0)/100000) -> 0.84756
A181: 171 | B181: GODREJCP | C181: =VLOOKUP($B181,[1]EQ!$A$1:$L$2000,6,0) -> 721.1 | D181: 728.95 | E181: 710.20 | F181: 699.30 | G181: 680.55 | H181: 739.85 | I181: 758.60 | J181: 769.50 | K181: =VLOOKUP($B181,[1]EQ!$A$1:$L$2000,4,0) -> 747.7 | L181: =VLOOKUP($B181,[1]EQ!$A$1:$L$2000,5,0) -> 718.05 | M181: =(VLOOKUP($B181,[1]EQ!$A$1:$L$2000,9,0)/100000) -> 16.30695
A182: 172 | B182: GODREJIND | C182: =VLOOKUP($B182,[1]EQ!$A$1:$L$2000,6,0) -> 446.25 | D182: 445.88 | E182: 441.47 | F182: 436.68 | G182: 432.27 | H182: 450.67 | I182: 455.08 | J182: 459.87 | K182: =VLOOKUP($B182,[1]EQ!$A$1:$L$2000,4,0) -> 450.3 | L182: =VLOOKUP($B182,[1]EQ!$A$1:$L$2000,5,0) -> 441.1 | M182: =(VLOOKUP($B182,[1]EQ!$A$1:$L$2000,9,0)/100000) -> 1.22285
A183: 173 | B183: GODREJPROP | C183: =VLOOKUP($B183,[1]EQ!$A$1:$L$2000,6,0) -> 1522.8 | D183: 1518.60 | E183: 1497.20 | F183: 1471.60 | G183: 1450.20 | H183: 1544.20 | I183: 1565.60 | J183: 1591.20 | K183: =VLOOKUP($B183,[1]EQ!$A$1:$L$2000,4,0) -> 1540 | L183: =VLOOKUP($B183,[1]EQ!$A$1:$L$2000,5,0) -> 1493 | M183: =(VLOOKUP($B183,[1]EQ!$A$1:$L$2000,9,0)/100000) -> 5.83114
A184: 174 | B184: GRANULES | C184: =VLOOKUP($B184,[1]EQ!$A$1:$L$2000,6,0) -> 351 | D184: 351.62 | E184: 344.58 | F184: 338.17 | G184: 331.13 | H184: 358.03 | I184: 365.07 | J184: 371.48 | K184: =VLOOKUP($B184,[1]EQ!$A$1:$L$2000,4,0) -> 358.65 | L184: =VLOOKUP($B184,[1]EQ!$A$1:$L$2000,5,0) -> 345.2 | M184: =(VLOOKUP($B184,[1]EQ!$A$1:$L$2000,9,0)/100000) -> 13.17585
A185: 175 | B185: GRAPHITE | C185: =VLOOKUP($B185,[1]EQ!$A$1:$L$2000,6,0) -> 486.85 | D185: 473.08 | E185: 450.37 | F185: 413.88 | G185: 391.17 | H185: 509.57 | I185: 532.28 | J185: 568.77 | K185: =VLOOKUP($B185,[1]EQ!$A$1:$L$2000,4,0) -> 495.8 | L185: =VLOOKUP($B185,[1]EQ!$A$1:$L$2000,5,0) -> 436.6 | M185: =(VLOOKUP($B185,[1]EQ!$A$1:$L$2000,9,0)/100000) -> 56.72081
A186: 176 | B186: GRASIM | C186: =VLOOKUP($B186,[1]EQ!$A$1:$L$2000,6,0) -> 1243.75 | D186: 1242.12 | E186: 1227.23 | F186: 1210.72 | G186: 1195.83 | H186: 1258.63 | I186: 1273.52 | J186: 1290.03 | K186: =VLOOKUP($B186,[1]EQ!$A$1:$L$2000,4,0) -> 1257 | L186: =VLOOKUP($B186,[1]EQ!$A$1:$L$2000,5,0) -> 1225.6 | M186: =(VLOOKUP($B186,[1]EQ!$A$1:$L$2000,9,0)/100000) -> 15.61647
A187: 177 | B187: GESHIP | C187: =VLOOKUP($B187,[1]EQ!$A$1:$L$2000,6,0) -> 258.05 | D187: 257.57 | E187: 256.43 | F187: 254.82 | G187: 253.68 | H187: 259.18 | I187: 260.32 | J187: 261.93 | K187: =VLOOKUP($B187,[1]EQ!$A$1:$L$2000,4,0) -> 258.7 | L187: =VLOOKUP($B187,[1]EQ!$A$1:$L$2000,5,0) -> 255.95 | M187: =(VLOOKUP($B187,[1]EQ!$A$1:$L$2000,9,0)/100000) -> 1.5057
A188: 178 | B188: GREAVESCOT | C188: =VLOOKUP($B188,[1]EQ!$A$1:$L$2000,6,0) -> 98.95 | D188: 97.82 | E188: 95.73 | F188: 92.52 | G188: 90.43 | H188: 101.03 | I188: 103.12 | J188: 106.33 | K188: =VLOOKUP($B188,[1]EQ!$A$1:$L$2000,4,0) -> 99.9 | L188: =VLOOKUP($B188,[1]EQ!$A$1:$L$2000,5,0) -> 94.6 | M188: =(VLOOKUP($B188,[1]EQ!$A$1:$L$2000,9,0)/100000) -> 66.26534
A189: 179 | B189: GRINDWELL | C189: =VLOOKUP($B189,[1]EQ!$A$1:$L$2000,6,0) -> 859.5 | D189: 871.33 | E189: 843.47 | F189: 827.43 | G189: 799.57 | H189: 887.37 | I189: 915.23 | J189: 931.27 | K189: =VLOOKUP($B189,[1]EQ!$A$1:$L$2000,4,0) -> 899.2 | L189: =VLOOKUP($B189,[1]EQ!$A$1:$L$2000,5,0) -> 855.3 | M189: =(VLOOKUP($B189,[1]EQ!$A$1:$L$2000,9,0)/100000) -> 0.30128
A190: 180 | B190: GUJALKALI | C190: =VLOOKUP($B190,[1]EQ!$A$1:$L$2000,6,0) -> 309.9 | D190: 313.03 | E190: 306.17 | F190: 302.43 | G190: 295.57 | H190: 316.77 | I190: 323.63 | J190: 327.37 | K190: =VLOOKUP($B190,[1]EQ!$A$1:$L$2000,4,0) -> 319.9 | L190: =VLOOKUP($B190,[1]EQ!$A$1:$L$2000,5,0) -> 309.3 | M190: =(VLOOKUP($B190,[1]EQ!$A$1:$L$2000,9,0)/100000) -> 2.06616
A191: 181 | B191: GAEL | C191: =VLOOKUP($B191,[1]EQ!$A$1:$L$2000,6,0) -> 127.6 | D191: 127.90 | E191: 126.00 | F191: 124.40 | G191: 122.50 | H191: 129.50 | I191: 131.40 | J191: 133.00 | K191: =VLOOKUP($B191,[1]EQ!$A$1:$L$2000,4,0) -> 129.8 | L191: =VLOOKUP($B191,[1]EQ!$A$1:$L$2000,5,0) -> 126.3 | M191: =(VLOOKUP($B191,[1]EQ!$A$1:$L$2000,9,0)/100000) -> 1.68593
A192: 182 | B192: FLUOROCHEM | C192: =VLOOKUP($B192,[1]EQ!$A$1:$L$2000,6,0) -> 569.9 | D192: 570.35 | E192: 564.70 | F192: 559.50 | G192: 553.85 | H192: 575.55 | I192: 581.20 | J192: 586.40 | K192: =VLOOKUP($B192,[1]EQ!$A$1:$L$2000,4,0) -> 576 | L192: =VLOOKUP($B192,[1]EQ!$A$1:$L$2000,5,0) -> 565.15 | M192: =(VLOOKUP($B192,[1]EQ!$A$1:$L$2000,9,0)/100000) -> 0.3398
A193: 183 | B193: GUJGASLTD | C193: =VLOOKUP($B193,[1]EQ!$A$1:$L$2000,6,0) -> 440.3 | D193: 437.95 | E193: 430.90 | F193: 421.50 | G193: 414.45 | H193: 447.35 | I193: 454.40 | J193: 463.80 | K193: =VLOOKUP($B193,[1]EQ!$A$1:$L$2000,4,0) -> 445 | L193: =VLOOKUP($B193,[1]EQ!$A$1:$L$2000,5,0) -> 428.55 | M193: =(VLOOKUP($B193,[1]EQ!$A$1:$L$2000,9,0)/100000) -> 6.23515
A194: 184 | B194: GMDCLTD | C194: =VLOOKUP($B194,[1]EQ!$A$1:$L$2000,6,0) -> 54.8 | D194: 54.97 | E194: 54.28 | F194: 53.77 | G194: 53.08 | H194: 55.48 | I194: 56.17 | J194: 56.68 | K194: =VLOOKUP($B194,[1]EQ!$A$1:$L$2000,4,0) -> 55.65 | L194: =VLOOKUP($B194,[1]EQ!$A$1:$L$2000,5,0) -> 54.45 | M194: =(VLOOKUP($B194,[1]EQ!$A$1:$L$2000,9,0)/100000) -> 8.90563
A195: 185 | B195: GNFC | C195: =VLOOKUP($B195,[1]EQ!$A$1:$L$2000,6,0) -> 227.55 | D195: 228.68 | E195: 224.37 | F195: 221.18 | G195: 216.87 | H195: 231.87 | I195: 236.18 | J195: 239.37 | K195: =VLOOKUP($B195,[1]EQ!$A$1:$L$2000,4,0) -> 233 | L195: =VLOOKUP($B195,[1]EQ!$A$1:$L$2000,5,0) -> 225.5 | M195: =(VLOOKUP($B195,[1]EQ!$A$1:$L$2000,9,0)/100000) -> 7.18704
A196: 186 | B196: GPPL | C196: =VLOOKUP($B196,[1]EQ!$A$1:$L$2000,6,0) -> 95.1 | D196: 94.43 | E196: 93.22 | F196: 91.33 | G196: 90.12 | H196: 96.32 | I196: 97.53 | J196: 99.42 | K196: =VLOOKUP($B196,[1]EQ!$A$1:$L$2000,4,0) -> 95.65 | L196: =VLOOKUP($B196,[1]EQ!$A$1:$L$2000,5,0) -> 92.55 | M196: =(VLOOKUP($B196,[1]EQ!$A$1:$L$2000,9,0)/100000) -> 5.44614
A197: 187 | B197: GSFC | C197: =VLOOKUP($B197,[1]EQ!$A$1:$L$2000,6,0) -> 76.65 | D197: 76.72 | E197: 75.93 | F197: 75.22 | G197: 74.43 | H197: 77.43 | I197: 78.22 | J197: 78.93 | K197: =VLOOKUP($B197,[1]EQ!$A$1:$L$2000,4,0) -> 77.5 | L197: =VLOOKUP($B197,[1]EQ!$A$1:$L$2000,5,0) -> 76 | M197: =(VLOOKUP($B197,[1]EQ!$A$1:$L$2000,9,0)/100000) -> 4.64565
A198: 188 | B198: GSPL | C198: =VLOOKUP($B198,[1]EQ!$A$1:$L$2000,6,0) -> 236.3 | D198: 235.22 | E198: 233.33 | F198: 230.37 | G198: 228.48 | H198: 238.18 | I198: 240.07 | J198: 243.03 | K198: =VLOOKUP($B198,[1]EQ!$A$1:$L$2000,4,0) -> 237.1 | L198: =VLOOKUP($B198,[1]EQ!$A$1:$L$2000,5,0) -> 232.25 | M198: =(VLOOKUP($B198,[1]EQ!$A$1:$L$2000,9,0)/100000) -> 8.89909
A199: 189 | B199: GULFOILLUB | C199: =VLOOKUP($B199,[1]EQ!$A$1:$L$2000,6,0) -> 749.2 | D199: 743.58 | E199: 735.72 | F199: 722.23 | G199: 714.37 | H199: 757.07 | I199: 764.93 | J199: 778.42 | K199: =VLOOKUP($B199,[1]EQ!$A$1:$L$2000,4,0) -> 751.45 | L199: =VLOOKUP($B199,[1]EQ!$A$1:$L$2000,5,0) -> 730.1 | M199: =(VLOOKUP($B199,[1]EQ!$A$1:$L$2000,9,0)/100000) -> 0.22582
A200: 190 | B200: HEG | C200: =VLOOKUP($B200,[1]EQ!$A$1:$L$2000,6,0) -> 1451.55 | D200: 1388.43 | E200: 1309.87 | F200: 1168.18 | G200: 1089.62 | H200: 1530.12 | I200: 1608.68 | J200: 1750.37 | K200: =VLOOKUP($B200,[1]EQ!$A$1:$L$2000,4,0) -> 1467 | L200: =VLOOKUP($B200,[1]EQ!$A$1:$L$2000,5,0) -> 1246.75 | M200: =(VLOOKUP($B200,[1]EQ!$A$1:$L$2000,9,0)/100000) -> 30.26131
A201: 191 | B201: HCLTECH | C201: =VLOOKUP($B201,[1]EQ!$A$1:$L$2000,6,0) -> 952.3 | D201: 952.88 | E201: 943.52 | F201: 934.73 | G201: 925.37 | H201: 961.67 | I201: 971.03 | J201: 979.82 | K201: =VLOOKUP($B201,[1]EQ!$A$1:$L$2000,4,0) -> 962.25 | L201: =VLOOKUP($B201,[1]EQ!$A$1:$L$2000,5,0) -> 944.1 | M201: =(VLOOKUP($B201,[1]EQ!$A$1:$L$2000,9,0)/100000) -> 32.77086
A202: 192 | B202: HDFCAMC | C202: =VLOOKUP($B202,[1]EQ!$A$1:$L$2000,6,0) -> 3000.55 | D202: 3009.85 | E202: 2971.70 | F202: 2942.85 | G202: 2904.70 | H202: 3038.70 | I202: 3076.85 | J202: 3105.70 | K202: =VLOOKUP($B202,[1]EQ!$A$1:$L$2000,4,0) -> 3048 | L202: =VLOOKUP($B202,[1]EQ!$A$1:$L$2000,5,0) -> 2981 | M202: =(VLOOKUP($B202,[1]EQ!$A$1:$L$2000,9,0)/100000) -> 1.89278
A203: 193 | B203: HDFCBANK | C203: =VLOOKUP($B203,[1]EQ!$A$1:$L$2000,6,0) -> 1626.65 | D203: =(C203+K203+L203)/3 -> 1625.37 | E203: =+(D203*2)-K203 -> 1609.73 | F203: =+D203-K203+L203 -> 1592.82 | G203: =L203-2*(K203-D203) -> 1577.18 | H203: =(D203*2)-L203 -> 1642.28 | I203: =+D203+K203-L203 -> 1657.92 | J203: =K203+2*(D203-L203) -> 1674.83 | K203: =VLOOKUP($B203,[1]EQ!$A$1:$L$2000,4,0) -> 1641 | L203: =VLOOKUP($B203,[1]EQ!$A$1:$L$2000,5,0) -> 1608.45 | M203: =(VLOOKUP($B203,[1]EQ!$A$1:$L$2000,9,0)/100000) -> 69.48679
A204: 194 | B204: HDFCLIFE | C204: =VLOOKUP($B204,[1]EQ!$A$1:$L$2000,6,0) -> 695.35 | D204: 695.43 | E204: 686.87 | F204: 678.38 | G204: 669.82 | H204: 703.92 | I204: 712.48 | J204: 720.97 | K204: =VLOOKUP($B204,[1]EQ!$A$1:$L$2000,4,0) -> 704 | L204: =VLOOKUP($B204,[1]EQ!$A$1:$L$2000,5,0) -> 686.95 | M204: =(VLOOKUP($B204,[1]EQ!$A$1:$L$2000,9,0)/100000) -> 30.66134
A205: 195 | B205: HFCL | C205: =VLOOKUP($B205,[1]EQ!$A$1:$L$2000,6,0) -> 27.4 | D205: 27.72 | E205: 26.93 | F205: 26.47 | G205: 25.68 | H205: 28.18 | I205: 28.97 | J205: 29.43 | K205: =VLOOKUP($B205,[1]EQ!$A$1:$L$2000,4,0) -> 28.5 | L205: =VLOOKUP($B205,[1]EQ!$A$1:$L$2000,5,0) -> 27.25 | M205: =(VLOOKUP($B205,[1]EQ!$A$1:$L$2000,9,0)/100000) -> 61.93943
A206: 196 | B206: HATHWAY | C206: =VLOOKUP($B206,[1]EQ!$A$1:$L$2000,6,0) -> 30.05 | D206: 29.43 | E206: 28.22 | F206: 26.38 | G206: 25.17 | H206: 31.27 | I206: 32.48 | J206: 34.32 | K206: =VLOOKUP($B206,[1]EQ!$A$1:$L$2000,4,0) -> 30.65 | L206: =VLOOKUP($B206,[1]EQ!$A$1:$L$2000,5,0) -> 27.6 | M206: =(VLOOKUP($B206,[1]EQ!$A$1:$L$2000,9,0)/100000) -> 4.15046
... 321 more rows

Sheet Bulk Deals
E6: Back To Main Page
A7: Subject : | B7: BULK DEAL | D7: =Main!B10 -> 2021-02-17
A9: Date | B9: Scrip code | C9: Scrip Name | D9: Client Name | E9: Buy / Sell | F9: Quantity Traded | G9: Trade Price / Wt.Avg.trade price | H9: Exchange
A10: 2021-02-16 | B10: 512165 | C10: ABANSENT | D10: SK GROWTH FUND PRIVATE LIMITED | E10: BUY | F10: 78,308 | G10: 117 | H10: BSE
A11: 2021-02-16 | B11: 512165 | C11: ABANSENT | D11: PROGYAN CONSTRUCTION AND ENGINEERS PRIVATE LIMITED | E11: SELL | F11: 92,400 | G11: 118.24 | H11: BSE
A12: 2021-02-16 | B12: 533758 | C12: APLAPOLLO | D12: APL INFRASTRUCTURE PRIVATE LIMITED | E12: SELL | F12: 3,000,000 | G12: 965.15 | H12: BSE
A13: 2021-02-16 | B13: 533758 | C13: APLAPOLLO | D13: SMALLCAP WORLD FUND INC | E13: BUY | F13: 859,193 | G13: 965 | H13: BSE
A14: 2021-02-16 | B14: 537069 | C14: ARNOLD | D14: INT INFRASTURCTURE PRIVATE LIMITED | E14: BUY | F14: 159,900 | G14: 27.22 | H14: BSE
A15: 2021-02-16 | B15: 537069 | C15: ARNOLD | D15: PRASHANT PRAKASH NILAWAR | E15: SELL | F15: 157,048 | G15: 27.22 | H15: BSE
A16: 2021-02-16 | B16: 542176 | C16: ARYAN | D16: ZUBER TRADING LLP | E16: BUY | F16: 104,600 | G16: 6.3 | H16: BSE
A17: 2021-02-16 | B17: 542176 | C17: ARYAN | D17: LAXMI CHAND B SHAH | E17: SELL | F17: 98,100 | G17: 6.3 | H17: BSE
A18: 2021-02-16 | B18: 539884 | C18: DARSHANORNA | D18: DILIP RAMANLAL DOSHI | E18: BUY | F18: 51,826 | G18: 14.05 | H18: BSE
A19: 2021-02-16 | B19: 521216 | C19: DHANROTO | D19: MISAL SINGH KHUNDIA | E19: BUY | F19: 20,000 | G19: 25.7 | H19: BSE
A20: 2021-02-16 | B20: 532951 | C20: GSS | D20: SKYVEIL TRADE SOLUTIONS LLP | E20: BUY | F20: 90,844 | G20: 54.32 | H20: BSE
A21: 2021-02-16 | B21: 532951 | C21: GSS | D21: SKYVEIL TRADE SOLUTIONS LLP | E21: SELL | F21: 76,890 | G21: 54.55 | H21: BSE
A22: 2021-02-16 | B22: 540198 | C22: OSIAJEE | D22: ACVC FOREX PRIVATE LIMITED | E22: BUY | F22: 95,000 | G22: 22.95 | H22: BSE
A23: 2021-02-16 | B23: 540198 | C23: OSIAJEE | D23: ACVC FOREX PRIVATE LIMITED | E23: SELL | F23: 61,316 | G23: 23.34 | H23: BSE
A24: 2021-02-16 | B24: 540198 | C24: OSIAJEE | D24: RACHNA GOYAL | E24: BUY | F24: 37,800 | G24: 23.61 | H24: BSE
A25: 2021-02-16 | B25: 540198 | C25: OSIAJEE | D25: TURBOT TRADERS PRIVATE LIMITED | E25: SELL | F25: 70,000 | G25: 22.95 | H25: BSE
A26: 2021-02-16 | B26: 532911 | C26: PARLEIND | D26: PIL ENTERPRISE PRIVATE LIMITED | E26: SELL | F26: 72,900 | G26: 11.92 | H26: BSE
A27: 2021-02-16 | B27: 539113 | C27: PML | D27: RAJNEESH BANSAL | E27: BUY | F27: 87,000 | G27: 1275 | H27: BSE
A28: 2021-02-16 | B28: 539113 | C28: PML | D28: SANDEEP BANSAL | E28: SELL | F28: 87,000 | G28: 1275 | H28: BSE
A29: 2021-02-16 | B29: 540159 | C29: PURPLE | D29: MEHUL KANUBHAI VAGHELA | E29: BUY | F29: 113,497 | G29: 43.32 | H29: BSE
A30: 2021-02-16 | B30: 540159 | C30: PURPLE | D30: VAGHELA PRAKASH KANTILAL | E30: SELL | F30: 239,019 | G30: 42.84 | H30: BSE
A31: 2021-02-16 | B31: 540159 | C31: PURPLE | D31: RESHMA CHAUHAN | E31: BUY | F31: 45,521 | G31: 42.75 | H31: BSE
A32: 2021-02-16 | B32: 540159 | C32: PURPLE | D32: HANSABEN NITINBHAI CHAUHAN | E32: BUY | F32: 47,509 | G32: 42.92 | H32: BSE
A33: 2021-02-16 | B33: 540159 | C33: PURPLE | D33: ASHOKKUMAR SABURBHAI CHAVDA | E33: BUY | F33: 47,057 | G33: 42.03 | H33: BSE
A34: 2021-02-16 | B34: 540175 | C34: REGENCY | D34: NIKHIL KAKKAR | E34: SELL | F34: 22,439 | G34: 14.2 | H34: BSE
A35: 2021-02-16 | B35: 540175 | C35: REGENCY | D35: JAIMAL SINGH WADHWA | E35: BUY | F35: 24,980 | G35: 14.24 | H35: BSE
A36: 2021-02-16 | B36: 540175 | C36: REGENCY | D36: JAIMAL SINGH WADHWA | E36: SELL | F36: 3,000 | G36: 13.53 | H36: BSE
A37: 2021-02-16 | B37: 542753 | C37: SEACOAST | D37: KALAIYARASAN RAJANGAM MUDALIAR | E37: SELL | F37: 173,346 | G37: 115 | H37: BSE
A38: 2021-02-16 | B38: 540737 | C38: SGRL | D38: NILESH MANSUKHBHAI PATEL | E38: SELL | F38: 78,973 | G38: 218.7 | H38: BSE
A39: 2021-02-16 | B39: 526981 | C39: SHBAJRG | D39: SCAN STEEL LIMITED | E39: SELL | F39: 100,000 | G39: 82.3 | H39: BSE
A40: 2021-02-16 | B40: 526981 | C40: SHBAJRG | D40: KAUSHIK SHAH SHARES & SEC. LTD | E40: BUY | F40: 90,000 | G40: 82.3 | H40: BSE
A41: 2021-02-16 | B41: 538920 | C41: SPACEAGE | D41: PARESH DHIRAJLAL SHAH | E41: BUY | F41: 20,000 | G41: 17.17 | H41: BSE
A42: 2021-02-16 | B42: 539026 | C42: SSPNFIN | D42: SANGEETA CHANDU JAIN | E42: SELL | F42: 24,000 | G42: 28.63 | H42: BSE
A43: 2021-02-16 | B43: 539026 | C43: SSPNFIN | D43: RUCHI VARSHNEY | E43: BUY | F43: 20,000 | G43: 28.99 | H43: BSE
A44: 2021-02-16 | B44: 539026 | C44: SSPNFIN | D44: RUCHI VARSHNEY | E44: SELL | F44: 16,000 | G44: 29.2 | H44: BSE
A45: 2021-02-16 | B45: 539026 | C45: SSPNFIN | D45: DEVJEET CHAKRABORTY | E45: BUY | F45: 28,000 | G45: 28.73 | H45: BSE
A46: 2021-02-16 | B46: 539026 | C46: SSPNFIN | D46: DEVJEET CHAKRABORTY | E46: SELL | F46: 16,000 | G46: 26.63 | H46: BSE
A47: 2021-02-16 | B47: 539026 | C47: SSPNFIN | D47: ASHOK KUMAR SINGH | E47: BUY | F47: 36,000 | G47: 29.09 | H47: BSE
A48: 2021-02-16 | B48: 519367 | C48: TRANSFD | D48: ABHAY PATHAK | E48: BUY | F48: 872 | G48: 223.45 | H48: BSE
A49: 2021-02-16 | B49: 539222 | C49: VMV | D49: SANJAY SAHA | E49: BUY | F49: 17,500 | G49: 24.9 | H49: BSE
A50: 2021-02-16 | B50: 539222 | C50: VMV | D50: SANJAY SAHA | E50: SELL | F50: 30,000 | G50: 25.2 | H50: BSE
A51: 2021-02-16 | B51: JUMPNET | C51: Jump Networks Limited | D51: OLGA TRADING PRIVATE LIMITED | E51: BUY | F51: 675,000 | G51: 13.15 | H51: NSE
A52: 2021-02-16 | B52: JUMPNET | C52: Jump Networks Limited | D52: VANRAJ DADBHAI KAHOR | E52: BUY | F52: 1,233,908 | G52: 13.11 | H52: NSE
A53: 2021-02-16 | B53: LOVABLE | C53: Lovable Lingerie Ltd | D53: VIJIT TRADING | E53: BUY | F53: 14,831 | G53: 99.2 | H53: NSE
A54: 2021-02-16 | B54: MAYURUNIQ | C54: Mayur Uniquoters Ltd | D54: I D F C TAX ADVANTAGE ELSSFUND | E54: BUY | F54: 225,000 | G54: 422.5 | H54: NSE
A55: 2021-02-16 | B55: MAYURUNIQ | C55: Mayur Uniquoters Ltd | D55: STANDARD CHARTERED CLASSIC EQUITY FUND | E55: BUY | F55: 225,000 | G55: 422.5 | H55: NSE
A56: 2021-02-16 | B56: MAYURUNIQ | C56: Mayur Uniquoters Ltd | D56: IDFC DYNAMIC EQUITY FUND | E56: BUY | F56: 225,000 | G56: 422.5 | H56: NSE
A57: 2021-02-16 | B57: MAYURUNIQ | C57: Mayur Uniquoters Ltd | D57: IDFC SMALL AND MIDCAP EQUITY | E57: BUY | F57: 225,000 | G57: 422.5 | H57: NSE
A58: 2021-02-16 | B58: OLECTRA | C58: Olectra Greentech Limited | D58: SANJEEV SINGHAL | E58: BUY | F58: 800,000 | G58: 186 | H58: NSE
A59: 2021-02-16 | B59: RGL | C59: Renaissance Global Ltd | D59: DARSHIL ATUL SHAH | E59: BUY | F59: 136,500 | G59: 291.35 | H59: NSE
A60: 2021-02-16 | B60: SDBL | C60: Som Dist & Brew Ltd | D60: SUBHASH P RATHOD | E60: BUY | F60: 448,450 | G60: 30.07 | H60: NSE
A61: 2021-02-16 | B61: SDBL | C61: Som Dist & Brew Ltd | D61: RATHOD SAAJAN S | E61: BUY | F61: 1,046,390 | G61: 28.96 | H61: NSE
A62: 2021-02-16 | B62: VERTOZ | C62: Vertoz Advertising Ltd | D62: TCG FUNDS FUND 1 | E62: BUY | F62: 140,000 | G62: 260 | H62: NSE
A63: 2021-02-16 | B63: JUMPNET | C63: Jump Networks Limited | D63: VANRAJ DADBHAI KAHOR | E63: SELL | F63: 1,233,908 | G63: 13.15 | H63: NSE
A64: 2021-02-16 | B64: JUMPNET | C64: Jump Networks Limited | D64: OLGA TRADING PRIVATE LIMITED | E64: SELL | F64: 442,499 | G64: 13.15 | H64: NSE
A65: 2021-02-16 | B65: LOVABLE | C65: Lovable Lingerie Ltd | D65: VIJIT TRADING | E65: SELL | F65: 77,831 | G65: 93.06 | H65: NSE
A66: 2021-02-16 | B66: MAYURUNIQ | C66: Mayur Uniquoters Ltd | D66: KOTAK FUNDS-INDIA MIDCAP FUND | E66: SELL | F66: 950,527 | G66: 422.52 | H66: NSE
A67: 2021-02-16 | B67: OLECTRA | C67: Olectra Greentech Limited | D67: TRINITY INFRAVENTURES LIMITED | E67: SELL | F67: 1,000,000 | G67: 186 | H67: NSE
A68: 2021-02-16 | B68: OLECTRA | C68: Olectra Greentech Limited | D68: GOLDSTONE POWER PRIVATE LIMITED | E68: SELL | F68: 1,500,000 | G68: 186 | H68: NSE
A69: 2021-02-16 | B69: RGL | C69: Renaissance Global Ltd | D69: AMIT CHANDRAKANT SHAH | E69: SELL | F69: 136,500 | G69: 291.35 | H69: NSE
A70: 2021-02-16 | B70: SDBL | C70: Som Dist & Brew Ltd | D70: RATHOD SAAJAN S | E70: SELL | F70: 146,390 | G70: 30.01 | H70: NSE
A71: 2021-02-16 | B71: SDBL | C71: Som Dist & Brew Ltd | D71: RADHEYSHYAM SEN | E71: SELL | F71: 1,000,000 | G71: 28.01 | H71: NSE

Sheet Call Tracker (Equity & F&O)
M5: Back To Main Page
A6: Retail Research Technical Calls & Fundamental Performance Report for the month of February-2021
M7: =Main!B10 -> 2021-02-17
B8: Positional Call
A9: Sr.no | B9: Date | D9: Company | E9: Rec | F9: Rec Price | G9: Stop Loss*** | H9: Call Closed At | I9: Target | J9: Remark | K9: Profit / Loss per Share | L9: All charges | M9: Net Gain / Loss % | N9: Status | O9: Closed Date
A10: 1 | B10: 2020-12-10 | D10: IRCTC | E10: Buy | F10: 1427.5 | G10: 1330 | H10: 1535 | I10: 1550-1600 | J10: Profit of Rs.107.5/- | K10: =H10-F10 -> 107.5 | L10: =(F10*-0.8)/100 -> -11.42 | M10: =(K10+L10)/F10 -> 6.73% | N10: Successful | O10: 2021-02-04 | R10: H
A11: 2 | B11: 2021-01-05 | D11: BRITANNIA | E11: Buy | F11: 3540 | G11: 3295 | H11: =(3682.5+3520)/2 -> 3601.25 | I11: 3900-4000 | J11: Profit of Rs.61.25/- | K11: =H11-F11 -> 61.25 | L11: =(F11*-0.8)/100 -> -28.32 | M11: =(K11+L11)/F11 -> 0.93% | N11: Successful | O11: 2021-02-01 | R11: H
A12: 3 | B12: 2021-02-02 | D12: JKCEMENT | E12: Buy | F12: 2197.5 | G12: 2070 | H12: 2357.5 | I12: 2400-2450 | J12: Profit of Rs.160/- | K12: 160 | L12: =(F12*-0.8)/100 -> -17.58 | M12: =(K12+L12)/F12 -> 6.48% | N12: Successful | O12: 2020-02-08 | R12: H
A13: 4 | B13: 2021-02-02 | D13: HINDUNILVR | E13: Buy | F13: 2235-2245 | G13: 2090 | I13: 2500-2550 | J13: Open | R13: H
A14: 5 | B14: 2021-02-04 | D14: PIIND | E14: Buy | F14: 2190 | G14: 1995 | H14: 2330 | I14: 2500 | J14: Profit of Rs.140/- | K14: =H14-F14 -> 140 | L14: =(F14*-0.07)/100 -> -1.53 | M14: =(K14+L14)/F14 -> 6.32% | N14: Successful | O14: 2020-02-04 | R14: H
A15: 6 | B15: 2021-02-09 | D15: IRCTC | E15: Buy | F15: 1597.5 | G15: 1514 | H15: 1702.5 | I15: 1750-1800 | J15: Profit of Rs.105/- | K15: 105 | L15: =(F15*-0.8)/100 -> -12.78 | M15: 5.77% | N15: Successful | O15: 2020-02-12 | R15: H
A16: 7 | B16: 2021-02-09 | D16: PIIND | E16: Buy | F16: 2200-2210 | G16: 2070 | I16: 2400-2500 | J16: Open | R16: H
A22: CLBS = Closing Basis ***
A23: Dividend adjusted <> | F23: Reinitiated $
A24: Part book {} | F24: Revised stoploss #
B26: Momentum Call
A27: Sr.no | B27: Date | D27: Company | E27: Rec | F27: Rec Price | G27: Stop Loss | H27: Call Closed At | I27: Target | J27: Remark | K27: Profit / Loss per Share/Lot | L27: All charges | M27: Net Gain / Loss % | N27: Status | O27: Closed Date
A28: 1 | B28: 2021-02-01 | D28: BHARTIARTL | E28: Buy | F28: 566 | G28: 548 | H28: 577 | I28: 600 | J28: Profit of Rs.11/- | K28: =H28-F28 -> 11 | L28: =(F28*-0.07)/100 -> -0.40 | M28: =(K28+L28)/F28 -> 1.87% | N28: Successful | O28: 2021-02-01 | R28: H
A29: 2 | B29: 2021-02-02 | D29: CESC | E29: Buy | F29: 627.5 | G29: 609 | H29: 608.5 | I29: 660 | J29: Loss of Rs.19/- | K29: -19 | L29: =(F29*-0.7)/100 -> -4.39 | M29: -3.73% | N29: Unsuccessful | O29: 2021-02-08 | R29: H
A30: 3 | B30: 2021-02-02 | D30: MCDOWELL-N | E30: Buy | F30: 576.5 | G30: 560 | H30: 590 | I30: 600-610 | J30: Profit of Rs.14/- | K30: =H30-F30 -> 13.5 | L30: -4.04 | M30: =(K30+L30)/F30 -> 1.64% | N30: Successful | O30: 2021-02-04 | R30: N
A31: 4 | B31: 2021-02-02 | D31: BHARTIARTL | E31: Buy | F31: 601.5 | G31: 585 | H31: 615.5 | I31: 630 | J31: Profit of Rs.14/- | K31: =H31-F31 -> 14 | L31: -4.21 | M31: =(K31+L31)/F31 -> 1.63% | N31: Successful | O31: 2021-02-03 | R31: H
A32: 5 | B32: 2021-02-03 | D32: KOTAKBANK | E32: Buy | F32: 1844 | G32: 1790 | H32: 1887.5 | I32: 1920-1950 | J32: Profit of Rs.43.5/- | K32: =H32-F32 -> 43.5 | L32: -12.91 | M32: =(K32+L32)/F32 -> 1.66% | N32: Successful | O32: 2021-02-04 | R32: H
A33: 6 | B33: 2021-02-04 | D33: BHARTIARTL | E33: Buy | F33: 612.5 | G33: 598 | H33: 592.5 | I33: 640-650 | J33: Loss of Rs.20/- | K33: =H33-F33 -> -20 | L33: -4.29 | M33: =(K33+L33)/F33 -> -3.97% | N33: Unsuccessful | O33: 2021-02-05 | R33: H
A34: 7 | B34: 2021-02-04 | D34: ICICIPRULI | E34: Buy | F34: 472 | G34: 457 | H34: 485 | I34: 495-505 | J34: Profit of Rs.13/- | K34: 13 | L34: -3.30 | M34: 2.05% | N34: Successful | O34: 2021-02-11 | R34: H
A35: 8 | B35: 2021-02-05 | D35: IRCTC | E35: Buy | F35: 1520 | G35: 1469 | H35: 1560 | I35: 1600-1620 | J35: Profit of Rs.40/- | K35: =H35-F35 -> 40 | L35: =(F35*-0.07)/100 -> -1.06 | M35: =(K35+L35)/F35 -> 2.56% | N35: Successful | O35: 2021-02-05 | R35: H
A36: 9 | B36: 2021-02-08 | D36: ZEEL | E36: Buy | F36: 221 | G36: 214.5 | H36: 214.5 | I36: 230-235 | J36: Loss of Rs.6.5/- | K36: -6.5 | L36: =(F36*-0.7)/100 -> -1.55 | M36: -3.64% | N36: Unsuccessful | O36: 2021-02-05 | R36: H
A37: 10 | B37: 2021-02-10 | D37: ITC | E37: Buy | F37: 224.5 | G37: 218 | H37: 227.75 | I37: 235 | J37: Profit of Rs.3.25/- | K37: =H37-F37 -> 3.25 | L37: =(F37*-0.07)/100 -> -0.16 | M37: =(K37+L37)/F37 -> 1.38% | N37: Successful | O37: 2021-02-10 | R37: H
A38: 11 | B38: 2021-02-12 | D38: EXIDEIND | E38: Buy | F38: 212.5-213.5 | G38: 207 | I38: 222-225 | J38: Open
A39: 12 | B39: 2021-02-12 | D39: MOTHERSUMI | E39: Buy | F39: 173 | G39: 168 | H39: 183.5 | I39: 185 | J39: Profit of Rs.10.5/- | K39: =H39-F39 -> 10.5 | L39: =(F39*-0.07)/100 -> -0.12 | M39: =(K39+L39)/F39 -> 6.00% | N39: Successful | O39: 2021-02-12
A40: 13 | B40: 2021-02-15 | D40: NESTLEIND | E40: Buy | F40: 17350-17450 | G40: 16900 | I40: 18000-18200 | J40: Open
A41: 14 | B41: 2021-02-16 | D41: IRCTC | E41: Buy | F41: 1680-1690 | G41: 1635 | I41: 1780-1800 | J41: Open
A45: CLBS = Closing Basis *** | H45: *
A46: Dividend adjusted <> | F46: Reinitiated $
F47: Revised stoploss #
A49: Master Trade High Risk
A50: Sr.no | B50: Date | D50: Company | E50: Rec | F50: Rec Price | G50: Stop Loss | H50: Call Closed At | I50: Target | J50: Remark | K50: Profit / Loss per share | L50: All charges | M50: Gain / Loss per Lot | N50: Lot | O50: Status | P50: Closed Date
A51: 1 | B51: 2021-02-02 | D51: AUROPHARMA FEB FUT | E51: Buy | F51: 925.5 | G51: 905 | H51: 941 | I51: 960-965 | J51: Profit of Rs.15.50/- | K51: =H51-F51 -> 15.5 | L51: =(H51*N51)*0.035% -> 214.08 | M51: =(K51*N51)-L51 -> 9860.9 | N51: 650 | O51: Successful | P51: 2021-02-03 | R51: N
A52: 2 | B52: 2021-02-02 | D52: RELIANCE FEB FUT | E52: Buy | F52: 1930 | G52: 1885 | H52: 1964 | I52: 2000 | J52: Profit of Rs.34/- | K52: =H52-F52 -> 34 | L52: =(H52*N52)*0.035% -> 171.85 | M52: =(K52*N52)-L52 -> 8328.2 | N52: 250 | O52: Successful | P52: 2021-02-08 | R52: H
A53: 3 | B53: 2021-02-03 | D53: NIFTY FEB FUT | E53: Sell | F53: 14700 | G53: 14820 | H53: 14820 | I53: 14500 | J53: Loss of Rs, 120/- | K53: =F53-H53 -> -120 | L53: 389.025 | M53: =(K53*N53)-L53 -> -9389.025 | N53: 75 | O53: Unsuccessful | P53: 2021-02-03 | R53: H
A54: 4 | B54: 2021-02-03 | D54: BATAINDIA FEB FUT | E54: Buy | F54: 1569 | G54: 1545 | H54: 1586 | I54: 1600-1620 | J54: Profit of Rs.17/- | K54: =H54-F54 -> 17 | L54: =(H54*N54)*0.035% -> 305.31 | M54: =(K54*N54)-L54 -> 9044.7 | N54: 550 | O54: Successful | P54: 2021-02-03 | R54: N
A55: 5 | B55: 2021-02-04 | D55: AUROPHARMA FEB FUT | E55: Buy | F55: 924 | G55: 903 | H55: 942 | I55: 960-965 | J55: Profit of Rs.18/- | K55: =H55-F55 -> 18 | L55: 214.31 | M55: 11485.7 | N55: 650 | O55: Successful | P55: 2021-02-05 | R55: N
A56: 6 | B56: 2021-02-05 | D56: NIFTY FEB FUT | E56: Sell | F56: 14980 | G56: 15080 | H56: 14910 | I56: 14800 | J56: Profit of Rs.70/- | K56: =F56-H56 -> 70 | L56: =(H56*N56)*0.035% -> 391.39 | M56: =(K56*N56)-L56 -> 4858.6 | N56: 75 | O56: Successful | P56: 2021-02-05 | R56: H
A57: 7 | B57: 2021-02-08 | D57: HDFCLIFE FEB FUT | E57: Buy | F57: 687 | G57: 675 | H57: 697.5 | I57: 710 | J57: Profit of Rs.10.5/- | K57: =H57-F57 -> 10.5 | L57: 268.54 | M57: 11281.5 | N57: 1100 | O57: Successful | P57: 2021-02-09 | R57: H
A58: 8 | B58: 2021-02-15 | D58: HDFCLIFE FEB FUT | E58: Buy | F58: 701-702 | G58: 689 | I58: 720 | J58: Open
A59: 9 | B59: 2021-02-16 | D59: SRF FEB FUT | E59: Buy | F59: 5780-5800 | G59: 5680 | I59: 6000 | J59: Open
A65: Master Trade Medium Risk
A66: Sr.no | B66: Date | D66: Company | E66: Rec | F66: Rec Price | G66: Stop Loss | H66: Call Closed At | I66: Target | J66: Remark | K66: Profit/ Loss per lot | L66: All charges | M66: Gain / Loss per Lot | N66: Lot | O66: Status | P66: Closed Date
A67: 1 | B67: 2021-01-29 | D67: NIFTY 13800 PE 11-FEB | E67: Buy | F67: 215 | H67: 0 | J67: Loss of Rs, 117.5/- | K67: =H67-F67 -> -215 | L67: 100.00 | M67: -8612.5 | N67: 75 | O67: Unsuccessful | P67: 2021-02-11 | R67: N
D68: NIFTY 13400 PE 11-FEB | E68: Sell | F68: 97.5 | H68: 0 | K68: =F68-H68 -> 97.5 | L68: 100.00 | R68: N
A69: 2 | B69: 2021-02-01 | D69: NIFTY 13800 PE 4-FEB | E69: Buy | F69: 67.5 | G69: 35 | H69: 35 | I69: 150 | J69: Loss of Rs, 32.5/- | K69: =H69-F69 -> -32.5 | L69: 100 | M69: =(K69*N69)+L69 -> -2337.5 | N69: 75 | O69: Unsuccessful | P69: 2021-02-01 | R69: H
A70: 3 | B70: 2021-02-03 | D70: NIFTY 14800 PE 4-FEB | E70: Buy | F70: 51 | G70: 18 | H70: 71.5 | I70: 100-120 | J70: Profit of Rs.20.50/- | K70: =H70-F70 -> 20.5 | L70: 100.00 | M70: =(K70*N70)-L70 -> 1437.5 | N70: 75 | O70: Successful | P70: 2021-02-03 | R70: H
A71: 4 | B71: 2021-02-03 | D71: NIFTY 14800 PE 4-FEB | E71: Buy | F71: 52.5 | G71: 19 | H71: 72 | I71: 100-120 | J71: Profit of Rs.19.50/- | K71: =H71-F71 -> 19.5 | L71: 100.00 | M71: 1362.5 | N71: 75 | O71: Successful | P71: 2021-02-03 | R71: H
A72: 5 | B72: 2021-02-05 | D72: NIFTY 15100 CE 25-FEB | E72: Sell | F72: 227 | G72: 325 | H72: 325 | I72: 50-10 | J72: Loss of Rs, 98/- | K72: =F72-H72 -> -98 | L72: 100 | M72: =(K72*N72)+L72 -> -7250 | N72: 75 | O72: Unsuccessful | P72: 2021-02-09 | R72: H
A73: 6 | B73: 2021-02-10 | D73: NIFTY 15200 CE 25-FEB | E73: Sell | F73: 227.5 | G73: 325 | H73: 175 | I73: 50-10 | J73: Profit of Rs, 52.5/- | K73: =F73-H73 -> 52.5 | L73: 100 | M73: =(K73*N73)+L73 -> 4037.5 | N73: 75 | O73: Successful | P73: 2021-02-10 | R73: H
A74: 7 | B74: 2021-02-10 | D74: NIFTY 15200 CE 25-FEB | E74: Sell | F74: 202.5 | G74: 302 | H74: 302 | I74: 50-10 | J74: Loss of Rs, 99.5/- | K74: =F74-H74 -> -99.5 | L74: 100 | M74: =(K74*N74)+L74 -> -7362.5 | N74: 75 | O74: Unsuccessful | P74: 2021-02-16 | R74: H
A75: 8 | B75: 2021-02-11 | D75: BANKNIFTY 36500 CE 25-FEB | E75: Sell | F75: 470 | G75: 680 | H75: 375 | I75: 100-50 | J75: Profit of Rs, 95/- | K75: =F75-H75 -> 95 | L75: 100 | M75: =(K75*N75)+L75 -> 2475 | N75: 25 | O75: Successful | P75: 2021-02-12
A76: 9 | B76: 2021-02-15 | D76: BANKNIFTY 37400 CE 25-FEB | E76: Sell | F76: 370 | G76: 522 | H76: 522 | I76: 50-10 | J76: Loss of Rs, 152/- | K76: =F76-H76 -> -152 | L76: 100 | M76: =(K76*N76)+L76 -> -3700 | N76: 25 | O76: Unsuccessful | P76: 2021-02-15
A77: 4 | B77: 2021-02-16 | D77: NIFTY 14800 PE 4-FEB | E77: Buy | F77: 66 | G77: 19 | H77: 79 | I77: 100-120 | J77: Profit of Rs.13/- | K77: =H77-F77 -> 13 | L77: 100 | M77: =(K77*N77)-L77 -> 875.0 | N77: 75 | O77: Successful | P77: 2021-02-16
A86: Techno -Funda (positional)
A87: Sr.no | B87: Date | D87: Company | E87: Rec | F87: Rec Price | G87: Stop Loss*** | H87: Call Closed At | I87: Target | J87: Remark | K87: Profit / Loss per Share/Lot | L87: All charges | M87: Net Gain / Loss % | N87: Status | O87: Closed Date
A88: 1 | B88: 2021-01-07 | D88: SIS | E88: Buy | F88: 424 | G88: 385 | H88: 455 | I88: 500-520 | J88: Part profit of Rs.31/- | K88: =H88-F88 -> 31 | L88: =(F88*-0.8)/100 -> -3.39 | M88: =(K88+L88)/F88 -> 6.51% | N88: Successful | O88: 2020-02-16 | R88: H
A89: 2 | B89: 2021-02-11 | D89: MCX | E89: Buy | F89: 1500-1530 | G89: 1390 | I89: 1800-1850 | J89: Open
A91: CLBS = Closing Basis *** | F91: Reinitiated $
A92: Dividend adjusted <> | F92: Revised stoploss #
B94: Intrday Call
A95: Sr.no | B95: Date | D95: Company | E95: Rec | F95: Rec Price | G95: Stop Loss | H95: Call Closed At | I95: Target | J95: Remark | K95: Profit / Loss per Share/Lot | L95: Gain / Loss per Lot | M95: Lot | N95: All charges | O95: Net Gain / Loss % | P95: Status | Q95: Closed Date
B108: Investment Idea
A109: Sr.no | B109: Date | D109: Company | E109: Rec | F109: Rec Price | G109: Point of Review | H109: Close Rate | I109: Target | J109: Remark | K109: Profit / Loss per Share | L109: Gain / Loss % | M109: Status | N109: Closed Date
A110: 1 | B110: 2013-11-01 | D110: L&T Finance Holding | E110: Accu | F110: 82.00 | G110: - | H110: 100 | I110: 100.00 | J110: Target Achieved | K110: =H110-F110 -> 18.00 | L110: =K110/F110 -> 21.95% | M110: Successful | N110: 2016-10-14
A111: 2 | B111: 2014-06-04 | D111: Finolex Inds | E111: Buy | F111: 257.00 | G111: - | H111: 300 | I111: 300.00 | J111: Target Achieved | K111: 43.00 | L111: 16.73% | M111: Successful | N111: 2014-07-02
A112: 3 | B112: 2014-07-08 | D112: JK Cement | E112: Buy | F112: 393.00 | G112: - | H112: 468 | I112: 468.00 | J112: Target Achieved | K112: 75.00 | L112: 19.08% | M112: Successful | N112: 2014-08-12
A113: 4 | B113: 2014-08-06 | D113: Finolex Cables | E113: Buy | F113: 205.00 | G113: - | H113: 275 | I113: 250.00 | J113: Target Achieved | K113: 70.00 | L113: 34.15% | M113: Successful | N113: 2014-11-19
A114: 5 | B114: 2014-09-04 | D114: Exide Inds | E114: Buy | F114: 162.00 | G114: - | H114: 190 | I114: 190.00 | J114: Target Achieved | K114: 28.00 | L114: 17.28% | M114: Successful | N114: 2015-01-02
A115: 6 | B115: 2014-09-04 | D115: Deepak Nitrite | E115: Buy | F115: 75.00 | G115: - | H115: 91.5 | I115: 95-100 | J115: Profit of Rs.16.50/- | K115: 16.50 | L115: 22.00% | M115: Successful | N115: 2014-11-11
A116: 7 | B116: 2014-10-01 | D116: Mercks | E116: Buy | F116: 850.00 | G116: - | H116: 982.5 | I116: 1050.00 | J116: Profit of Rs.132.50/- | K116: 132.50 | L116: 15.59% | M116: Successful | N116: 2015-02-04
A117: 8 | B117: 2014-10-01 | D117: Grindwell Norton | E117: Buy | F117: 475.00 | G117: - | H117: 515 | I117: 600.00 | J117: Profit of Rs.40/- | K117: 40.00 | L117: 8.42% | M117: Successful | N117: 2014-10-27
A118: 9 | B118: 2014-10-01 | D118: Snowman Logistics | E118: Buy | F118: 86.00 | G118: - | H118: 99 | I118: 140.00 | J118: Profit of Rs.13.00/- | K118: 13.00 | L118: 15.12% | M118: Successful | N118: 2014-10-27
A119: 10 | B119: 2014-10-14 | D119: Birla Corp | E119: Buy | F119: 496.60 | G119: - | H119: 621 | I119: 580.00 | J119: Target Achieved | K119: 124.40 | L119: 25.05% | M119: Successful | N119: 2016-08-23
A120: 11 | B120: 2014-10-14 | D120: Ultratech Cem | E120: Buy | F120: 2481.90 | G120: - | H120: 2840 | I120: 2870.00 | J120: Profit of Rs.358.10/- | K120: 358.10 | L120: 14.43% | M120: Successful | N120: 2015-01-13
A121: 12 | B121: 2014-10-16 | D121: Sintex Inds | E121: Buy | F121: 84.50 | G121: - | H121: 93 | I121: 110.00 | J121: Profit of Rs.8.50/- | K121: 8.50 | L121: 10.06% | M121: Successful | N121: 2014-10-27
A122: 13 | B122: 2014-10-16 | D122: HSIL | E122: Buy | F122: 401.00 | G122: - | H122: 428 | I122: 450.00 | J122: Profit of Rs.27.00/- | K122: 27.00 | L122: 6.73% | M122: Successful | N122: 2015-01-16
A123: 14 | B123: 2014-10-16 | D123: Eveready Inds | E123: Buy | F123: 101.00 | G123: - | H123: 112 | I123: 120.00 | J123: Profit of Rs.11.00/- | K123: 11.00 | L123: 10.89% | M123: Successful | N123: 2014-10-27
A124: 15 | B124: 2014-11-11 | D124: Pennar Inds | E124: Buy | F124: 59.00 | G124: - | H124: 76 | I124: 76.00 | J124: Target Achieved | K124: 17.00 | L124: 28.81% | M124: Successful | N124: 2017-10-24
A125: 16 | B125: 2014-11-11 | D125: Snowman Logistics | E125: Buy | F125: 99.00 | G125: - | H125: 120 | I125: 120.00 | J125: Profit of Rs.21/- | K125: 21.00 | L125: 21.21% | M125: Successful | N125: 2014-11-17
A126: 17 | B126: 2014-11-13 | D126: Dharamsi Morarji Chem | E126: Buy | F126: 22.00 | G126: - | H126: 33.55 | I126: 32.00 | J126: Profit of Rs 11.55/- | K126: 11.55 | L126: 52.50% | M126: Successful | N126: 2015-07-03
A127: 18 | B127: 2014-12-03 | D127: Tatachem | E127: Buy | F127: 440.00 | G127: - | H127: 520 | I127: 520.00 | J127: Profit of Rs 80.00/- | K127: 80.00 | L127: 18.18% | M127: Successful | N127: 2015-07-23
A128: 19 | B128: 2014-12-03 | D128: Advanta | E128: Buy | F128: 360.00 | G128: - | H128: 427 | I128: 425.00 | J128: Profit of Rs.67.00/- | K128: 67.00 | L128: 18.61% | M128: Successful | N128: 2015-02-23
A129: 20 | B129: 2015-01-08 | D129: GDL | E129: Buy | F129: 360.00 | G129: - | H129: 455 | I129: 420.00 | J129: Profit of Rs.95.00/- | K129: 95.00 | L129: 26.39% | M129: Successful | N129: 2015-01-20
A130: 21 | B130: 2015-01-08 | D130: NRB Bearing | E130: Buy | F130: 130.00 | H130: 175.5 | I130: 165.00 | J130: Profit of Rs 45.50/- | K130: 45.50 | L130: 35.00% | M130: Successful | N130: 2017-12-19
A131: 22 | B131: 2015-02-05 | D131: GSFC | E131: Accu | F131: 98.00 | H131: 120 | I131: 120.00 | J131: Target Achieved | K131: 22.00 | L131: 22.45% | M131: Successful | N131: 2017-01-18
A132: 23 | B132: 2015-02-05 | D132: Sundrmfast | E132: Accu | F132: 196.00 | H132: 262 | I132: 255.00 | J132: Target Achieved | K132: 66.00 | L132: 33.67% | M132: Successful | N132: 2016-08-17
A133: 24 | B133: 2015-03-04 | D133: GPPL | E133: Accu | F133: 235 | H133: 77.00 | I133: 280-285 | J133: Loss of Rs.158/- | K133: -158.00 | L133: -67.23% | M133: Unsuccessful | N133: 2019-02-26
A134: 25 | B134: 2015-03-04 | D134: ORIENTCEM | E134: Accu | F134: 185.00 | H134: 224 | I134: 220-225 | J134: Target Achieved | K134: 39.00 | L134: 21.08% | M134: Successful | N134: 2016-10-04
A135: 26 | B135: 2015-03-27 | D135: PFS | E135: Accu | F135: 49.5 | H135: 15.85 | I135: 67.00 | J135: Loss of Rs.33.65/- | K135: -33.65 | L135: -68% | M135: Unsuccessful | N135: 2019-06-11
A136: 27 | B136: 2015-03-30 | D136: Walchandnagar Ind Ltd | E136: Accu | F136: 183.50 | H136: 219 | I136: 218.00 | J136: Profit of Rs.35.50/- | K136: 35.50 | L136: 19.35% | M136: Successful | N136: 2015-04-09
A137: 28 | B137: 2015-04-20 | D137: Kalpataru Power Transmission Ltd | E137: Accu | F137: =(227+237)/2 -> 232.00 | H137: 298 | I137: 298.00 | J137: Target Achieved | K137: 66.00 | L137: 28.45% | M137: Successful | N137: 2017-03-29
A138: 29 | B138: 2015-05-04 | D138: Mastek Ltd | E138: Buy | F138: 385.00 | H138: =212.5+331 -> 543.5 | I138: 510.00 | J138: Profit of Rs 158.50/- | K138: 158.50 | L138: 41.17% | M138: Successful | N138: 2015-08-19
A139: 30 | B139: 2015-05-04 | D139: Suprajit Eng | E139: Buy | F139: 115.50 | H139: 146 | I139: 142.00 | J139: Profit of Rs 30.50/- | K139: 30.50 | L139: 26.41% | M139: Successful | N139: 2015-07-17
A140: 31 | B140: 2015-05-27 | D140: TCI | E140: Buy | F140: 237.50 | H140: 279.5 | I140: 278.00 | J140: Target Achieved | K140: 42.00 | L140: 17.68% | M140: Successful | N140: 2015-08-06
A141: 32 | B141: 2015-06-19 | D141: HSIL | E141: Accu | F141: 340.00 | H141: 448 | I141: 448.00 | J141: Target Achieved | K141: 108.00 | L141: 31.76% | M141: Successful | N141: 2017-10-10
A142: 33 | B142: 2015-07-06 | D142: Capital First | E142: Accu | F142: 390.00 | H142: 460 | I142: 460.00 | J142: Target Achieved | K142: =H142-F142 -> 70.00 | L142: =K142/F142 -> 17.95% | M142: Successful | N142: 2016-04-18
A143: 34 | B143: 2015-07-10 | D143: Dolphin OffShore | E143: Accu | F143: 122.5 | H143: 61.00 | I143: 172.00 | J143: Loss of Rs.61.50/- | K143: -61.50 | L143: -50.20% | M143: Unsuccessful | N143: 2018-08-21
A144: 35 | B144: 2015-08-03 | D144: Allcargo logistics | E144: Accu | F144: 297.50 | H144: 350 | I144: 360.00 | J144: Profit of Rs 52.50/- | K144: 52.50 | L144: 17.65% | M144: Successful | N144: 2015-08-16
A145: 36 | B145: 2015-08-03 | D145: Camline Fine | E145: Accu | F145: 115.50 | H145: 149 | I145: 140.00 | J145: Profit of Rs 33.50/- | K145: 33.50 | L145: 29.00% | M145: Successful | N145: 2017-01-05
A146: 37 | B146: 2015-09-04 | D146: TCI | E146: Accu | F146: 226.00 | H146: 292 | I146: 292.00 | J146: Target Achieved | K146: 66.00 | L146: 29.20% | M146: Successful | N146: 2015-10-09
A147: 38 | B147: 2015-09-07 | D147: Kalpataru Power Transmission Ltd | E147: Accu | F147: 232.50 | H147: 312.5 | I147: 310.00 | J147: Target Achieved | K147: 80.00 | L147: 34.41% | M147: Successful | N147: 2017-03-29
A148: 39 | B148: 2015-09-21 | D148: LLOYD ELECTRIC & ENG LTD | E148: Accu | F148: 196.50 | H148: 238 | I148: 238.00 | J148: Target Achieved | K148: 41.50 | L148: 21.12% | M148: Successful | N148: 2015-10-14
A149: 40 | B149: 2015-09-24 | D149: L&T Finance Holding | E149: Accu | F149: 65.00 | H149: 82 | I149: 82.00 | J149: Target Achieved | K149: 17.00 | L149: 26.15% | M149: Successful | N149: 2016-07-27
A150: 41 | B150: 2015-10-14 | D150: KEC International ltd | E150: Accu | F150: 144.00 | H150: 182.5 | I150: 181.00 | J150: Target Achieved | K150: 38.50 | L150: 26.74% | M150: Successful | N150: 2017-03-23
A151: 42 | B151: 2015-10-14 | D151: Gruh Finance | E151: Accu | F151: 264.00 | H151: 311 | I151: 311.00 | J151: Target Achieved | K151: 47.00 | L151: 17.80% | M151: Successful | N151: 2016-08-22
A152: 43 | B152: 2015-11-10 | D152: Pidilitind | E152: Buy | F152: 549.50 | H152: 630 | I152: 630.00 | J152: Target Achieved | K152: 80.50 | L152: 14.65% | M152: Successful | N152: 2016-02-19
A153: 44 | B153: 2015-12-04 | D153: Zensar Technology | E153: Accu | F153: 1027.50 | H153: 1315 | I153: 1250.00 | J153: Target Achieved | K153: 287.50 | L153: 27.98% | M153: Successful | N153: 2018-05-24
A154: 45 | B154: 2015-12-29 | D154: Vinati Organics Ltd | E154: Accu | F154: 465.00 | H154: 540 | I154: 540.00 | J154: Target Achieved | K154: 75.00 | L154: 16.13% | M154: Successful | N154: 2016-06-09
A155: 46 | B155: 2016-01-11 | D155: GSFC | E155: Buy | F155: 81.00 | H155: 110 | I155: 110.00 | J155: Target Achieved | K155: 29.00 | L155: 35.80% | M155: Successful | N155: 2017-01-10
A156: 47 | B156: 2016-01-13 | D156: SSWL | E156: Buy | F156: 417.50 | H156: 547 | I156: 535.00 | J156: Target Achieved | K156: 129.50 | L156: 31.02% | M156: Successful | N156: 2016-07-27
A157: 48 | B157: 2016-02-08 | D157: Persistent System Ltd | E157: Accu | F157: 650.00 | H157: 800 | I157: 800.00 | J157: Target Achieved | K157: 150.00 | L157: 23.08% | M157: Successful | N157: 2018-02-23
A158: 49 | B158: 2016-03-04 | D158: UPL | E158: Accu | F158: 437.50 | H158: 504.5 | I158: 522.00 | J158: Profit of Rs.67/- | K158: 67.00 | L158: 15.31% | M158: Successful | N158: 2016-04-20
A159: 50 | B159: 2016-03-09 | D159: Ashoka Buildcon Ltd | E159: Accu | F159: 189.50 | H159: 218 | I159: 218.00 | J159: Target Achieved | K159: 28.50 | L159: 15.04% | M159: Successful | N159: 2017-10-26
A160: 51 | B160: 2016-04-11 | D160: PTC INDIA FIN SERV LTD | E160: Accu | F160: 36.5 | H160: 15.85 | I160: 60.00 | J160: Loss of Rs.20.65/- | K160: -20.65 | L160: -56.58% | M160: Unsuccessful | N160: 2019-06-11
A161: 52 | B161: 2016-04-12 | D161: CAMLINFINE $ | E161: Accu | F161: 93.00 | H161: 149 | I161: 140.00 | J161: Profit of Rs 56/- | K161: 56.00 | L161: 60.22% | M161: Successful | N161: 2017-01-05
A162: 53 | B162: 2016-04-12 | D162: Greaves Cotton Ltd. | E162: Accu | F162: 130.00 | H162: 150 | I162: 150-155 | J162: Target Achieved | K162: 20.00 | L162: 15.38% | M162: Successful | N162: 2016-07-13
A163: 54 | B163: 2016-04-13 | D163: DHFL | E163: Accu | F163: 196.00 | H163: 299 | I163: 299.00 | J163: Target Achieved | K163: 103.00 | L163: 52.55% | M163: Successful | N163: 2016-09-07
A164: 55 | B164: 2016-04-13 | D164: Magma | E164: Accu | F164: 88.00 | H164: 103 | I164: 103.00 | J164: Target Achieved | K164: 15.00 | L164: 17.05% | M164: Successful | N164: 2016-06-09
A165: 56 | B165: 2016-05-02 | D165: KEC International ltd $ | E165: Accu | F165: 127.50 | H165: 148 | I165: 148-150 | J165: Target Achieved | K165: =H165-F165 -> 20.50 | L165: =K165/F165 -> 16.08% | M165: Successful | N165: 2016-07-13
A166: 57 | B166: 2016-05-03 | D166: Mindtree | E166: Accu | F166: 675.00 | H166: 815 | I166: 790-800 | J166: Target Achieved | K166: =H166-F166 -> 140.00 | L166: =K166/F166 -> 20.74% | M166: Successful | N166: 2018-02-23
A167: 58 | B167: 2016-06-01 | D167: Atulauto | E167: Accu | F167: 500 | H167: 232.50 | I167: 565-570 | J167: Loss of Rs.267.50 /- | K167: =H167-F167 -> -267.50 | L167: =K167/F167 -> -53.50% | M167: Unsuccessful | N167: 2019-09-27
A168: 59 | B168: 2016-06-06 | D168: TRITURBINE | E168: Accu | F168: 110.00 | H168: 126.5 | I168: 125.00 | J168: Profit of Rs.16.50/- | K168: =H168-F168 -> 16.50 | L168: =K168/F168 -> 15.00% | M168: Successful | N168: 2016-07-01
A169: 60 | B169: 2016-06-17 | D169: Pennar Industries Ltd | E169: Accu | F169: 44.00 | H169: 69.5 | I169: 69.50 | J169: Profit of Rs.25.50/- | K169: =H169-F169 -> 25.50 | L169: =K169/F169 -> 57.95% | M169: Successful | N169: 2017-08-30
A170: 61 | B170: 2016-06-28 | D170: EVEREADY | E170: Accu | F170: 262.50 | H170: 340 | I170: 333.00 | J170: Profit of Rs.77.50/- | K170: 77.50 | L170: 29.52% | M170: Successful | N170: 2017-10-09
A171: 62 | B171: 2016-06-28 | D171: FIEMIND | E171: Accu | F171: 840.00 | H171: 1230 | I171: 1230.00 | J171: Target Achieved | K171: 390.00 | L171: 46.43% | M171: Successful | N171: 2016-10-06
A172: 63 | B172: 2016-07-05 | D172: Bajaj Corp Ltd | E172: Accu | F172: 395 | H172: =(468.5+342.5)/2 -> 405.50 | I172: 510.00 | J172: Profit of Rs.10.50/- | K172: =H172-F172 -> 10.50 | L172: =K172/F172 -> 3% | M172: Neutral | N172: 2019-05-21
A173: 64 | B173: 2016-08-02 | D173: GPPL $ | E173: Buy | F173: =169.5-12.8 -> 156.7 | H173: 77.00 | I173: 198-200 | J173: Loss of Rs.79.7/- | K173: -79.70 | L173: -50.86% | M173: Unsuccessful | N173: 2019-02-26
A174: 65 | B174: 2016-08-04 | D174: WONDERLA HOLIDAYS LTD | E174: Accu | F174: 400 | H174: 305.00 | I174: 475.00 | J174: Loss of Rs.95/- | K174: -95.00 | L174: -23.75% | M174: Unsuccessful | N174: 2019-05-21
A175: 66 | B175: 2016-08-11 | D175: CAMLINFINE | E175: Accu | F175: 86.50 | H175: 130 | I175: 130.00 | J175: Profit of Rs.43.50/- | K175: 43.50 | L175: 50.29% | M175: Successful | N175: 2017-12-22
A176: 67 | B176: 2016-08-18 | D176: GRANULES | E176: Accu | F176: 133.5 | H176: 126.50 | I176: 178.00 | J176: Exit | K176: -7.00 | L176: -5.24% | M176: Unsuccessful | N176: 2016-09-02
A177: 68 | B177: 2016-08-31 | D177: VA TECH WABAG | E177: Accu | F177: 560.00 | H177: 725 | I177: 725.00 | J177: Target Achieved | K177: 165.00 | L177: 29.46% | M177: Successful | N177: 2016-03-27
A178: 69 | B178: 2016-09-01 | D178: SKIPPER LIMITED | E178: Accu | F178: 160.50 | H178: 210 | I178: 210.00 | J178: Target Achieved | K178: 49.50 | L178: 30.84% | M178: Successful | N178: 2017-05-16
A179: 70 | B179: 2016-10-03 | D179: IFBIND | E179: Accu | F179: 430.00 | H179: 596 | I179: 575.00 | J179: Profit of Rs.166/- | K179: 166.00 | L179: 38.60% | M179: Successful | N179: 2017-02-03
A180: 71 | B180: 2016-10-14 | D180: ASIANTILES | E180: Accu | F180: 280.00 | H180: 345 | I180: 345.00 | J180: Target Achieved | K180: =H180-F180 -> 65.00 | L180: =K180/F180 -> 23.21% | M180: Successful | N180: 2017-03-20
A181: 72 | B181: 2016-10-14 | D181: DEEPIND | E181: Accu | F181: 245.00 | H181: 325.5 | I181: 330.00 | J181: Profit of Rs.80.5/- | K181: 80.50 | L181: =K181/F181 -> 32.86% | M181: Successful | N181: 2017-02-03
A182: 73 | B182: 2016-10-17 | D182: DCBBANK | E182: Accu | F182: 125.00 | H182: 160 | I182: 160.00 | J182: Target Achieved | K182: 35.00 | L182: 28.00% | M182: Successful | N182: 2017-03-09
A183: 74 | B183: 2016-10-17 | D183: ORIENTREF | E183: Accu | F183: 114.00 | H183: 145 | I183: 145.00 | J183: Target Achieved | K183: 31.00 | L183: =K183/F183 -> 27.19% | M183: Successful | N183: 2017-05-04
A184: 75 | B184: 2016-10-17 | D184: GANECOS | E184: Accu | F184: 212.00 | H184: 280 | I184: 276.00 | J184: Profit of Rs.68/- | K184: 68.00 | L184: =K184/F184 -> 32.08% | M184: Successful | N184: 2017-05-03
A185: 76 | B185: 2016-11-04 | D185: NBCC | E185: Accu | F185: 155.00 | H185: 210 | I185: 210.00 | J185: Profit of Rs.55/- | K185: 55.00 | L185: =K185/F185 -> 35.48% | M185: Successful | N185: 2017-07-28
A186: 77 | B186: 2016-12-06 | D186: PRECAM | E186: Accu | F186: 150.5 | H186: 72.50 | I186: 174.00 | J186: Loss of Rs.78/- | K186: -78.00 | L186: -51.83% | M186: Unsuccessful | N186: 2018-08-21
A187: 78 | B187: 2016-12-08 | D187: INFRATEL | E187: Accu | F187: 380.00 | H187: 478 | I187: 468.00 | J187: Target Achieved | K187: =H187-F187 -> 98.00 | L187: =K187/F187 -> 25.79% | M187: Successful | N187: 2017-10-17
A188: 79 | B188: 2016-12-30 | D188: GODREJPROP | E188: Accu | F188: 305.00 | H188: 375 | I188: 375.00 | J188: Target Achieved | K188: =H188-F188 -> 70.00 | L188: =K188/F188 -> 22.95% | M188: Successful | N188: 2017-02-02
A189: 80 | B189: 2017-01-04 | D189: DEEPAKNTR | E189: Accu | F189: 99.50 | H189: 158 | I189: 158.00 | J189: Target Achieved | K189: =H189-F189 -> 58.50 | L189: =K189/F189 -> 58.79% | M189: Successful | N189: 2017-06-12
A190: 81 | B190: 2017-01-04 | D190: DEEPAKNTR | E190: Accu | F190: 99.50 | H190: 158 | I190: 158.00 | J190: Target Achieved | K190: 58.50 | L190: 58.79% | M190: Successful | N190: 2017-06-12
A191: 82 | B191: 2017-02-20 | D191: RECLTD | E191: Accu | F191: 140.50 | H191: 220 | I191: 220.00 | J191: Target Achieved | K191: =H191-F191 -> 79.50 | L191: =K191/F191 -> 56.58% | M191: Successful | N191: 2017-05-09
A192: 83 | B192: 2017-02-20 | D192: SUBROS | E192: Accu | F192: 202.50 | H192: 234 | I192: 234.00 | J192: Target Achieved | K192: 31.50 | L192: 15.56% | M192: Successful | N192: 2017-04-11
A193: 84 | B193: 2017-03-24 | D193: VRLLOG | E193: Accu | F193: 300.50 | H193: 417.5 | I193: 420.00 | J193: Profit of Rs.117/- | K193: =H193-F193 -> 117.00 | L193: =K193/F193 -> 38.94% | M193: Successful | N193: 2017-12-01
A194: 85 | B194: 2017-03-24 | D194: FIEMIND | E194: Accu | F194: 850.00 | H194: 1042.5 | I194: 1023.00 | J194: Profit of Rs 192.50/- | K194: 192.50 | L194: 22.65% | M194: Successful | N194: 2017-04-05
A195: 86 | B195: 2017-04-05 | D195: RATNAMANI | E195: Accu | F195: 785.00 | H195: 930 | I195: 920.00 | J195: Profit of Rs.145/- | K195: =H195-F195 -> 145.00 | L195: =K195/F195 -> 18.47% | M195: Successful | N195: 2017-08-29
A196: 87 | B196: 2017-04-06 | D196: ZEEMEDIA | E196: Accu | F196: 40 | H196: 13.10 | I196: 60.00 | J196: Loss of Rs.26.9/- | K196: -26.90 | L196: -67.25% | M196: Unsuccessful | N196: 2018-02-07
A197: 88 | B197: 2017-04-12 | D197: DABUR | E197: Accu | F197: 289.50 | H197: 354 | I197: 360.00 | J197: Profit of Rs.64.5/- | K197: =H197-F197 -> 64.50 | L197: =K197/F197 -> 22.28% | M197: Successful | N197: 2017-11-01
A198: 89 | B198: 2017-04-20 | D198: KPRMILL | E198: Accu | F198: 700.00 | H198: 840 | I198: 840.00 | J198: Profit of Rs.140/- | K198: 140.00 | L198: 20.00% | M198: Successful | N198: 2017-06-07
A199: 90 | B199: 2017-06-01 | D199: ESSELPACK | E199: Accu | F199: 130.00 | H199: 144.25 | I199: 170.00 | J199: Profit of Rs.14.25/- | K199: 14.25 | L199: 10.96% | M199: Successful | N199: 2019-07-29
A200: 91 | B200: 2017-06-15 | D200: KEI | E200: Accu | F200: 214.50 | H200: 262 | I200: 262.00 | J200: Profit of Rs.47.5/- | K200: 47.50 | L200: 22.14% | M200: Successful | N200: 2017-08-30
A201: 92 | B201: 2017-07-17 | D201: MAYURUNIQ | E201: Accu | F201: 370.00 | H201: 447.5 | I201: 450.00 | J201: Target Achieved | K201: 77.50 | L201: 20.95% | M201: Successful | N201: 2017-10-27
A202: 93 | B202: 2017-07-27 | D202: RAMCOCEM | E202: Accu | F202: 657.50 | H202: 825 | I202: 820.00 | J202: Target Achieved | K202: 167.50 | L202: 25.48% | M202: Successful | N202: 2017-12-21
A203: 94 | B203: 2017-08-17 | D203: FINPIPE | E203: Accu | F203: 605.00 | H203: 750 | I203: 750.00 | J203: Profit of Rs.145/- | K203: 145.00 | L203: 23.97% | M203: Successful | N203: 2017-10-19
A204: 95 | B204: 2017-09-01 | D204: SHK | E204: Accu | F204: 255 | H204: 217.25 | I204: 320.00 | J204: Loss of Rs.37.75/- | K204: -37.75 | L204: -15% | M204: Unsuccessful | N204: 2019-07-15
A205: 96 | B205: 2017-09-19 | D205: SKIPPER | E205: Accu | F205: 215.00 | H205: 258 | I205: 258.00 | J205: Target Achieved | K205: 43.00 | L205: 20.00% | M205: Successful | N205: 2017-11-01
A206: 97 | B206: 2017-09-19 | D206: SKIPPER | E206: Accu | F206: 215.00 | H206: 258 | I206: 258.00 | J206: Target Achieved | K206: 43.00 | L206: 20.00% | M206: Successful | N206: 2017-11-01
A207: 98 | B207: 2017-09-20 | D207: CAMLINFINE$ | E207: Accu | F207: 75.00 | H207: 90 | I207: 90.00 | J207: Profit of Rs.15.00/- | K207: =H207-F207 -> 15.00 | L207: =K207/F207 -> 20.00% | M207: Successful | N207: 2017-10-11
A208: 99 | B208: 2017-10-03 | D208: GNA | E208: Accu | F208: 315.00 | H208: 392 | I208: 384.00 | J208: Profit of Rs.77/- | K208: 77.00 | L208: 24.44% | M208: Successful | N208: 2017-10-09
A209: 100 | B209: 2017-10-05 | D209: NOCIL | E209: Accu | F209: 145.00 | H209: 179 | I209: 180.00 | J209: Profit of Rs.34/- | K209: 34.00 | L209: 23.45% | M209: Successful | N209: 2017-10-17
A210: 101 | B210: 2017-10-06 | D210: CENTURYPLY | E210: Accu | F210: 256.00 | H210: 323 | I210: 320.00 | J210: Target Achieved | K210: 67.00 | L210: 26.17% | M210: Successful | N210: 2017-11-28
A211: 102 | B211: 2017-10-09 | D211: EIHOTEL | E211: Accu | F211: 137.50 | H211: 184 | I211: 183.00 | J211: Profit of Rs.46.5/- | K211: 46.50 | L211: 33.82% | M211: Successful | N211: 2018-01-08
A212: 103 | B212: 2017-10-10 | D212: NRBBEARING | E212: Accu | F212: 125.50 | H212: 158 | I212: 155.00 | J212: Profit of Rs.32.5/- | K212: 32.50 | L212: 25.90% | M212: Successful | N212: 2017-11-28
A213: 104 | B213: 2017-10-10 | D213: BOROSIL | E213: Accu | F213: 895.00 | H213: 1122.5 | I213: 1078.00 | J213: Profit of Rs.227.5/- | K213: 227.50 | L213: 25.42% | M213: Successful | N213: 2018-01-17
A214: 105 | B214: 2017-10-12 | D214: CYIENT | E214: Accu | F214: 525.00 | H214: 629 | I214: 629.00 | J214: Target Achieved | K214: 104.00 | L214: 19.81% | M214: Successful | N214: 2018-01-19
A215: 106 | B215: 2017-11-07 | D215: HATSUN | E215: Accu | F215: 740.00 | H215: 892.5 | I215: 900.00 | J215: Profit of Rs.152.5/- | K215: =H215-F215 -> 152.50 | L215: =K215/F215 -> 20.61% | M215: Successful | N215: 2017-11-13
A216: 107 | B216: 2017-12-04 | D216: SANGHIIND | E216: Accu | F216: 118.50 | H216: 143.5 | I216: 145.00 | J216: Profit of Rs.25/- | K216: =H216-F216 -> 25.00 | L216: =K216/F216 -> 21.10% | M216: Successful | N216: 2017-12-28
A217: 108 | B217: 2017-12-21 | D217: KAJARIACER | E217: Accu | F217: 715 | H217: 500.00 | I217: 872.00 | J217: Loss of Rs.215/- | K217: =H217-F217 -> -215.00 | L217: =K217/F217 -> -30.07% | M217: Unsuccessful | N217: 2019-07-24
A218: 109 | B218: 2017-12-29 | D218: GNA | E218: Accu | F218: 435.00 | H218: 542.5 | I218: 539.00 | J218: Target Achieved | K218: 107.50 | L218: 24.71% | M218: Successful | N218: 2018-04-16
A219: 110 | B219: 2017-12-29 | D219: ZENSARTECH | E219: Accu | F219: 885.00 | H219: 1090 | I219: 1084.00 | J219: Target Achieved | K219: 205.00 | L219: 23.16% | M219: Successful | N219: 2018-04-23
A220: 111 | B220: 2018-04-02 | D220: EVERESTIND | E220: Accu | F220: 478.50 | H220: 442 | I220: 613.00 | J220: Loss of Rs.36.50 /- | K220: =H220-F220 -> -36.50 | L220: =K220/F220 -> -7.63% | M220: Unsuccessful | N220: 2019-10-24
A221: 112 | B221: 2018-04-04 | D221: GPPL$ | E221: Accu | F221: =141.5-7.3 -> 134.2 | H221: 77.00 | I221: 180.00 | J221: Loss of Rs.57.2/- | K221: =H221-F221 -> -57.20 | L221: =K221/F221 -> -42.62% | M221: Unsuccessful | N221: 2019-02-26
A222: 113 | B222: 2018-04-19 | D222: MANPASAND | E222: Accu | F222: 430 | H222: 220.00 | I222: 537.00 | J222: Loss of Rs.210/- | K222: =H222-F222 -> -210.00 | L222: =K222/F222 -> -48.84% | M222: Unsuccessful | N222: 2018-06-01
A223: 114 | B223: 2018-04-30 | D223: HEIDELBERG | E223: Accu | F223: 153.50 | H223: 196.00 | I223: 196.00 | J223: Profit of Rs.42.50/- | K223: =H223-F223 -> 42.50 | L223: =K223/F223 -> 28% | M223: Successful | N223: 2019-05-20
A224: 115 | B224: 2018-07-25 | D224: ZEEMEDIA | E224: Accu | F224: 27.5 | H224: 13.10 | I224: 60.00 | J224: Loss of Rs.14.40/- | K224: -14.40 | L224: -52.36% | M224: Unsuccessful | N224: 2018-02-07
A225: 116 | B225: 2018-08-06 | D225: GABRIEL | E225: Accu | F225: 148.5 | H225: 102 | I225: 182.00 | J225: Loss of Rs.46.50/- | K225: =H225-F225 -> -46.50 | L225: =K225/F225 -> -31.31% | M225: Unsuccessful | N225: 2019-07-15
A226: 117 | B226: 2018-08-23 | D226: INDIANHUME | E226: Accu | F226: 285 | H226: 355 | I226: 364.00 | J226: Profit of Rs.70/- | K226: 70.00 | L226: 24.56% | M226: Successful | N226: 2018-12-21
A227: 118 | B227: 2018-08-29 | D227: GRINDWELL | E227: Accu | F227: 525 | H227: 585 | I227: 635.00 | J227: Profit of Rs.60- | K227: =H227-F227 -> 60.00 | L227: =K227/F227 -> 11.43% | M227: Successful | N227: 2019-07-16
A228: 119 | B228: 2018-10-22 | D228: FINPIPE | E228: Accu | F228: 475 | H228: 574 | I228: 570.00 | J228: Target Achieved | K228: 99.00 | L228: 20.84% | M228: Successful | N228: 2018-10-30
A229: 120 | B229: 2018-10-24 | D229: GULFOILLUB | E229: Accu | F229: 707.5 | H229: 872 | I229: 872.00 | J229: Target Achieved | K229: 164.50 | L229: 23.25% | M229: Successful | N229: 2019-01-17
A230: 121 | B230: 2018-10-25 | D230: DBCORP | E230: Accu | F230: 162 | H230: 204 | I230: 209.00 | J230: Profit of Rs.42/- | K230: 42.00 | L230: 25.93% | M230: Successful | N230: 2019-03-15
A231: 122 | B231: 2018-10-26 | D231: RITES | E231: Accu | F231: 240 | H231: 297 | I231: 297.00 | J231: Target Achieved | K231: 57.00 | L231: 23.75% | M231: Successful | N231: 2018-11-13
A232: 123 | B232: 2018-12-05 | D232: BRIGADE | E232: Accu | F232: 202.5 | H232: 255 | I232: 252.00 | J232: Target Achieved | K232: 52.50 | L232: 25.93% | M232: Successful | N232: 2019-03-18 | R232: V
A233: 124 | B233: 2018-12-31 | D233: JKCEMENT | E233: Accu | F233: 710 | H233: 866 | I233: 866.00 | J233: Target Achieved | K233: 156.00 | L233: 21.97% | M233: Successful | N233: 2019-03-29 | R233: V
A234: 125 | B234: 2019-02-26 | D234: MARICO | E234: Accu | F234: 337.25 | H234: 398.5 | I234: 411.00 | J234: Profit of Rs.61.25/- | K234: 61.25 | L234: 18.16% | M234: Successful | N234: 2019-10-22 | R234: V
A235: 126 | B235: 2019-04-04 | D235: ITDCEM | E235: Accu | F235: 130 | H235: 65 | I235: 158.00 | J235: Loss of Rs.65 /- | K235: -65.00 | L235: -50.00% | M235: Unsuccessful | N235: 2019-09-18 | R235: K
A236: 127 | B236: 2017-10-09 | D236: RECLTD | E236: Accu | F236: 141.5 | H236: 183.50 | I236: 210.00 | J236: Part Profit of Rs.42/- | K236: 42.00 | L236: 30% | M236: Successful | N236: 2017-11-03 | R236: K
A237: 128 | B237: 2017-12-05 | D237: ALLCARGO | E237: Accu | F237: 172.00 | H237: 155.25 | I237: 230.00 | J237: Loss of Rs.16.75/- | K237: =H237-F237 -> -16.75 | L237: =K237/F237 -> -9.74% | M237: Unsuccessful | N237: 2019-11-18 | R237: K
A238: 129 | B238: 2018-10-25 | D238: GODREJCP | E238: Accu | F238: 698.50 | H238: 850.00 | I238: 890.00 | J238: Part Profit of Rs.151.50/- | K238: 151.50 | L238: 22% | M238: Successful | N238: 2018-12-19 | R238: V
A239: 130 | B239: 2017-05-22 | D239: GREAVESCOT | E239: Accu | F239: 127.6 | H239: 138.00 | I239: 190.00 | J239: Profit of Rs.10.40 | K239: 10.40 | L239: 8% | M239: Successful | N239: 2019-11-05 | R239: K
A240: 131 | B240: 2018-02-27 | D240: MOLDTKPAC | E240: Accu | F240: 317 | H240: 382.50 | I240: 398.00 | J240: Profit of Rs.65.5 | K240: =H240-F240 -> 65.50 | L240: =K240/F240 -> 21% | M240: Successful | N240: 2021-02-11 | R240: K
A241: 132 | B241: 2018-03-05 | D241: LICHSGFIN | E241: Accu | F241: =510-14.4 -> 495.60 | H241: 350 | I241: 672.00 | J241: Loss of Rs.145.60/- | K241: =H241-F241 -> -145.60 | L241: =K241/F241 -> -29.38% | M241: Unsuccessful | N241: 2020-02-26 | R241: V
... 30 more rows
